{"text_format":"1","workbook":"xlsx","n_sheets":8,"sheets":["Navigation","Dealer Report","Dealer Report working","Master","Final Dealer Work","Zylem SNS Report","Sheet1","Reco"],"not_rendered":{"charts":0,"images":0,"macros":1,"external_links":2,"defined_names":11,"comments":0,"pivot_tables":1},"unopened":[],"bounds":{"document_bytes":16777216,"sheet_cells":100000,"rows_first":2000,"rows_last":500,"rows_between":2000,"halvings":0,"cell_chars":16384,"cell_head_chars":4096},"cells_cut":0,"cells_raw":0,"read":"whole","date_system":"1900"}

{"sheet":"Navigation","index":0,"n_rows":8,"n_cols":12,"rows_kept":8,"cut":false,"hidden":false,"merged":[]}
[]
[]
[]
[]
[]
[]
[null,null,null,null,null,null,null,null,null,null,"S S Agro Agency"]
[null,null,null,null,null,null,null,null,null,null,null,"Stock and Sales FOR THE PERIOD 01-Apr-2020 TO 28-Feb-2021"]

{"sheet":"Dealer Report","index":1,"n_rows":127,"n_cols":5,"rows_kept":127,"cut":false,"hidden":false,"merged":[]}
["S S Agro Agency-Barshi"]
["Gala No 18 to 20"]
["Tuljapur Road, Barshi"]
["Bayer"]
["Stock Category Summary"]
["1-Apr-2020 to 28-Feb-2021"]
["","Bayer"]
["","S S Agro Agency-(2020-21)"]
["Particulars","1-Apr-2020 to 28-Feb-2021"]
["","Opening Balance","Inwards","Outwards","Closing Balance"]
["NAME","Quantity","Quantity","Quantity","Quantity"]
["Admire (150gm) Bayer",14,null,17,-3]
["Admire (2gm) Bayer",null,7800,6798,1002]
["Admire (300gm) Bayer",12,160,145,27]
["Admire (30gm) Bayer",58,450,446,62]
["Admire (75gm) Bayer",1,180,159,22]
["Aliete 1kg",6,220,190,36]
["Aliette 250gm Bayer"]
["Aliette 500gm",-6,320,317,-3]
["Ambition 100ml",null,500,383,117]
["Ambition 1ltr",14,100,115,-1]
["Ambition 1ltr (5%)"]
["Ambition 250ml",25,1080,942,163]
["Ambition 500ml",30,840,642,228]
["Antracol (1kg) Bayer",9,1150,995,164]
["Antracol (250gm) Bayer",67,1840,1807,100]
["Antracol (500gm) Bayer",164,2400,2083,481]
["Bayfolan Algae 250ml"]
["Bayfolan Algae 500ml"]
["Belt Expert 100ml",1,150,120,31]
["Buonos 250ml",null,320,298,22]
["Confidor 100ml",25,150,143,32]
["Confidor 1ltr",null,50,35,15]
["Confidor (250ml) Bayer",18,40,55,3]
["Confidor 500ml",null,100,51,49]
["Confidor (50ml) Bayer",null,100,77,23]
["Desis 100 (100ml) Bayer",14,1400,1313,101]
["Desis 100 (250ml) Bayer",34,520,519,35]
["Desis 1ltr",null,50,50]
["Desis 50ml",null,300,200,100]
["Ethrel (100ml)",null,250,149,101]
["Ethrel 1lit (Bayer)",null,250,214,36]
["Ethrel (500ml) Bayer",-1,200,211,-12]
["Evergol 40ml",null,1700,1658,42]
["Fame (100ml) Bayer",5,120,119,6]
["Fame (1ltr) Bayer"]
["Fame (250ml) Bayer",null,16,5,11]
["Fame (50ml) Bayer",18,320,274,64]
["Fenos Quick Sc 100ml",null,550,521,29]
["Folicur 500ml",4,80,78,6]
["Folicure (100ml) Bayer",11,1000,881,130]
["Folicure (250ml) Bayer",-14,680,610,56]
["Foost 250g",5,40,35,10]
["Foost 500g",-9,168,95,64]
["Gaucho 100ml Bayer",8,1290,1055,243]
["Gaucho (50ml) Bayer",143,3300,2896,547]
["Gaucho 9ml",null,2200,2203,-3]
["Infinito 100ml",null,300,263,37]
["Infinito 1lit",null,80,37,43]
["Infinito 500ml",null,360,304,56]
["Jump 2gm",null,1600,196,1404]
["Jump Wg 80 (40gm) Bayer",null,80,83,-3]
["Kaligad Maxx 1000seeds",null,6,6]
["Larvin 100g"]
["Larvin (250gm) Bayer",22,360,249,133]
["Larvin (500gm) Bayer",null,100,37,63]
["Laudis 115ml",-46,80,64,-30]
["Laudis 57.5 Ml",8,30,33,5]
["Lesenta 40gm",null,600,449,151]
["Luna 100ml",2,250,204,48]
["Luna 1ltr",null,120,77,43]
["Luna 250ml",15,800,803,12]
["Maize All Rounder 5kg",null,null,9,-9]
["Maize Dekalb9141 3.5kg",null,16,8,8]
["Meladu (100gm) Bayer",null,850,765,85]
["Meladu (500gm) Bayer"]
["Meladu (800g)Bayer",34,null,34]
["Melody Deo 400gm",29,590,504,115]
["Melody Deo 800gm",null,1150,715,435]
["Movento Energy 100ml",null,50,21,29]
["Movento Energy 1ltr",null,90,88,2]
["Movento Enragy 250ml",7,440,382,65]
["Movento Od 1lit",null,20,21,-1]
["Movento Od 250ml",null,160,121,39]
["Movento Od 500ml",null,60,43,17]
["Nativo 100gm",35,1100,1041,94]
["Nativo 1kg",null,10,10]
["Nativo 500gm",null,40,40]
["Nativo 50gm",-27,1300,1260,13]
["Nativo Wg 250g",21,280,211,90]
["Netio (100gm) Bayer"]
["Netio (250gm) Bayer"]
["Oberon 100ml",null,50,27,23]
["Oberon 200ml",null,280,213,67]
["Planofix 100ml",13,400,327,86]
["Planofix 500ml"]
["Planoix 250ml"]
["Profiler 1kg",2,80,79,3]
["Profiler 250gm",19,null,18,1]
["Regent (100gm) Bayer"]
["Regent (1kg) Bayer",3,700,532,171]
["Regent (5kg) Bayer",null,480,416,64]
["Regent Gold 100ml",32,null,28,4]
["Regent Sc 1L",null,130,121,9]
["Regent SC 250ml",1,400,336,65]
["Regent SC 500ml",2,340,281,61]
["Regent Ultra 4kg",null,75,61,14]
["Sectin 1kg"]
["Sectin (600gm) Bayer"]
["Sencor 100gm BAYER",4,900,781,123]
["Sencor 500gm",null,40,40]
["Soloman 100ml",19,1650,1504,165]
["Solomon 1L",null,100,101,-1]
["Solomon 250ml",20,1560,1429,151]
["Solomon 500ml",null,380,366,14]
["Spinter (75ml) Bayer",5,null,null,5]
["Sunrice 50gm",null,200,100,100]
["Super Confidor 500ml",null,40,40]
["Super Confidor Sc (100ml) Bayer",-2,450,463,-15]
["Super Confidor Sc (250ml) Bayer",-1,100,87,12]
["Super Confidor Sc (50ml) Bayer",59,500,495,64]
["Velum Prime 250ml",null,160,128,32]
["Velum Prime 500ml",null,80,72,8]
["Whipsuper 100ml",36,1050,1027,59]
["WHIP SUPER 250ML",-3,520,504,13]
["Whip Super 500ml",1,100,101]
["Grand Total",966,54071,46659,8378]

{"sheet":"Dealer Report working","index":2,"n_rows":116,"n_cols":14,"rows_kept":116,"cut":false,"hidden":false,"merged":[]}
["Particulars","Opening Qty","Purchase Qty","Sales Qty","CLSG","Master Name",null,null,null,null,"Values"]
["Admire (150gm) Bayer",14,null,17,-3,"ADMIRE (T) WG70 30X150GR BOT IN",null,null,null,"Row Labels","Sum of Opening Qty","Sum of Purchase Qty","Sum of Sales Qty","Sum of CLSG"]
["Admire (2gm) Bayer",null,7800,6798,1002,"ADMIRE WG70 125X(8X2GR) BAG IN",null,null,null,"ADMIRE (T) WG70 150X30GR BOT IN",58,450,446,62]
["Admire (300gm) Bayer",12,160,145,27,"ADMIRE WG70 20X300GR BAG IN",null,null,null,"ADMIRE (T) WG70 30X150GR BOT IN",14,null,17,-3]
["Admire (30gm) Bayer",58,450,446,62,"ADMIRE (T) WG70 150X30GR BOT IN",null,null,null,"ADMIRE (T) WG70 60X75GR BOT IN",1,180,159,22]
["Admire (75gm) Bayer",1,180,159,22,"ADMIRE (T) WG70 60X75GR BOT IN",null,null,null,"ADMIRE WG70 125X(8X2GR) BAG IN",null,7800,6798,1002]
["Aliete 1kg",6,220,190,36,"ALIETTE WP80 10X1KG BAG IN",null,null,null,"ADMIRE WG70 20X300GR BAG IN",12,160,145,27]
["Aliette 250gm Bayer",null,null,null,null,"ALIETTE WP80 20X250GR BAG IN",null,null,null,"ALIETTE WP80 10X1KG BAG IN",6,220,190,36]
["Aliette 500gm",-6,320,317,-3,"ALIETTE WP80 20X500GR BAG IN",null,null,null,"ALIETTE WP80 20X250GR BAG IN"]
["Ambition 100ml",null,500,383,117,"AMBITION 50X100ML BOT IN",null,null,null,"ALIETTE WP80 20X500GR BAG IN",-6,320,317,-3]
["Ambition 1ltr",14,100,115,-1,"AMBITION 10X1L BOT IN",null,null,null,"AMBITION 10X1L BOT IN",14,100,115,-1]
["Ambition 1ltr (5%)",null,null,null,null,"AMBITION 10X1L BOT IN",null,null,null,"AMBITION 20X500ML BOT IN",30,840,642,228]
["Ambition 250ml",25,1080,942,163,"AMBITION 40X250ML BOT IN",null,null,null,"AMBITION 40X250ML BOT IN",25,1080,942,163]
["Ambition 500ml",30,840,642,228,"AMBITION 20X500ML BOT IN",null,null,null,"AMBITION 50X100ML BOT IN",null,500,383,117]
["Antracol (1kg) Bayer",9,1150,995,164,"ANTRACOL (T) WP70 10X1KG BAG IN",null,null,null,"ANTRACOL (T) WP70 10X1KG BAG IN",9,1150,995,164]
["Antracol (250gm) Bayer",67,1840,1807,100,"ANTRACOL (T) WP70 40X250GR BAG IN",null,null,null,"ANTRACOL (T) WP70 20X500GR BAG IN",164,2400,2083,481]
["Antracol (500gm) Bayer",164,2400,2083,481,"ANTRACOL (T) WP70 20X500GR BAG IN",null,null,null,"ANTRACOL (T) WP70 40X250GR BAG IN",67,1840,1807,100]
["Bayfolan Algae 250ml",null,null,null,null,"Bayer",null,null,null,"Bayer"]
["Bayfolan Algae 500ml",null,null,null,null,"bayer",null,null,null,"BELT EXPERT SC480 50X100ML BOT IN",1,150,120,31]
["Belt Expert 100ml",1,150,120,31,"BELT EXPERT SC480 50X100ML BOT IN",null,null,null,"BUONOS SC430 40X250ML BOT IN",null,320,298,22]
["Buonos 250ml",null,320,298,22,"BUONOS SC430 40X250ML BOT IN",null,null,null,"C DK DKC9141 3.5KG",null,16,8,8]
["Confidor 100ml",25,150,143,32,"CONFIDOR (T) SL200 50X100ML BOT IN",null,null,null,"C MS ALLROUNDER 5KG IN",null,null,9,-9]
["Confidor 1ltr",null,50,35,15,"CONFIDOR (T) SL200 10X1L BOT IN",null,null,null,"CONFIDOR (T) SL200 100X50ML BOT IN",null,100,77,23]
["Confidor (250ml) Bayer",18,40,55,3,"CONFIDOR (T) SL200 20X250ML BOT IN",null,null,null,"CONFIDOR (T) SL200 10X1L BOT IN",null,50,35,15]
["Confidor 500ml",null,100,51,49,"CONFIDOR (T) SL200 20X500ML BOT IN",null,null,null,"CONFIDOR (T) SL200 20X250ML BOT IN",18,40,55,3]
["Confidor (50ml) Bayer",null,100,77,23,"CONFIDOR (T) SL200 100X50ML BOT IN",null,null,null,"CONFIDOR (T) SL200 20X500ML BOT IN",null,100,51,49]
["Desis 100 (100ml) Bayer",14,1400,1313,101,"DECIS EC101-2 50X100ML BOX IN",null,null,null,"CONFIDOR (T) SL200 50X100ML BOT IN",25,150,143,32]
["Desis 100 (250ml) Bayer",34,520,519,35,"DECIS EC101-2 40X250ML BOT IN",null,null,null,"CONFIDOR SUPER (T) SC350 20X250ML BOT IN",-1,100,87,12]
["Desis 1ltr",null,50,50,null,"DECIS EC 28 10X1L BOT IN",null,null,null,"CONFIDOR SUPER (T) SC350 20X500ML BOT IN",null,40,40]
["Desis 50ml",null,300,200,100,"DECIS EC101-2 100X50ML BOT IN",null,null,null,"CONFIDOR SUPER (T) SC350 50X100ML BOT IN",-2,450,463,-15]
["Ethrel (100ml)",null,250,149,101,"ETHREL SL39 50X100ML BOT IN",null,null,null,"CONFIDOR SUPER (T) SC350 50X50ML BOT IN",59,500,495,64]
["Ethrel 1lit (Bayer)",null,250,214,36,"ETHREL SL39 10X1L BOT IN",null,null,null,"DECIS EC 28 10X1L BOT IN",null,50,50]
["Ethrel (500ml) Bayer",-1,200,211,-12,"ETHREL SL39 20X500ML BOT IN",null,null,null,"DECIS EC101-2 100X50ML BOT IN",null,300,200,100]
["Evergol 40ml",null,1700,1658,42,"EVERGOL XTEND FS308 100X40ML BOT IN",null,null,null,"DECIS EC101-2 40X250ML BOT IN",34,520,519,35]
["Fame (100ml) Bayer",5,120,119,6,"FAME (T) SC480 20X100ML BOT IN",null,null,null,"DECIS EC101-2 50X100ML BOX IN",14,1400,1313,101]
["Fame (1ltr) Bayer",null,null,null,null,"FAME (T) SC480 20X100ML BOT IN",null,null,null,"DISCOUNTINUE PRODUCT",null,6,6]
["Fame (250ml) Bayer",null,16,5,11,"FAME (T) SC480 8X250ML BOT IN",null,null,null,"ETHREL SL39 10X1L BOT IN",null,250,214,36]
["Fame (50ml) Bayer",18,320,274,64,"FAME (T) SC480 40X50ML BOT IN",null,null,null,"ETHREL SL39 20X500ML BOT IN",-1,200,211,-12]
["Fenos Quick Sc 100ml",null,550,521,29,"FENOS QUICK SC150 50X100ML BOT IN",null,null,null,"ETHREL SL39 50X100ML BOT IN",null,250,149,101]
["Folicur 500ml",4,80,78,6,"FOLICUR (T) EC250 20X500ML BOT IN",null,null,null,"EVERGOL XTEND FS308 100X40ML BOT IN",null,1700,1658,42]
["Folicure (100ml) Bayer",11,1000,881,130,"FOLICUR (T) EC250 50X100ML BOT IN",null,null,null,"FAME (T) SC480 20X100ML BOT IN",5,120,119,6]
["Folicure (250ml) Bayer",-14,680,610,56,"FOLICUR (T) EC250 40X250ML BOT IN",null,null,null,"FAME (T) SC480 40X50ML BOT IN",18,320,274,64]
["Foost 250g",5,40,35,10,"FOOST WP50 20X250G BAG IN",null,null,null,"FAME (T) SC480 8X250ML BOT IN",null,16,5,11]
["Foost 500g",-9,168,95,64,"FOOST WP50 24X500G BAG IN",null,null,null,"FENOS QUICK SC150 50X100ML BOT IN",null,550,521,29]
["Gaucho 100ml Bayer",8,1290,1055,243,"GAUCHO FS600 50X100ML BOT IN",null,null,null,"FOLICUR (T) EC250 20X500ML BOT IN",4,80,78,6]
["Gaucho (50ml) Bayer",143,3300,2896,547,"GAUCHO FS600 100X50ML BOT IN",null,null,null,"FOLICUR (T) EC250 40X250ML BOT IN",-14,680,610,56]
["Gaucho 9ml",null,2200,2203,-3,"GAUCHO FS600 5X(20X9)ML BOT IN",null,null,null,"FOLICUR (T) EC250 50X100ML BOT IN",11,1000,881,130]
["Infinito 100ml",null,300,263,37,"INFINITO SC687 5 50X100ML BOT IN",null,null,null,"FOOST WP50 20X250G BAG IN",5,40,35,10]
["Infinito 1lit",null,80,37,43,"INFINITO SC687 5 10X1L BOT IN",null,null,null,"FOOST WP50 24X500G BAG IN",-9,168,95,64]
["Infinito 500ml",null,360,304,56,"INFINITO SC687 5 20X500ML BOT IN",null,null,null,"GAUCHO FS600 100X50ML BOT IN",143,3300,2896,547]
["Jump 2gm",null,1600,196,1404,"JUMP WG80 160X(10X2GR) BAG IN",null,null,null,"GAUCHO FS600 50X100ML BOT IN",8,1290,1055,243]
["Jump Wg 80 (40gm) Bayer",null,80,83,-3,"JUMP WG80 80X40GR BAG IN",null,null,null,"GAUCHO FS600 5X(20X9)ML BOT IN",null,2200,2203,-3]
["Kaligad Maxx 1000seeds",null,6,6,null,"DISCOUNTINUE PRODUCT",null,null,null,"INFINITO SC687 5 10X1L BOT IN",null,80,37,43]
["Larvin 100g",null,null,null,null,"LARVIN (T) WP75 40X100GR BAG IN",null,null,null,"INFINITO SC687 5 20X500ML BOT IN",null,360,304,56]
["Larvin (250gm) Bayer",22,360,249,133,"LARVIN (T) WP75 20X250GR BAG IN",null,null,null,"INFINITO SC687 5 50X100ML BOT IN",null,300,263,37]
["Larvin (500gm) Bayer",null,100,37,63,"LARVIN (T) WP75 20X500GR BAG IN",null,null,null,"JUMP WG80 160X(10X2GR) BAG IN",null,1600,196,1404]
["Laudis 115ml",-46,80,64,-30,"LAUDIS SC630 8X115ML BOT IN",null,null,null,"JUMP WG80 80X40GR BAG IN",null,80,83,-3]
["Laudis 57.5 Ml",8,30,33,5,"LAUDIS SC630 10X57.5ML BOT IN",null,null,null,"LARVIN (T) WP75 20X250GR BAG IN",22,360,249,133]
["Lesenta 40gm",null,600,449,151,"LESENTA WG80 100X40GR BAG IN",null,null,null,"LARVIN (T) WP75 20X500GR BAG IN",null,100,37,63]
["Luna 100ml",2,250,204,48,"LUNA EXPERIENCE SC400 50X100ML BOT IN",null,null,null,"LARVIN (T) WP75 40X100GR BAG IN"]
["Luna 1ltr",null,120,77,43,"LUNA EXPERIENCE SC400 10X1L BOT IN",null,null,null,"LAUDIS SC630 10X57.5ML BOT IN",8,30,33,5]
["Luna 250ml",15,800,803,12,"LUNA EXPERIENCE SC400 40X250ML BOT IN",null,null,null,"LAUDIS SC630 8X115ML BOT IN",-46,80,64,-30]
["Maize All Rounder 5kg",null,null,9,-9,"C MS ALLROUNDER 5KG IN",null,null,null,"LESENTA WG80 100X40GR BAG IN",null,600,449,151]
["Maize Dekalb9141 3.5kg",null,16,8,8,"C DK DKC9141 3.5KG",null,null,null,"LUNA EXPERIENCE SC400 10X1L BOT IN",null,120,77,43]
["Meladu (100gm) Bayer",null,850,765,85,"MELODY DUO WP66 8 50X100GR BAG IN",null,null,null,"LUNA EXPERIENCE SC400 40X250ML BOT IN",15,800,803,12]
["Meladu (500gm) Bayer",null,null,null,null,"DISCOUNTINUE PRODUCT",null,null,null,"LUNA EXPERIENCE SC400 50X100ML BOT IN",2,250,204,48]
["Meladu (800g)Bayer",34,null,34,null,"MELODY DUO WP66 8 10X800G BAG IN",null,null,null,"MELODY DUO WP66 8 10X400GR BAG IN",29,590,504,115]
["Melody Deo 400gm",29,590,504,115,"MELODY DUO WP66 8 10X400GR BAG IN",null,null,null,"MELODY DUO WP66 8 10X800G BAG IN",34,1150,749,435]
["Melody Deo 800gm",null,1150,715,435,"MELODY DUO WP66 8 10X800G BAG IN",null,null,null,"MELODY DUO WP66 8 50X100GR BAG IN",null,850,765,85]
["Movento Energy 100ml",null,50,21,29,"MOVENTO ENERGY SC240 50X100ML BOT IN",null,null,null,"MOVENTO ENERGY SC240 10X1L BOT IN",null,90,88,2]
["Movento Energy 1ltr",null,90,88,2,"MOVENTO ENERGY SC240 10X1L BOT IN",null,null,null,"MOVENTO ENERGY SC240 50X100ML BOT IN",null,50,21,29]
["Movento Enragy 250ml",7,440,382,65,"MOVENTO OD150 40X250ML BOT IN",null,null,null,"MOVENTO OD150 10X1L BOT IN",null,20,21,-1]
["Movento Od 1lit",null,20,21,-1,"MOVENTO OD150 10X1L BOT IN",null,null,null,"MOVENTO OD150 20X500ML BOT IN",null,60,43,17]
["Movento Od 250ml",null,160,121,39,"MOVENTO OD150 40X250ML BOT IN",null,null,null,"MOVENTO OD150 40X250ML BOT IN",7,600,503,104]
["Movento Od 500ml",null,60,43,17,"MOVENTO OD150 20X500ML BOT IN",null,null,null,"NATIVO WG75 100X50GR BAG IN",-27,1300,1260,13]
["Nativo 100gm",35,1100,1041,94,"NATIVO WG75 50X100GR BAG IN",null,null,null,"NATIVO WG75 10X1KG BAG IN",null,10,10]
["Nativo 1kg",null,10,10,null,"NATIVO WG75 10X1KG BAG IN",null,null,null,"NATIVO WG75 20X500GR BAG IN",null,40,40]
["Nativo 500gm",null,40,40,null,"NATIVO WG75 20X500GR BAG IN",null,null,null,"NATIVO WG75 40X250GR BAG IN",21,280,211,90]
["Nativo 50gm",-27,1300,1260,13,"NATIVO WG75 100X50GR BAG IN",null,null,null,"NATIVO WG75 50X100GR BAG IN",35,1100,1041,94]
["Nativo Wg 250g",21,280,211,90,"NATIVO WG75 40X250GR BAG IN",null,null,null,"OBERON (T) SC240 40X200ML BOT IN",null,280,213,67]
["Netio (100gm) Bayer",null,null,null,null,"NATIVO WG75 50X100GR BAG IN",null,null,null,"OBERON (T) SC240 50X100ML BOT IN",null,50,27,23]
["Netio (250gm) Bayer",null,null,null,null,"NATIVO WG75 40X250GR BAG IN",null,null,null,"PLANOFIX SL4 5 20X500ML BOT IN"]
["Oberon 100ml",null,50,27,23,"OBERON (T) SC240 50X100ML BOT IN",null,null,null,"PLANOFIX SL4 5 50X100ML BOT IN",13,400,327,86]
["Oberon 200ml",null,280,213,67,"OBERON (T) SC240 40X200ML BOT IN",null,null,null,"PROFILER WG71 11 10X1KG BAG IN",2,80,79,3]
["Planofix 100ml",13,400,327,86,"PLANOFIX SL4 5 50X100ML BOT IN",null,null,null,"PROFILER WG71 11 20X250GR BAG IN",19,null,18,1]
["Planofix 500ml",null,null,null,null,"PLANOFIX SL4 5 20X500ML BOT IN",null,null,null,"REGENT (T) SC50 10X1L BOT IN",3,830,653,180]
["Planoix 250ml",null,null,null,null,null,null,null,null,"REGENT (T) SC50 20X250ML BOT IN",1,400,336,65]
["Profiler 1kg",2,80,79,3,"PROFILER WG71 11 10X1KG BAG IN",null,null,null,"REGENT (T) SC50 20X500ML BOT IN",2,340,281,61]
["Profiler 250gm",19,null,18,1,"PROFILER WG71 11 20X250GR BAG IN",null,null,null,"REGENT (T) SC50 50X100ML BOT IN"]
["Regent (100gm) Bayer",null,null,null,null,"REGENT (T) SC50 50X100ML BOT IN",null,null,null,"REGENT GOLD SC200 50X100ML BOT IN",32,null,28,4]
["Regent (1kg) Bayer",3,700,532,171,"REGENT (T) SC50 10X1L BOT IN",null,null,null,"REGENT GR0 3 4X5KG BAG IN",null,480,416,64]
["Regent (5kg) Bayer",null,480,416,64,"REGENT GR0 3 4X5KG BAG IN",null,null,null,"REGENT ULTRA GR0 6 5X4KG BAG IN",null,75,61,14]
["Regent Gold 100ml",32,null,28,4,"REGENT GOLD SC200 50X100ML BOT IN",null,null,null,"SECTIN WG60 10X1KG BAG IN"]
["Regent Sc 1L",null,130,121,9,"REGENT (T) SC50 10X1L BOT IN",null,null,null,"SECTIN WG60 20X600GR BAG IN"]
["Regent SC 250ml",1,400,336,65,"REGENT (T) SC50 20X250ML BOT IN",null,null,null,"SENCOR WP70 20X500GR BOX IN",null,40,40]
["Regent SC 500ml",2,340,281,61,"REGENT (T) SC50 20X500ML BOT IN",null,null,null,"SENCOR WP70 60X100GR BAG IN",4,900,781,123]
["Regent Ultra 4kg",null,75,61,14,"REGENT ULTRA GR0 6 5X4KG BAG IN",null,null,null,"SOLOMON OD300 10X1L BOT IN",null,100,101,-1]
["Sectin 1kg",null,null,null,null,"SECTIN WG60 10X1KG BAG IN",null,null,null,"SOLOMON OD300 20X500ML BOT IN",null,380,366,14]
["Sectin (600gm) Bayer",null,null,null,null,"SECTIN WG60 20X600GR BAG IN",null,null,null,"SOLOMON OD300 40X250ML BOT IN",20,1560,1429,151]
["Sencor 100gm BAYER",4,900,781,123,"SENCOR WP70 60X100GR BAG IN",null,null,null,"SOLOMON OD300 50X100ML BOT IN",19,1650,1504,165]
["Sencor 500gm",null,40,40,null,"SENCOR WP70 20X500GR BOX IN",null,null,null,"SPINTOR SC495 20X75ML BOT IN",5,null,null,5]
["Soloman 100ml",19,1650,1504,165,"SOLOMON OD300 50X100ML BOT IN",null,null,null,"SUNRICE WG15 100X50GR BOT IN",null,200,100,100]
["Solomon 1L",null,100,101,-1,"SOLOMON OD300 10X1L BOT IN",null,null,null,"VELUM PRIME SC400 20X500ML BOT IN",null,80,72,8]
["Solomon 250ml",20,1560,1429,151,"SOLOMON OD300 40X250ML BOT IN",null,null,null,"VELUM PRIME SC400 40X250ML BOT IN",null,160,128,32]
["Solomon 500ml",null,380,366,14,"SOLOMON OD300 20X500ML BOT IN",null,null,null,"WHIPSUPER (T) EC90 20X500ML BOT IN",1,100,101]
["Spinter (75ml) Bayer",5,null,null,5,"SPINTOR SC495 20X75ML BOT IN",null,null,null,"WHIPSUPER (T) EC90 40X250ML BOT IN",-3,520,504,13]
["Sunrice 50gm",null,200,100,100,"SUNRICE WG15 100X50GR BOT IN",null,null,null,"WHIPSUPER (T) EC90 50X100ML BOT IN",36,1050,1027,59]
["Super Confidor 500ml",null,40,40,null,"CONFIDOR SUPER (T) SC350 20X500ML BOT IN",null,null,null,"(blank)"]
["Super Confidor Sc (100ml) Bayer",-2,450,463,-15,"CONFIDOR SUPER (T) SC350 50X100ML BOT IN",null,null,null,"Grand Total",966,54071,46659,8378]
["Super Confidor Sc (250ml) Bayer",-1,100,87,12,"CONFIDOR SUPER (T) SC350 20X250ML BOT IN"]
["Super Confidor Sc (50ml) Bayer",59,500,495,64,"CONFIDOR SUPER (T) SC350 50X50ML BOT IN"]
["Velum Prime 250ml",null,160,128,32,"VELUM PRIME SC400 40X250ML BOT IN"]
["Velum Prime 500ml",null,80,72,8,"VELUM PRIME SC400 20X500ML BOT IN"]
["Whipsuper 100ml",36,1050,1027,59,"WHIPSUPER (T) EC90 50X100ML BOT IN"]
["WHIP SUPER 250ML",-3,520,504,13,"WHIPSUPER (T) EC90 40X250ML BOT IN"]
["Whip Super 500ml",1,100,101,null,"WHIPSUPER (T) EC90 20X500ML BOT IN"]

{"sheet":"Master","index":3,"n_rows":2016,"n_cols":2,"rows_kept":2016,"cut":false,"hidden":false,"merged":[]}
["Item Details","Master Name"]
["ADMIRE 150 GM","ADMIRE (T) WG70 30X150GR BOT IN"]
["ADMIRE 16 GM","ADMIRE WG70 125X(8X2GR) BAG IN"]
["ADMIRE 75 GM","ADMIRE (T) WG70 60X75GR BOT IN"]
["ADORA 10 ML","ADORA (T) SC100 100X10ML BOT IN"]
["ADORA 100 ML","ADORA (T) SC100 50X100ML BOT IN"]
["ADORA 50 ML","ADORA (T) SC100 50X50ML BOT IN"]
["ADUE 100 GM","ADUE WG70 6X100G BOT IN"]
["ADUE 40 GM","ADUE WG70 15X40G BOT IN"]
["Alanto 100 Ml","ALANTO (T) SC240 50X100ML BOT IN"]
["ALIETTE 1 KG","ALIETTE WP80 10X1KG BAG IN"]
["Aliette 100 Gm","ALIETTE WP80 40X100GR BAG IN"]
["ALIETTE 250 GM","ALIETTE WP80 20X250GR BAG IN"]
["ALIETTE 500 GR","ALIETTE WP80 20X500GR BAG IN"]
["ANTRACOL 1 KG","ANTRACOL (T) WP70 10X1KG BAG IN"]
["ANTRACOL 100 GM","ANTRACOL (T) WP70 50X100GR BAG IN"]
["ANTRACOL 250 GM","ANTRACOL (T) WP70 40X250GR BAG IN"]
["ANTRACOL 500 GM","ANTRACOL (T) WP70 20X500GR BAG IN"]
["ATLANTIS 160 GR","ATLANTIS KL3 6 15X160GR BOT IN"]
["BERDERA 1 KG","BERDERA WG50 4X1KG BOT IN"]
["BERDERA 500 GM","BERDERA WG50 8X500G BOT IN"]
["CONFIDOR 1 LTR","CONFIDOR (T) SL200 10X1L BOT IN"]
["CONFIDOR 100 ML","CONFIDOR (T) SL200 50X100ML BOT IN"]
["CONFIDOR 250 ML","CONFIDOR (T) SL200 20X250ML BOT IN"]
["CONFIDOR 500 ML","CONFIDOR (T) SL200 20X500ML BOT IN"]
["CONFIDOR SUPER 1 LTR","CONFIDOR SUPER (T) SC350 10X1L BOT IN"]
["CONFIDOR SUPER 100 ML","CONFIDOR SUPER (T) SC350 50X100ML BOT IN"]
["CONFIDOR SUPER 250 ML","CONFIDOR SUPER (T) SC350 20X250ML BOT IN"]
["CONFIDOR SUPER 500 ML","CONFIDOR SUPER (T) SC350 20X500ML BOT IN"]
["COUNCIL ACTIV (WG30 ) 45GM","COUNCIL ACTIV WG30 12X(5X90GR) BOX IN"]
["COUNCIL ACTIV (WG30) 90GM","COUNCIL ACTIV WG30 12X(5X90GR) BOX IN"]
["DECIS 2.8 1 LTR","DECIS EC 28 10X1L BOT IN"]
["Decis Ec2.8 100 Ml","DECIS EC 28 50X100ML BOT IN"]
["DECIS EC2.8 250 ML","DECIS EC 28 40X250ML BOT IN"]
["DECIS EC2.8 500 ML","DECIS EC 28 20X500ML BOT IN"]
["ETHREL 100 ML","ETHREL SL39 50X100ML BOT IN"]
["Evergol Xtend 40 ml","EVERGOL XTEND FS308 100X40ML BOT IN"]
["FAME 10 ML","FAME (T) SC480 10X(20X10ML) BOT IN"]
["FAME 100 ML","FAME (T) SC480 20X100ML BOT IN"]
["FAME 250 ML","FAME (T) SC480 8X250ML BOT IN"]
["FAME 50 ML","FAME (T) SC480 40X50ML BOT IN"]
["FAME 500 ML","FAME (T) SC480 4X500ML BOT IN"]
["FOLICUR 1 LTR","FOLICUR (T) EC250 10X1L BOT IN"]
["FOLICUR 100 ML","FOLICUR (T) EC250 50X100ML BOT IN"]
["FOLICUR 250 ML","FOLICUR (T) EC250 40X250ML BOT IN"]
["FOLICUR 500 ML","FOLICUR (T) EC250 20X500ML BOT IN"]
["FOOST 500 GM","FOOST WP50 24X500G BAG IN"]
["GAUCHO 1 LTR","GAUCHO FS600 2X(5X1L) BOT IN"]
["GAUCHO 100 ML","GAUCHO FS600 50X100ML BOT IN"]
["GAUCHO 5 LTR","GAUCHO FS600 2X5L BOT IN"]
["GAUCHO 50 ML","GAUCHO FS600 100X50ML BOT IN"]
["GLAMORE 100 GM","GLAMORE WG80 2X(10X100)G BAG IN"]
["GLAMORE 250 GM","GLAMORE WG80 8X250GR BAG IN"]
["Glamore 50 Ml","GLAMORE WG80 4X(10X50)G BAG IN"]
["JUMP 40GM","JUMP WG80 80X40GR BAG IN"]
["LARVIN 100 GM","LARVIN (T) WP75 40X100GR BAG IN"]
["LARVIN 250 GM","LARVIN (T) WP75 20X250GR BAG IN"]
["LARVIN 500 KG","LARVIN (T) WP75 20X500GR BAG IN"]
["LAUDIS 115 ML","LAUDIS SC630 8X115ML BOT IN"]
["LAUDIS 230 ML","LAUDIS SC630 3X230ML BOT IN"]
["Lesenta 100 Gm","LESENTA WG80 50X100GR BAG IN"]
["Lesenta 250 Gm","LESENTA WG80 20X250GR BAG IN"]
["Lesenta 40 Gm","LESENTA WG80 100X40GR BAG IN"]
["LUCIFER 160 GR","LUCIFER (T) WP15 25X160GR BAG IN"]
["MELODY DUO 100 GM","MELODY DUO WP66 8 50X100GR BAG IN"]
["MELODY DUO 400 GM","MELODY DUO WP66 8 10X400GR BAG IN"]
["MELODY DUO 800 GM","MELODY DUO WP66 8 10X800G BAG IN"]
["MOMI JI 60GM","MOMIJI WG85 50X60G BOT IN"]
["Movento Energy 1 Ltr.","MOVENTO ENERGY SC240 10X1L BOT IN"]
["Movento Energy 250 Ml","MOVENTO ENERGY SC240 40X250ML BOT IN"]
["Movento OD 250 ML","MOVENTO OD150 40X250ML BOT IN"]
["NATIVO 1 KG","NATIVO WG75 10X1KG BAG IN"]
["Nativo 100 Gm","NATIVO WG75 50X100GR BAG IN"]
["NATIVO 250 GM","NATIVO WG75 40X250GR BAG IN"]
["NATIVO 500 GM","NATIVO WG75 20X500GR BAG IN"]
["OBERON 1 LTR","OBERON (T) SC240 10X1L BOT IN"]
["OBERON 100 ML","OBERON (T) SC240 50X100ML BOT IN"]
["OBERON 200 ML","OBERON (T) SC240 40X200ML BOT IN"]
["OBERON 500 ML","OBERON (T) SC240 20X500ML BOT IN"]
["Planofix 1 Ltr.","PLANOFIX SL45 10X1L BOT IN"]
["Planofix 100 Ml","PLANOFIX SL4 5 50X100ML BOT IN"]
["Planofix 250 Ml","PLANOFIX SL4 5 40X250ML BOT IN"]
["Planofix 500 Gm","PLANOFIX SL4 5 20X500ML BOT IN"]
["Raxil Ds2 100 Gm","RAXIL (T) DS2 5X(10X100GR) BAG IN"]
["RAXIL EASY 100 ML","RAXIL EASY FS60 50X100ML BOT IN"]
["Raxil Easy 13.4 Ml","RAXIL EASY FS60 10X(20X13.4ML) BOT IN"]
["Raxil Easy 50 Ml","RAXIL EASY FS60 100X50ML BOT IN"]
["REGENT GOLD SC 100 ML","REGENT GOLD SC200 50X100ML BOT IN"]
["REGENT GOLD SC 250 ML","REGENT GOLD SC200 40X250ML BOT IN"]
["REGENT GOLD SC 500 ML","REGENT GOLD SC200 20X500ML BOT IN"]
["REGENT GR 5 KG","REGENT GR0 3 4X5KG BAG IN"]
["REGENT SC 1 LTR","REGENT (T) SC50 10X1L BOT IN"]
["REGENT SC 100 GM","REGENT (T) SC50 50X100ML BOT IN"]
["REGENT SC 250 GM","REGENT (T) SC50 20X250ML BOT IN"]
["REGENT SC 500 ML","REGENT (T) SC50 20X500ML BOT IN"]
["REGENT ULTRA 4 KG","REGENT ULTRA GR0 6 5X4KG BAG IN"]
["RICESTAR EC69 1 LTR","RICESTAR EC69 10X1L BOT IN"]
["RICESTAR EC69 250 ML","RICESTAR EC69 40X250ML BOT IN"]
["RICESTAR EC69 500 ML","RICESTAR EC69 20X500ML BOT IN"]
["ROUNDUP 1 LTR","ROUNDUP 41% SL (IN) 10X1 LTR"]
["ROUNDUP 5 LTR.","ROUNDUP 41% SL (IN) 2X5 LTR"]
["ROUNDUP 500 ML","ROUNDUP 41% SL (IN) 20X500 ML"]
["SECTIN 100 GM","SECTIN WG60 50X100GR BAG IN"]
["SECTIN 600 GR","SECTIN WG60 20X600GR BAG IN"]
["SENCOR 100 GM","SENCOR WP70 60X100GR BAG IN"]
["SIMBOLA (T-SG 20 ) 500 GM","SIMBOLA (T) SG20 10X500G BOT IN"]
["SIMBOLA (T-SG 20) 100 GM","SIMBOLA (T) SG20 50X100G BOT IN"]
["SIMBOLA (T-SG20) 250GM","SIMBOLA (T) SG20 20X250G BOT IN"]
["SIMBOLA 1 KG","SIMBOLA (T) SG20 10X1KG BOT IN"]
["Sivanto Prime 1 Ltr.","SIVANTO PRIME SL200 10X1L BOT IN"]
["Sivanto Prime 100 Ml","SIVANTO PRIME SL200 50X100ML BOT IN"]
["Sivanto Prime 250 Ml","SIVANTO PRIME SL200 40X250ML BOT IN"]
["Sivanto Prime 500 Ml","SIVANTO PRIME SL200 20X500ML BOT IN"]
["SOLOMON 1 LTR","SOLOMON OD300 10X1L BOT IN"]
["SOLOMON 100 ML","SOLOMON OD300 50X100ML BOT IN"]
["SOLOMON 250 ML","SOLOMON OD300 40X250ML BOT IN"]
["SOLOMON 500 ML","SOLOMON OD300 20X500ML BOT IN"]
["SPINTOR 75 ML","SPINTOR SC495 20X75ML BOT IN"]
["Sunrice 50 Gm","SUNRICE WG15 100X50GR BOT IN"]
["TOPSTAR 22.5 GM","TOPSTAR (T) WP80 8X(20X22.5GR) BOX IN"]
["Velum Prime 500 Gm","VELUM PRIME SC400 20X500ML BOT IN"]
["WHIPSUPER 1 LTR","WHIPSUPER (T) EC90 10X1L BOT IN"]
["WHIPSUPER 250 ML","WHIPSUPER (T) EC90 40X250ML BOT IN"]
["ALANTO  SC240 (100 Ml)","ALANTO (T) SC240 50X100ML BOT IN"]
["Antracol (1 Kg)","ANTRACOL (T) WP70 10X1KG BAG IN"]
["Antracol 500gm","ANTRACOL (T) WP70 10X1KG BAG IN"]
["Council Activ WG 30 (45gm)","COUNCIL ACTIV WG30 8X(10X45GR) BOX IN"]
["Decis EC (100ml)","DECIS EC 28 10X1L BOT IN"]
["Emesto Prime FS240 (100 Ml)","EMESTO PRIME FS240 50X100ML BOT IN"]
["Emesto Prime FS240 (250 Ml)","EMESTO PRIME FS240 40X250ML BOT IN"]
["Emesto Prime FS240 1LTR.","EMESTO PRIME FS240 10X1L BOT IN"]
["FOOST WP50 (250gm)","FOOST WP50 20X250G BAG IN"]
["LAUDIS SC630 (57.5 Ml)","LAUDIS SC630 10X57.5ML BOT IN"]
["Monceren Sc250 (1 Ltr.)","MONCEREN SC250 10X1L BOT IN"]
["Monceren Sc250 (500 Ml)","MONCEREN SC250 20X500ML BOT IN"]
["NATIVO (1kg)","NATIVO WG75 10X1KG BAG IN"]
["Nativo WG75 (100gm)","NATIVO WG75 50X100GR BAG IN"]
["SECTIN WG60 600gm","SECTIN WG60 20X600GR BAG IN"]
["Sencor WP70 100gm","SENCOR WP70 60X100GR BAG IN"]
["SOLOMON 100ml","SOLOMON OD300 50X100ML BOT IN"]
["BAYER ADMIRE 2GM UNIT","ADMIRE WG70 125X(8X2GR) BAG IN"]
["BAYER ALANTO (T) SC240 100ML","ALANTO (T) SC240 50X100ML BOT IN"]
["BAYER ALIETTE 500GM","ALIETTE WP80 20X500GR BAG IN"]
["BAYER ALIETTE WP80%100GM","ALIETTE WP80 40X100GR BAG IN"]
["BAYER AMBITION 100ML","AMBITION 50X100ML BOT IN"]
["BAYER AMBITION 1LT","AMBITION 10X1L BOT IN"]
["BAYER AMBITION 250ML","AMBITION 40X250ML BOT IN"]
["BAYER AMBITION 500ML","AMBITION 20X500ML BOT IN"]
["BAYER ANTRACOL 100GM","ANTRACOL (T) WP70 50X100GR BAG IN"]
["BAYER ANTRACOL 1KG","ANTRACOL (T) WP70 10X1KG BAG IN"]
["BAYER ANTRACOL 250GM","ANTRACOL (T) WP70 40X250GR BAG IN"]
["BAYER ANTRACOL 500GM","ANTRACOL (T) WP70 20X500GR BAG IN"]
["BAYER BERDERA 1KG","BERDERA WG50 4X1KG BOT IN"]
["BAYER COUNCI ACTIVE12*(5*90)","COUNCIL ACTIV WG30 12X(5X90GR) BOX IN"]
["BAYER COUNCIL ACTIV 8*(10*45GR)","COUNCIL ACTIV WG30 8X(10X45GR) BOX IN"]
["BAYER DECIS 100ML","DECIS EC 28 50X100ML BOT IN"]
["BAYER EMESTO PRIME FS 240 100ML","EMESTO PRIME FS240 50X100ML BOT IN"]
["BAYER ETHREL 100ML","ETHREL SL39 50X100ML BOT IN"]
["BAYER ETHREL 1LT 1LT","ETHREL SL39 10X1L BOT IN"]
["BAYER FAME 100ML UNIT","FAME (T) SC480 20X100ML BOT IN"]
["BAYER FAME 10ML","FAME (T) SC480 10X(20X10ML) BOT IN"]
["BAYER FAME 50ML","FAME (T) SC480 40X50ML BOT IN"]
["BAYER FOLICUR 100ML","FOLICUR (T) EC250 50X100ML BOT IN"]
["BAYER FOLICUR 1LT","FOLICUR (T) EC250 10X1L BOT IN"]
["BAYER FOLICUR 250ML","FOLICUR (T) EC250 40X250ML BOT IN"]
["BAYER FOLICUR 500ML","FOLICUR (T) EC250 20X500ML BOT IN"]
["BAYER GAUCHO 9ML/BTL","GAUCHO FS600 5X(20X9)ML BOT IN"]
["BAYER GLAMORE 100GM","GLAMORE WG80 20X100GR BOT IN"]
["BAYER GLAMORE 50GM","GLAMORE WG80 40X50GR BOT IN"]
["BAYER LAUDIS 115ML/UNIT","LAUDIS SC630 8X115ML BOT IN"]
["BAYER LESENTA 100GM UNIT","LESENTA WG80 50X100GR BAG IN"]
["BAYER LESENTA 250GM UNIT","LESENTA WG80 20X250GR BAG IN"]
["BAYER LESENTA 40GM UNIT","LESENTA WG80 100X40GR BAG IN"]
["BAYER LUCIFER  160 GM","LUCIFER (T) WP15 25X160GR BAG IN"]
["BAYER MELODY 100GM UNIT","MELODY DUO WP66 8 50X100GR BAG IN"]
["BAYER MONCEREN 1LT","MONCEREN SC250 10X1L BOT IN"]
["BAYER MONCEREN 500ML","MONCEREN SC250 20X500ML BOT IN"]
["BAYER NATIVO 100GM","NATIVO WG75 50X100GR BAG IN"]
["BAYER NATIVO 1KG","NATIVO WG75 10X1KG BAG IN"]
["BAYER NATIVO 250 GM","NATIVO WG75 40X250GR BAG IN"]
["BAYER NATIVO 500GM","NATIVO WG75 20X500GR BAG IN"]
["BAYER NATIVO 50GM/UNIT","NATIVO WG75 100X50GR BAG IN"]
["BAYER PLANOFIX 100ML","PLANOFIX SL4 5 50X100ML BOT IN"]
["BAYER PLANOFIX 1LT","PLANOFIX SL45 10X1L BOT IN"]
["BAYER RAFT 250ML","RAFT EC60 40X250ML BOT IN"]
["BAYER RAXIL 100ML","RAXIL (T) DS2 5X(10X100GR) BAG IN"]
["BAYER RAXIL EASY 20*13.4 ML/UNIT","RAXIL EASY FS60 10X(20X13.4ML) BOT IN"]
["BAYER RAXIL EASY 50ML","RAXIL EASY FS60 100X50ML BOT IN"]
["BAYER REAGENT 1KG","REGENT (T) SC50 10X1L BOT IN"]
["BAYER REAGENT ULTRA 4KG","REGENT ULTRA GR0 6 5X4KG BAG IN"]
["BAYER REGENT 100ML","REGENT (T) SC50 50X100ML BOT IN"]
["BAYER REGENT  5KG","REGENT GR0 3 4X5KG BAG IN"]
["BAYER REGENT ULTRA 1KG","REGENT ULTRA GR0 6 20X1KG BAG IN"]
["BAYER SENCOR 100GM","SENCOR WP70 60X100GR BAG IN"]
["BAYER SOLOMON 100ML","SOLOMON OD300 50X100ML BOT IN"]
["BAYER SOLOMON 1LT","SOLOMON OD300 10X1L BOT IN"]
["BAYER SOLOMON 250ML","SOLOMON OD300 40X250ML BOT IN"]
["BAYER SOLOMON 500ML","SOLOMON OD300 20X500ML BOT IN"]
["BAYER TOPSTAR 22.5GM","TOPSTAR (T) WP80 8X(20X22.5GR) BOX IN"]
["BAYER 6633 PADDY 3KG","ARIZE AZ 6633 LOC 10X3KG BAG IN"]
["BAYER MUSTARD 5111 .500GM","MUSTARD KESARI 5111 60X500G BAG IN"]
["BAYER MUSTARD 5222 1KG","MUSTARD 5222 30X1KG BAG IN"]
["BAYER MUSTARD 5222 500GM","MUSTARD 5222 60X500G BAG IN"]
["BAYER MUSTARD 5232 1KG","MUSTARD PA 5232 (LOC) 30X1KG BAG IN"]
["BAYER PADDY 6129 GOLD 3KG","ARIZE 6129 GOLD LOC 10X3KG BAG IN"]
["BAYER PADDY 6444 GOLD 3KG","ARIZE 6444 GOLD LOC 10X3KG BAG IN"]
["PADDY 6129 3KG","ARIZE 6129 LOC 10X3KG BAG IN"]
["PADDY 6444 GOLD 1KG","ARIZE 6444 GOLD LOC 30X1 BAG IN"]
["ADMIRE WG70 (2gm)","ADMIRE WG70 125X(8X2GR) BAG IN"]
["ADMIRE WG70 (30gm)","ADMIRE (T) WG70 150X30GR BOT IN"]
["ALANTO SC240 (100ml)","ALANTO (T) SC240 50X100ML BOT IN"]
["AMBITION (100ml)","AMBITION 50X100ML BOT IN"]
["AMBITION (1ltr)","AMBITION 10X1L BOT IN"]
["Ambition (250ML)","AMBITION 40X250ML BOT IN"]
["AMBITION (500ml)","AMBITION 20X500ML BOT IN"]
["ANTRACOL WP70 (1kg)","ANTRACOL (T) WP70 10X1KG BAG IN"]
["ANTRACOL WP70 (250gm)","ANTRACOL (T) WP70 40X250GR BAG IN"]
["ANTRACOL WP70 (500gm)","ANTRACOL (T) WP70 20X500GR BAG IN"]
["ARIZE 6129 GOLD (3KG)","ARIZE 6129 GOLD LOC 10X3KG BAG IN"]
["Arize 6444 (3kg)","ARIZE 6444 LOC 10X3KG BAG IN"]
["ARIZE 6444 GOLD (3kg)","ARIZE 6444 GOLD LOC 10X3KG BAG IN"]
["ARIZE AZ 6633 (3KG)","ARIZE AZ 6633 LOC 10X3KG BAG IN"]
["ARIZE DIAMOND (3kg)","ARIZE DIAMOND LOC 10X3KG BAG IN"]
["ATLANTIS KL3.6 (160gm)","ATLANTIS KL3 6 15X160GR BOT IN"]
["AZ 8433 ARIZE","ARIZE AZ 8433 DT LOC 30X1KG BAG IN"]
["BELT EXPERT SC480 (100ml)","BELT EXPERT SC480 50X100ML BOT IN"]
["COUNCIL ACTIV WG30 (45Gm)","COUNCIL ACTIV WG30 8X(10X45GR) BOX IN"]
["COUNCIL ACTIV WG30 (90Gm)","COUNCIL ACTIV WG30 12X(5X90GR) BOX IN"]
["DECIS EC 101.2 (100ml)","DECIS EC101-2 50X100ML BOX IN"]
["DECIS EC 24.6 (100ml)","DECIS EC 28 50X100ML BOT IN"]
["DECIS EC 28(1ltr)","DECIS EC 28 10X1L BOT IN"]
["DECIS EC 28 (250ml)","DECIS EC 28 40X250ML BOT IN"]
["DKC 9108 (4.5KG)","C DK DKC9108 4.5KG IN"]
["EMESTO PRIME (100ml)","EMESTO PRIME FS240 50X100ML BOT IN"]
["EMESTO PRIME FS240 (1ltr)","EMESTO PRIME FS240 10X1L BOT IN"]
["FOLICUR EC250 (250ml)","FOLICUR (T) EC250 40X250ML BOT IN"]
["FOOST WP50 (500gm)","FOOST WP50 24X500G BAG IN"]
["GAUCHO (100ml)","GAUCHO FS600 50X100ML BOT IN"]
["GAUCHO (9ml)","GAUCHO FS600 5X(20X9)ML BOT IN"]
["GAUCHO FS600 (1ltr)","GAUCHO FS600 50X100ML BOT IN"]
["GAUCHO FS600 (50ml)","GAUCHO FS600 100X50ML BOT IN"]
["INFINITOSC687 5 (100ml)","INFINITO SC687 5 50X100ML BOT IN"]
["INFINITOSC687 5 (500ml)","INFINITO SC687 5 20X500ML BOT IN"]
["LARVIN WP75 (100gm)","LARVIN (T) WP75 40X100GR BAG IN"]
["LAUDISSC630(115ml)","LAUDIS SC630 8X115ML BOT IN"]
["LAUDIS SC630 (230ml)","LAUDIS SC630 3X230ML BOT IN"]
["LAUDIS SC630 (57.5ml)","LAUDIS SC630 10X57.5ML BOT IN"]
["LUCIFER WP15 (160gm)","LUCIFER (T) WP15 25X160GR BAG IN"]
["MELODY DUO WP66 (800gm)","MELODY DUO WP66 8 10X800G BAG IN"]
["MELODY DUO WP66 8(100gm)","MELODY DUO WP66 8 50X100GR BAG IN"]
["MELODY DUO WP66.8 (400gm)","MELODY DUO WP66 8 10X400GR BAG IN"]
["MONCEREN SC250 (1Ltr)","MONCEREN SC250 10X1L BOT IN"]
["MONCEREN SC250 (250ml)","MONCEREN SC250 40X250ML BOT IN"]
["MONCEREN SC250 (500ml)","MONCEREN SC250 20X500ML BOT IN"]
["MUSTARD PA5232 (1kg)","MUSTARD PA 5232 (LOC) 30X1KG BAG IN"]
["MUSTERD 5222 (1kg)","MUSTARD 5222 30X1KG BAG IN"]
["MUSTERD 5222 (500gm)","MUSTARD 5222 60X500G BAG IN"]
["MUSTERD KESARI 5111 (500gm)","MUSTARD KESARI 5111 60X500G BAG IN"]
["MUSTERD KESARI GOLD (500gm)","MUSTARD KESARI GOLD 60X500GR BAG IN"]
["MUSTERD PA 5210 (1kg)","MUSTARD PA 5210 (LOC) 30X1KG BAG IN"]
["NATIVO WG75 (1kg)","NATIVO WG75 10X1KG BAG IN"]
["OBERON SC240 (50ml)","OBERON SC240 100X50ML BOT BD"]
["PLANOFIX SL4.5 (100ml)","PLANOFIX SL4 5 50X100ML BOT IN"]
["PLANOFIX SL45 (1ltr)","PLANOFIX SL45 10X1L BOT IN"]
["PLANOFIX SL4 5 (250ml)","PLANOFIX SL4 5 40X250ML BOT IN"]
["PLANOFIX SL45 (500ml)","PLANOFIX SL4 5 20X500ML BOT IN"]
["RAXIL EASY FS60 (13.4ml)","RAXIL EASY FS60 10X(20X13.4ML) BOT IN"]
["REGENT GR0.3 (1kg)","REGENT GR0 3 20X1KG BAG IN"]
["REGENT GR0.3(5kg)","REGENT GR0 3 4X5KG BAG IN"]
["REGENT SC50 (100ml)","REGENT (T) SC50 50X100ML BOT IN"]
["REGENT ULTRA GR0.6 (1kg)","REGENT ULTRA GR0 6 20X1KG BAG IN"]
["REGENT ULTRA GR0.6 (4kg)","REGENT ULTRA GR0 6 5X4KG BAG IN"]
["SECTIN WG 60 (100gm)","SECTIN WG60 50X100GR BAG IN"]
["SECTIN WG60 (1kg)","SECTIN WG60 10X1KG BAG IN"]
["SECTIN WG60 (600gm)","SECTIN WG60 20X600GR BAG IN"]
["SENCOR WP70 (100gm)","SENCOR WP70 60X100GR BAG IN"]
["SOLOMON (250ml)","SOLOMON OD300 40X250ML BOT IN"]
["SUNRICE WG15 (50gm)","SUNRICE WG15 100X50GR BOT IN"]
["WHIPSUPER EC90 (100ml)","WHIPSUPER (T) EC90 50X100ML BOT IN"]
["WHIPSUPER EC90 (250ml)","WHIPSUPER (T) EC90 40X250ML BOT IN"]
["WHIPSUPER EC90 (500ml)","WHIPSUPER (T) EC90 20X500ML BOT IN"]
["C DK DKC9144 4KG","C DK DKC9144 4KG IN"]
["DKC 8181 4KG","C DK DKC8181 4KG IN"]
["Dkc 9108 Plus 4.5 Kg.","C DK DKC9108 4.5KG IN"]
["FOOST WP 50 20X250GM BAG","FOOST WP50 20X250G BAG IN"]
["FOOST WP 50 24X500 GM BAG","FOOST WP50 24X500G BAG IN"]
["LAUDIS SC630 10X57.5 ML","LAUDIS SC630 10X57.5ML BOT IN"]
["LAUDIS SC630 8X115ML","LAUDIS SC630 8X115ML BOT IN"]
["LUCIFFER (T) WP 15 25X160GR","LUCIFER (T) WP15 25X160GR BAG IN"]
["Regent GR 0 34X5KG BAG","REGENT GR0 3 4X5KG BAG IN"]
["Admire","ADMIRE (T) WG70 30X150GR BOT IN"]
["Antracol  250gm","ANTRACOL (T) WP70 40X250GR BAG IN"]
["Confidor 100ml","CONFIDOR (T) SL200 50X100ML BOT IN"]
["Confidore 50ml","CONFIDOR (T) SL200 100X50ML BOT IN"]
["Confidor Super 50ml","CONFIDOR SUPER (T) SC350 50X50ML BOT IN"]
["Decis 100ml","DECIS EC 28 50X100ML BOT IN"]
["Decis 250","DECIS EC 28 40X250ML BOT IN"]
["Ethrel 100ml","ETHREL SL39 50X100ML BOT IN"]
["Fame10ml","FAME (T) SC480 10X(20X10ML) BOT IN"]
["Fame 50ml","FAME (T) SC480 40X50ML BOT IN"]
["Folicur 100ml","FOLICUR (T) EC250 50X100ML BOT IN"]
["Jump 2gm","JUMP WG80 160X(10X2GR) BAG IN"]
["Nativo 50gm","NATIVO WG75 100X50GR BAG IN"]
["Oberon 100ml","OBERON (T) SC240 50X100ML BOT IN"]
["Planofix 100ml","PLANOFIX SL4 5 50X100ML BOT IN"]
["Regent 100ml","REGENT (T) SC50 50X100ML BOT IN"]
["Regent 250ml","REGENT (T) SC50 20X250ML BOT IN"]
["Regent 500ml","REGENT (T) SC50 20X500ML BOT IN"]
["Regent 5kg","REGENT GR0 3 4X5KG BAG IN"]
["Regent Gr  1kg","REGENT GR0 3 20X1KG BAG IN"]
["Round Up 1ltr","ROUNDUP 41% SL (IN) 10X1 LTR"]
["Round Up 20ltr","ROUNDUP 41% SL (IN) 1X20 LTR"]
["Round Up 250ml","ROUNDUP 41% SL (IN) 40X250 ML"]
["Round Up 500ml","ROUNDUP 41% SL (IN) 20X500 ML"]
["Round Up 5ltr","ROUNDUP 41% SL (IN) 2X5 LTR"]
["Roundup Speed 100ml","NEWPRODUCT_9060313"]
["Roundup Speed 1 L","ROUNDUP 41% SL (IN) 10X1 LTR"]
["Roundup Speed 5L","ROUNDUP 41% SL (IN) 2X5 LTR"]
["Agenda 25% EC 500ml","AGENDA EC25 20X500ML BOT IN"]
["Agenda 25% EC 5 Ltr.","AGENDA EC25 2X5L BOT IN"]
["Kingfog 1.25% ULV 1 Ltr.","KINGFOG UL10 12X1L BOT IN"]
["K-Othrin Flow 2.5% SC 1 Ltr.","K-OTHRINE SC25 5 15X1L BOT IN"]
["Premise 30.5% SC 1 Ltr.","PREMISE SC350 10X1L BOT IN"]
["Premise 30.5% SC 250ml","PREMISE SC350 40X250ML BOT IN"]
["Premise 30.5% SC 5 Ltr.","PREMISE SC350 2X5L BOT IN"]
["Responsar 2.45% SC 1 Ltr.","RESPONSAR SC25 10X1L BOT IN"]
["Solfac EW50 - 1 Lts","SOLFAC EW50 10X1L BOT IN"]
["Temprid (Imida 21%+ Betacyfluthrin 10.5%) - 500ml","TEMPRID SC365.4 20X500ML BOT IN"]
["ADMIRE (2GM)","ADMIRE WG70 125X(8X2GR) BAG IN"]
["ADORA (100ML)","ADORA (T) SC100 50X100ML BOT IN"]
["ADORA (50ML)","ADORA (T) SC100 50X50ML BOT IN"]
["ADUE (100 GM)","ADUE WG70 6X100G BOT IN"]
["ADUE (40GM)","ADUE WG70 15X40G BOT IN"]
["AGENDA (500ML)","AGENDA EC25 20X500ML BOT IN"]
["ALANTO (250ML)","ALANTO (T) SC240 40X250ML BOT IN"]
["ALIETTE (100GM)","ALIETTE WP80 40X100GR BAG IN"]
["ALIETTE (1KG)","ALIETTE WP80 10X1KG BAG IN"]
["ALIETTE (250GM)","ALIETTE WP80 20X250GR BAG IN"]
["ALIETTE (500GM)","ALIETTE WP80 20X500GR BAG IN"]
["ANTRACOL  (100GM)","ANTRACOL (T) WP70 50X100GR BAG IN"]
["ANTRACOL (1KG)","ANTRACOL (T) WP70 10X1KG BAG IN"]
["ANTRACOL (250GM)","ANTRACOL (T) WP70 40X250GR BAG IN"]
["ANTRACOL (500GM)","ANTRACOL (T) WP70 20X500GR BAG IN"]
["BAVISTIN (100GM)","DISCOUNTINUE PRODUCT"]
["BAVISTIN (250GM)","DISCOUNTINUE PRODUCT"]
["BELT EXPERT 100ML","BELT EXPERT SC480 50X100ML BOT IN"]
["BUONOS (250ML)","BUONOS SC430 40X250ML BOT IN"]
["BUONOS (500ML)","BUONOS SC430 20X500ML BOT IN"]
["CONFIDOR (100ML)","CONFIDOR (T) SL200 50X100ML BOT IN"]
["CONFIDOR (250ML)","CONFIDOR (T) SL200 20X250ML BOT IN"]
["CONFIDOR (500 ML)","CONFIDOR (T) SL200 20X500ML BOT IN"]
["CONFIDOR (50ML)","CONFIDOR (T) SL200 100X50ML BOT IN"]
["CONFIDOR SUPER (100ML)","CONFIDOR SUPER (T) SC350 50X100ML BOT IN"]
["CONFIDOR SUPER (1LTR)","CONFIDOR SUPER (T) SC350 10X1L BOT IN"]
["CONFIDOR SUPER (250ML)","CONFIDOR SUPER (T) SC350 20X250ML BOT IN"]
["CONFIDOR SUPER (500ML)","CONFIDOR SUPER (T) SC350 20X500ML BOT IN"]
["CONFIDOR SUPER (50ML)","CONFIDOR SUPER (T) SC350 50X50ML BOT IN"]
["COUNCIL ACTIV (45GM) (EFKE003549)","COUNCIL ACTIV WG30 8X(10X45GR) BOX IN"]
["DECIS EC 28 (1LT)","DECIS EC 28 10X1L BOT IN"]
["DECIS EC 28 (500ML)","DECIS EC 28 20X500ML BOT IN"]
["ETHREL SL 39 (100ML)","ETHREL SL39 50X100ML BOT IN"]
["FAME (100ML)","FAME (T) SC480 20X100ML BOT IN"]
["FAME (10ML)","FAME (T) SC480 10X(20X10ML) BOT IN"]
["FAME (250ML)","FAME (T) SC480 8X250ML BOT IN"]
["FAME (50ML)","FAME (T) SC480 40X50ML BOT IN"]
["FENOS QUICK (100ML)","FENOS QUICK SC150 50X100ML BOT IN"]
["FENOS QUICK (250ML)","FENOS QUICK SC150 40X250ML BOT IN"]
["FOLICURE  (100ML)","FOLICUR (T) EC250 50X100ML BOT IN"]
["FOLICURE (1LT)","FOLICUR (T) EC250 10X1L BOT IN"]
["FOLICURE (250ML)","FOLICUR (T) EC250 40X250ML BOT IN"]
["FOLICURE (500ML)","FOLICUR (T) EC250 20X500ML BOT IN"]
["GAUCHO  (1LTR)","GAUCHO FS600 2X(5X1L) BOT IN"]
["GAUCHO (250ML)","GAUCHO FS600 40X250ML BOT IN"]
["GAUCHO (50ML)","GAUCHO FS600 100X50ML BOT IN"]
["GAUCHO (5LT)","GAUCHO FS600 2X5L BOT IN"]
["HY.BAJARI BAYER-9461 (1.5KG)","MILLET HYBRID 9461 20X1.5KG BAG IN"]
["HY.COTTON FIRST CLASS (450GM)","SURPASS FIRSTCLASS 7149B2 20X450G BAG IN"]
["INFINITO (1 LTR)","INFINITO SC687 5 10X1L BOT IN"]
["INFINITO (500ML)","INFINITO SC687 5 20X500ML BOT IN"]
["JUMP (40GM)","JUMP WG80 80X40GR BAG IN"]
["LARVIN (100GM)","LARVIN (T) WP75 40X100GR BAG IN"]
["LARVIN (1KG)","LARVIN (T) WP75 10X1KG BAG IN"]
["LARVIN (250GM)","LARVIN (T) WP75 20X250GR BAG IN"]
["LARVIN (500GM)","LARVIN (T) WP75 20X500GR BAG IN"]
["LESENTA (100GM)","LESENTA WG80 50X100GR BAG IN"]
["LUNA EXPERIENCE (100ML)","LUNA EXPERIENCE SC400 50X100ML BOT IN"]
["LUNA EXPERIENCE (1LT)","LUNA EXPERIENCE SC400 10X1L BOT IN"]
["LUNA EXPERIENCE (250ML)","LUNA EXPERIENCE SC400 40X250ML BOT IN"]
["MELODY DUO (400GM)","MELODY DUO WP66 8 10X400GR BAG IN"]
["MOVENTO  (100ML)","MOVENTO ENERGY SC240 50X100ML BOT IN"]
["MOVENTO (1LTR)","MOVENTO OD150 10X1L BOT IN"]
["MOVENTO (250ML)","MOVENTO OD150 40X250ML BOT IN"]
["NATIVO (100GM)","NATIVO WG75 50X100GR BAG IN"]
["NATIVO (250GM)","NATIVO WG75 40X250GR BAG IN"]
["NATIVO (500GM)","NATIVO WG75 20X500GR BAG IN"]
["NATIVO (50GM)","NATIVO WG75 100X50GR BAG IN"]
["OBERON (100ML)","OBERON (T) SC240 50X100ML BOT IN"]
["OBERON (1LT)","OBERON (T) SC240 10X1L BOT IN"]
["OBERON (200ML)","OBERON (T) SC240 40X200ML BOT IN"]
["OBERON (500ML)","OBERON (T) SC240 20X500ML BOT IN"]
["PLANOFIX (100ML)","PLANOFIX SL4 5 50X100ML BOT IN"]
["PREMISE (250ML)","PREMISE SC350 40X250ML BOT IN"]
["PREMISE (5LT)","PREMISE SC350 2X5L BOT IN"]
["RAFT (500ML)","RAFT EC60 20X500ML BOT IN"]
["REGENT (100ML)","REGENT (T) SC50 50X100ML BOT IN"]
["REGENT (1LT)","REGENT (T) SC50 10X1L BOT IN"]
["REGENT (250ML)","REGENT GR0 3 1X25KG BOX WW"]
["REGENT (500ML)","REGENT (T) SC50 20X500ML BOT IN"]
["REGENT GR (1KG)","REGENT GR0 3 20X1KG BAG IN"]
["REGENT GR (5KG)","REGENT GR0 3 4X5KG BAG IN"]
["REGENT ULTRA  (1KG)","REGENT ULTRA GR0 6 20X1KG BAG IN"]
["REGENT ULTRA (4KG)","REGENT ULTRA GR0 6 5X4KG BAG IN"]
["SECTIN (100GM)","SECTIN WG60 50X100GR BAG IN"]
["SECTIN(600GM)","SECTIN WG60 20X600GR BAG IN"]
["SECTION (100GM)","SECTIN WG60 50X100GR BAG IN"]
["SECTION (1KG)","SECTIN WG60 10X1KG BAG IN"]
["SIVANTO (1LTR)","SIVANTO PRIME SL200 10X1L BOT IN"]
["SIVANTO (250ML)","SIVANTO PRIME SL200 40X250ML BOT IN"]
["SIVANTO (500ML)","SIVANTO PRIME SL200 20X500ML BOT IN"]
["SOLOMON (100ML) (PGOD000626)","SOLOMON OD300 50X100ML BOT IN"]
["SOLOMON (1LTR)","SOLOMON OD300 10X1L BOT IN"]
["SOLOMON (250ML) (PGOD000599)","SOLOMON OD300 40X250ML BOT IN"]
["SOLOMON (500ML) (PGOD000497)","SOLOMON OD300 20X500ML BOT IN"]
["SOLOMON (500ML) (PGOD000616)","SOLOMON OD300 20X500ML BOT IN"]
["SPINTOR (75ML)","SPINTOR SC495 20X75ML BOT IN"]
["TOPSTAR (22.5GM)","TOPSTAR (T) WP80 8X(20X22.5GR) BOX IN"]
["TOP STAR (35GM)","TOPSTAR (T) WP80 10X(10X35GR) BOX IN"]
["VELUM PRIME (250ML)","VELUM PRIME SC400 40X250ML BOT IN"]
["VELUM PRIME (500 ML)","VELUM PRIME SC400 20X500ML BOT IN"]
["0 Admire 150gmX30","ADMIRE (T) WG70 30X150GR BOT IN"]
["0ADMIRE 16GmX125 (8X2Gr)","ADMIRE WG70 125X(8X2GR) BAG IN"]
["0 Admire 75gmX60","ADMIRE (T) WG70 60X75GR BOT IN"]
["0 Adora Sc100 200mlx20","ADORA (T) SC100 20X200ML BOT IN"]
["0-ALANTO 100ML(1x50)","ALANTO (T) SC240 50X100ML BOT IN"]
["0 Alanto 1ltrX10","ALANTO (T) SC240 10X1L BOT IN"]
["0-ALANTO 250ML(1x40)","ALANTO (T) SC240 40X250ML BOT IN"]
["0-Alanto 500ml (1x 20)","ALANTO (T) SC240 20X500ML BOT IN"]
["0Aliette 100gmX40","ALIETTE WP80 40X100GR BAG IN"]
["0 Aliette 250gmX20","ALIETTE WP80 20X250GR BAG IN"]
["0 Aliette 500gmX20","ALIETTE WP80 20X500GR BAG IN"]
["0 Alion Plus 5LtrX4","ALION PLUS SC560 4X5L BOT IN"]
["0 Ambition 1ltrX10","AMBITION 10X1L BOT IN"]
["0 Ambition 250mlX40","AMBITION 40X250ML BOT IN"]
["0 Ambition 500mlX20","AMBITION 20X500ML BOT IN"]
["0-ANTRACOL-100GM(1x50)","ANTRACOL (T) WP70 50X100GR BAG IN"]
["0-ANTRACOL-1KG X10","ANTRACOL (T) WP70 10X1KG BAG IN"]
["0-ANTRACOL-250GMX40","ANTRACOL (T) WP70 40X250GR BAG IN"]
["0-ANTRACOL-500GMX20","ANTRACOL (T) WP70 20X500GR BAG IN"]
["0 Belt Expert 100mlX50","BELT EXPERT SC480 50X100ML BOT IN"]
["0-CONFIDOR-100ML (1X50)","CONFIDOR (T) SL200 50X100ML BOT IN"]
["0-CONFIDOR-1 LTR(1X10)","CONFIDOR (T) SL200 10X1L BOT IN"]
["0-CONFIDOR-250ML (1X20)","CONFIDOR (T) SL200 20X250ML BOT IN"]
["0-CONFIDOR-500ML (1X20)","CONFIDOR (T) SL200 20X500ML BOT IN"]
["0-CONFIDOR-50ML (1X100)","CONFIDOR (T) SL200 100X50ML BOT IN"]
["0-Confidor Super 100ml (1x50)","CONFIDOR SUPER (T) SC350 50X100ML BOT IN"]
["0-Confidor Super 250ml (1x20)","CONFIDOR SUPER (T) SC350 20X250ML BOT IN"]
["0-Confidor Super 500ml (1x20)","CONFIDOR SUPER (T) SC350 20X500ML BOT IN"]
["0-Confidor Super 50ml(1x50)","CONFIDOR SUPER (T) SC350 50X50ML BOT IN"]
["0 Decis2.8 1ltrX10","DECIS EC 28 10X1L BOT IN"]
["0 Decis2.8 250mlX40","DECIS EC 28 40X250ML BOT IN"]
["0 Decis2.8 500mlX20","DECIS EC 28 20X500ML BOT IN"]
["0-DECIS 50ML (1X100)","DECIS EC101-2 100X50ML BOT IN"]
["0 Ethrel 100mlX50","ETHREL SL39 50X100ML BOT IN"]
["0 Ethrel 1LtrX10","ETHREL SL39 10X1L BOT IN"]
["0 Ethrel 500mlX20","ETHREL SL39 20X500ML BOT IN"]
["0 EVERGOL XTEND 100mlX50","EVERGOL XTEND FS308 50X100ML BOT IN"]
["0 EVERGOL XTEND 250mlX40","EVERGOL XTEND FS308 40X250ML BOT IN"]
["0 EVERGOL XTEND 40mlX100","EVERGOL XTEND FS308 100X40ML BOT IN"]
["0-FAME-100MLX20","FAME (T) SC480 20X100ML BOT IN"]
["0-FAME-10MLX20PX10","FAME (T) SC480 10X(20X10ML) BOT IN"]
["0-Fame 250ml (1x8)","FAME (T) SC480 8X250ML BOT IN"]
["0-Fame 500ml(1x4)","FAME (T) SC480 4X500ML BOT IN"]
["0-FAME-50MLX40","FAME (T) SC480 40X50ML BOT IN"]
["0 Fenos Quick 100mlX50","FENOS QUICK SC150 50X100ML BOT IN"]
["0 Fenos Quick 250mlX40","FENOS QUICK SC150 40X250ML BOT IN"]
["0Firstclass 450gmx20 (Cotton)","SURPASS FIRSTCLASS 7149B2 20X450G BAG IN"]
["0 Fitrest 100gmx40","FITREST SG5 40X100GR BOT IN"]
["0  Fitrest 250gmx16","FITREST SG5 16X250GR BOT IN"]
["0 Fitrest 50gmx80","FITREST SG5 80X50GR BOT IN"]
["0-Flotis 500ml(1x20)","FLOTIS (T) SC262 5 20X500ML BOT IN"]
["0 Folicure 100mlX50","FOLICUR (T) EC250 50X100ML BOT IN"]
["0 Folicure 1ltrX10","FOLICUR (T) EC250 10X1L BOT IN"]
["0 Folicure 250mlX40","FOLICUR (T) EC250 40X250ML BOT IN"]
["0 Folicure 500mlX20","FOLICUR (T) EC250 20X500ML BOT IN"]
["0Foost 250gmx20","FOOST WP50 20X250G BAG IN"]
["0-Foost 500gmx24","FOOST WP50 24X500G BAG IN"]
["0-GAUCHO 100ML(1 x 50)","GAUCHO FS600 50X100ML BOT IN"]
["0-GAUCHO-1LTR(1x10)","GAUCHO FS600 2X(5X1L) BOT IN"]
["0GAUCHO 250ml (1X40)","GAUCHO FS600 40X250ML BOT IN"]
["0 GAUCHO 50ML (1 X 100)","GAUCHO FS600 100X50ML BOT IN"]
["0-GAUCHO 5LTR(1x2)","GAUCHO FS600 2X5L BOT IN"]
["0Gaucho 9ml (20X5)","GAUCHO FS600 5X(20X9)ML BOT IN"]
["0 INFINITO 100mlX50","INFINITO SC687 5 50X100ML BOT IN"]
["0 INFINITO 1 LtrX10","INFINITO SC687 5 10X1L BOT IN"]
["0 INFINITO 500mlX20","INFINITO SC687 5 20X500ML BOT IN"]
["0 Jump 20gm(2grx10x40x4)","JUMP WG80 160X(10X2GR) BAG IN"]
["0 Jump 40gmX80","JUMP WG80 80X40GR BAG IN"]
["0 Larvin 1kgX10","LARVIN (T) WP75 10X1KG BAG IN"]
["0Larvin 250gmX20","LARVIN (T) WP75 20X250GR BAG IN"]
["0 Larvin 500gmX20","LARVIN (T) WP75 20X500GR BAG IN"]
["0-Laudis 115mlx8","LAUDIS SC630 8X115ML BOT IN"]
["0-Laudis 230mlx3","LAUDIS SC630 3X230ML BOT IN"]
["0-Laudis 57.5mlx10","LAUDIS SC630 10X57.5ML BOT IN"]
["0 Lesenta 100gmX50","LESENTA WG80 50X100GR BAG IN"]
["0 Lesenta 40gmX100","LESENTA WG80 100X40GR BAG IN"]
["0 Luna Experience 100mlX50","LUNA EXPERIENCE SC400 50X100ML BOT IN"]
["0 Luna Experience 250mlX40","LUNA EXPERIENCE SC400 40X250ML BOT IN"]
["0 Melody 100gmX50","MELODY DUO WP66 8 50X100GR BAG IN"]
["0 Melody 400gmX10","MELODY DUO WP66 8 10X400GR BAG IN"]
["0Movento Energy (100mlX50)","MOVENTO ENERGY SC240 50X100ML BOT IN"]
["0 Movento Energy 1ltrX10","MOVENTO ENERGY SC240 10X1L BOT IN"]
["0 Movento Energy 250mlX40","MOVENTO ENERGY SC240 40X250ML BOT IN"]
["0MOVENTO OD 250mlX40","MOVENTO OD150 40X250ML BOT IN"]
["0 Nativo 100gmX50","NATIVO WG75 50X100GR BAG IN"]
["0 Nativo 1kgX10","NATIVO WG75 10X1KG BAG IN"]
["0 Nativo 250gmX40","NATIVO WG75 40X250GR BAG IN"]
["0 Nativo 500gmX20","NATIVO WG75 20X500GR BAG IN"]
["0 Nativo 50gmX100","NATIVO WG75 100X50GR BAG IN"]
["0 OBERON(100mlX50)","OBERON (T) SC240 50X100ML BOT IN"]
["0 OBERON 1ltrX10","OBERON (T) SC240 10X1L BOT IN"]
["0 Oberon 200mlX40","OBERON (T) SC240 40X200ML BOT IN"]
["0 OBERON 500mlX20","OBERON (T) SC240 20X500ML BOT IN"]
["0-PERIDIAM 330ML","DISCOUNTINUE PRODUCT"]
["0 Planofix 100mlX50","PLANOFIX SL4 5 50X100ML BOT IN"]
["0 Planofix 250mlX40","PLANOFIX SL4 5 40X250ML BOT IN"]
["0Profiler 250gmX20","PROFILER WG71 11 20X250GR BAG IN"]
["0 REGENT GOLD SC (100mlX50)","REGENT GOLD SC200 50X100ML BOT IN"]
["0 REGENT GOLD SC (250mlX40)","REGENT GOLD SC200 40X250ML BOT IN"]
["0REGENT GOLD SC (500mlX20)","REGENT GOLD SC200 20X500ML BOT IN"]
["0-Regent SC 1 LtrX10","REGENT (T) SC50 10X1L BOT IN"]
["0-Regent SC 250mlX20","REGENT GR0 3 1X25KG BOX WW"]
["0-Regent SC 500mlX20","REGENT (T) SC50 20X500ML BOT IN"]
["0 Regent Ultra 10kgX2","REGENT ULTRA GR0.6 2X10KG BAG IN"]
["0 Regent Ultra 20kgX1","REGENT ULTRA GR0 6 1X20KG BAG IN"]
["0 Regent Ultra 4kgX5","REGENT ULTRA GR0 6 5X4KG BAG IN"]
["0-Rice Star 1ltr (1x10)","RICESTAR EC69 10X1L BOT IN"]
["0Ricestar 250ml (1X40)","RICESTAR EC69 40X250ML BOT IN"]
["0-Rice Star 500ml (1x20)","RICESTAR EC69 20X500ML BOT IN"]
["0-SECTIN-100GM(1x50)","SECTIN WG60 50X100GR BAG IN"]
["0-SECTIN 1KG(1x10)","SECTIN WG60 10X1KG BAG IN"]
["0-SECTIN-250GM(1x20)","Bayer"]
["0-Sectin 600gm (1x20)","SECTIN WG60 20X600GR BAG IN"]
["0-SENCOR-100GM(1x60)","SENCOR WP70 60X100GR BAG IN"]
["0-Sencor 500gmx20","SENCOR WP70 20X500GR BOX IN"]
["0 Sivanto Prime 100mlX50","SIVANTO PRIME SL200 50X100ML BOT IN"]
["0-Solomon 100ml (1x50)","SOLOMON OD300 50X100ML BOT IN"]
["0-Solomon 1ltr (1x10)","SOLOMON OD300 10X1L BOT IN"]
["0-SOLOMON 250 ML (1X40)","SOLOMON OD300 40X250ML BOT IN"]
["0-SOLOMON 500 ML(1X20)","SOLOMON OD300 20X500ML BOT IN"]
["0Spintor 75 MlX20","SPINTOR SC495 20X75ML BOT IN"]
["0Spintor (7mlX20X10)","SPINTOR SC495 10X(20X7ML) BOT IN"]
["0-SUNRICE 50GM( 1X100)","SUNRICE WG15 100X50GR BOT IN"]
["0Superb 450gmx20","SURPASS SUPERB BG2 20X450G BAG IN"]
["0 VELUM PRIME SC (250mlX40)","VELUM PRIME SC400 40X250ML BOT IN"]
["0VELUM PRIME SC(500mlX20)","VELUM PRIME SC400 20X500ML BOT IN"]
["0 Whipsuper 1ltrX10","WHIPSUPER (T) EC90 10X1L BOT IN"]
["0 Whipsuper 250mlX40","WHIPSUPER (T) EC90 40X250ML BOT IN"]
["0 Whipsuper 500mlX20","WHIPSUPER (T) EC90 20X500ML BOT IN"]
["904 (450Gm X20) D","SURPASS 904 BG2 20X450GR BOX IN"]
["911 (450gmX20) D","SURPASS 911 BG2 20X450GR BOX IN"]
["904 (450Gm X20)","SURPASS 904 BG2 20X450GR BOX IN"]
["911 (450gmX20)","SURPASS 911 BG2 20X450GR BOX IN"]
["Admire 150gm(1X30)","ADMIRE (T) WG70 30X150GR BOT IN"]
["Admire  16gm X125 (8x2Gr)","ADMIRE WG70 125X(8X2GR) BAG IN"]
["Admire 30gmx150","ADMIRE (T) WG70 150X30GR BOT IN"]
["Admire  75gmx60","ADMIRE (T) WG70 60X75GR BOT IN"]
["Adora (100mlx50)","ADORA (T) SC100 50X100ML BOT IN"]
["Adora (50mlx50)","ADORA (T) SC100 50X50ML BOT IN"]
["Alanto 100 Ml(1x50)","ALANTO (T) SC240 50X100ML BOT IN"]
["Alanto 250ml (1x40)","ALANTO (T) SC240 40X250ML BOT IN"]
["Alanto 500ml (1 x 20)","ALANTO (T) SC240 20X500ML BOT IN"]
["Aliette  100gmx40","ALIETTE WP80 40X100GR BAG IN"]
["Aliette 1kgX10","ALIETTE WP80 10X1KG BAG IN"]
["Aliette  250gmx20","ALIETTE WP80 20X250GR BAG IN"]
["Aliette 500gmX20","ALIETTE WP80 20X500GR BAG IN"]
["AMBITION 1ltrX10(5%)","AMBITION 10X1L BOT IN"]
["AMBITION 250mlX40 (5%)","AMBITION 40X250ML BOT IN"]
["AMBITION 500mlX20(5%)","AMBITION 20X500ML BOT IN"]
["Antracol 100 Gm(1x50)","ANTRACOL (T) WP70 50X100GR BAG IN"]
["Antracol 1 Kgx10","ANTRACOL (T) WP70 10X1KG BAG IN"]
["Antracol 250 Gmx40","ANTRACOL (T) WP70 40X250GR BAG IN"]
["Antracol 500 Gmx20","ANTRACOL (T) WP70 20X500GR BAG IN"]
["Belt Expert 100mlx50","BELT EXPERT SC480 50X100ML BOT IN"]
["Belt Expert 250ml (1x40)","BELT EXPERT SC480 40X250ML BOT IN"]
["Belt Expert 50mlx100","BELT EXPERT SC480 100X50ML BOT IN"]
["Buonos 1 LtrX10","BUONOS SC430 10X1L BOT IN"]
["Buonos 250mlX40","BUONOS SC430 40X250ML BOT IN"]
["CONFIDOR 100 Ml(1X50)","CONFIDOR (T) SL200 50X100ML BOT IN"]
["CONFIDOR 1LTR(1X10)","CONFIDOR (T) SL200 10X1L BOT IN"]
["CONFIDOR 250 Ml(1X20)","CONFIDOR (T) SL200 20X250ML BOT IN"]
["CONFIDOR 500 ML(1X20)","CONFIDOR (T) SL200 20X500ML BOT IN"]
["CONFIDOR 50 Ml (1X100)","CONFIDOR (T) SL200 50X100ML BOT IN"]
["Confidor Super 100ml (1x50)","CONFIDOR SUPER (T) SC350 50X100ML BOT IN"]
["Confidor Super 250ml (1x20)","CONFIDOR SUPER (T) SC350 20X250ML BOT IN"]
["Confidor Super 500ml (1x20)","CONFIDOR SUPER (T) SC350 20X500ML BOT IN"]
["Confidor Super 50ml(1x50)","CONFIDOR SUPER (T) SC350 50X50ML BOT IN"]
["Council Activ Wg 90gm(5x12)","COUNCIL ACTIV WG30 12X(5X90GR) BOX IN"]
["Decis-100 Ec 100mlx50","DECIS EC101-2 100X50ML BOT IN"]
["Decis -100 Ec 250mlx40","DECIS EC101-2 50X100ML BOX IN"]
["Decis 2.8 50mlx100","DECIS EC 28 50X100ML BOT IN"]
["Decis 2.8ec 250mlx40","DECIS EC 28 40X250ML BOT IN"]
["Decis  2.8 Ec 500mlx20","DECIS EC 28 20X500ML BOT IN"]
["Decis Ec2.8 (100mlx50)","DECIS EC 28 50X100ML BOT IN"]
["Decis Ec2.8 (1ltrx10)","DECIS EC 28 10X1L BOT IN"]
["Ethrel (100mlx50)","ETHREL SL39 50X100ML BOT IN"]
["Ethrel 1ltrx10","ETHREL SL39 10X1L BOT IN"]
["EVERGOL XTEND 100mlX50","EVERGOL XTEND FS308 50X100ML BOT IN"]
["EVERGOL XTEND 40mlX100","EVERGOL XTEND FS308 100X40ML BOT IN"]
["Fame 100 Mlx20","FAME (T) SC480 20X100ML BOT IN"]
["Fame 10 Mlx20px10","FAME (T) SC480 10X(20X10ML) BOT IN"]
["Fame 250ml (1x8)","FAME (T) SC480 8X250ML BOT IN"]
["Fame 500ml (1x 4)","FAME (T) SC480 4X500ML BOT IN"]
["Fame 50 Mlx40","FAME (T) SC480 40X50ML BOT IN"]
["First Closs Cotton 450gmx20","SURPASS FIRSTCLASS 7149B2 20X450G BAG IN"]
["Fitrest 100gmx40","FITREST SG5 40X100GR BOT IN"]
["Fitrest 250gmx16","FITREST SG5 16X250GR BOT IN"]
["Fitrest 50gmx80","FITREST SG5 80X50GR BOT IN"]
["Folicure  100mlx50","FOLICUR (T) EC250 50X100ML BOT IN"]
["Folicure  1ltrx10","FOLICUR (T) EC250 10X1L BOT IN"]
["Folicure 250mlx40","FOLICUR (T) EC250 40X250ML BOT IN"]
["Folicure 500mlx20","FOLICUR (T) EC250 20X500ML BOT IN"]
["Foost 250gmx20","FOOST WP50 20X250G BAG IN"]
["Foost 500gmx24","FOOST WP50 24X500G BAG IN"]
["Gaucho 100ml (1 X 50)","GAUCHO FS600 50X100ML BOT IN"]
["Gaucho 1 Ltrx10","GAUCHO FS600 2X(5X1L) BOT IN"]
["GAUCHO 50ML (1X 100)","GAUCHO FS600 100X50ML BOT IN"]
["Gaucho 5Ltr.X2","GAUCHO FS600 2X5L BOT IN"]
["GAUCHO 9ml (20X5)","GAUCHO FS600 5X(20X9)ML BOT IN"]
["GLAMORE 100gmX20","GLAMORE WG80 20X100GR BOT IN"]
["GLAMORE 250gmX8","GLAMORE WG80 8X250GR BAG IN"]
["Glamore 50gmx40","GLAMORE WG80 40X50GR BOT IN"]
["INFINITO 100mlX50","INFINITO SC687 5 50X100ML BOT IN"]
["INFINITO 500mlX20","INFINITO SC687 5 20X500ML BOT IN"]
["Jump 20gm(2grx10x40x4)","JUMP WG80 160X(10X2GR) BAG IN"]
["Jump 40gmx80","JUMP WG80 80X40GR BAG IN"]
["Larvin  100gmx40","LARVIN (T) WP75 40X100GR BAG IN"]
["Larvin 1kgX10","LARVIN (T) WP75 10X1KG BAG IN"]
["Larvin 250gmx20","LARVIN (T) WP75 20X250GR BAG IN"]
["Larvin 350gm","LARVIN (T) WP75 20X250GR BAG IN"]
["Larvin  500gmx20","LARVIN (T) WP75 20X500GR BAG IN"]
["Laudis 115mlx8","LAUDIS SC630 8X115ML BOT IN"]
["Laudis 230mlx3","LAUDIS SC630 3X230ML BOT IN"]
["Laudis -57.5mlx10","LAUDIS SC630 10X57.5ML BOT IN"]
["Lesenta 100gmx50","LESENTA WG80 50X100GR BAG IN"]
["Lesenta 40gm X100","LESENTA WG80 100X40GR BAG IN"]
["Luna Experience 100mlx50","LUNA EXPERIENCE SC400 50X100ML BOT IN"]
["Luna Experience  1ltrx10","LUNA EXPERIENCE SC400 10X1L BOT IN"]
["Luna Experience 250mlx40","LUNA EXPERIENCE SC400 40X250ML BOT IN"]
["Melody 100gmx50","MELODY DUO WP66 8 50X100GR BAG IN"]
["Melody 400gmx10","MELODY DUO WP66 8 10X400GR BAG IN"]
["Melody 500gm","Bayer"]
["MELODY 600GM","Bayer"]
["Movento Energy(100mlx50)","MOVENTO ENERGY SC240 50X100ML BOT IN"]
["Movento Energy 250mlx40","MOVENTO ENERGY SC240 40X250ML BOT IN"]
["Movento OD 250mlX40","MOVENTO OD150 40X250ML BOT IN"]
["Movento OD 500mlX20","MOVENTO OD150 20X500ML BOT IN"]
["Nativo  100gmx10x5","NATIVO WG75 50X100GR BAG IN"]
["Nativo 10gmx10x20","NATIVO WG75 20X(10X10GR) BAG IN"]
["NATIVO 1kGX10","NATIVO WG75 10X1KG BAG IN"]
["Nativo 250x8px5","NATIVO WG75 40X250GR BAG IN"]
["Nativo  500gmx20","NATIVO WG75 20X500GR BAG IN"]
["Nativo 50gmx25x4","NATIVO WG75 100X50GR BAG IN"]
["Oberon  100mlx50","OBERON (T) SC240 50X100ML BOT IN"]
["Oberon  1ltrx10","OBERON (T) SC240 50X100ML BOT IN"]
["OBERON 200MLX40","OBERON (T) SC240 40X200ML BOT IN"]
["Oberon 500mlX20","OBERON (T) SC240 20X500ML BOT IN"]
["Planofix 100MLX50","PLANOFIX SL4 5 50X100ML BOT IN"]
["Planofix 250X40","PLANOFIX SL4 5 40X250ML BOT IN"]
["Planofix (500mlx20)","PLANOFIX SL4 5 20X500ML BOT IN"]
["Profiler  250gmx20","PROFILER WG71 11 20X250GR BAG IN"]
["REGENT GOLD 100mlX50","REGENT GOLD SC200 50X100ML BOT IN"]
["Regent Gr 1kgx20","REGENT GR0 3 20X1KG BAG IN"]
["Regent GR 25KG","REGENT GR0 3 1X25KG BOX WW"]
["Regent Gr 5KGX4","REGENT GR0 3 4X5KG BAG IN"]
["Regent Sc 100mlx50","REGENT (T) SC50 50X100ML BOT IN"]
["Regent Sc 1ltrx10","REGENT (T) SC50 10X1L BOT IN"]
["Regent Sc 250mlx20","REGENT GR0 3 1X25KG BOX WW"]
["Regent Sc 500mlx20","REGENT (T) SC50 20X500ML BOT IN"]
["Regent Ultra 10kgx2","REGENT ULTRA GR0.6 2X10KG BAG IN"]
["Regent Ultra 20kg","REGENT ULTRA GR0 6 1X20KG BAG IN"]
["Regent Ultra GR (1kgX20)","REGENT ULTRA GR0 6 20X1KG BAG IN"]
["Regent Ultra GR (4kgX5)","REGENT ULTRA GR0 6 5X4KG BAG IN"]
["Rice Star 1ltr (1x10)","RICESTAR EC69 10X1L BOT IN"]
["Rice Star 250ml (1X40)","RICESTAR EC69 40X250ML BOT IN"]
["Rice Star 500ml (1x20)","RICESTAR EC69 20X500ML BOT IN"]
["Sectin 100gm (1X50)","SECTIN WG60 50X100GR BAG IN"]
["Sectin 1kg (1x10)","SECTIN WG60 10X1KG BAG IN"]
["Sectin   250gm  (1x20)","Bayer"]
["Sectin 600gm(1x 20)","SECTIN WG60 20X600GR BAG IN"]
["Sencor 100 Gm( 1X60)","SENCOR WP70 60X100GR BAG IN"]
["Sencor 500gm (1x20)","SENCOR WP70 20X500GR BOX IN"]
["SIVANTO PRIME 100MLX50","SIVANTO PRIME SL200 50X100ML BOT IN"]
["SIVANTO PRIME 250MLX40","SIVANTO PRIME SL200 40X250ML BOT IN"]
["Solomon 100ml (1x50)","SOLOMON OD300 50X100ML BOT IN"]
["Solomon 1ltr (1x10)","SOLOMON OD300 10X1L BOT IN"]
["SOLOMON 250ML (1X40)","SOLOMON OD300 40X250ML BOT IN"]
["SOLOMON 500ML (1X20)","SOLOMON OD300 20X500ML BOT IN"]
["Spintor (75mlX20)","SPINTOR SC495 20X75ML BOT IN"]
["Spintor (7mlx20x10)","SPINTOR SC495 10X(20X7ML) BOT IN"]
["SUNRICE 50GM (1X100)","SUNRICE WG15 100X50GR BOT IN"]
["Sunrise 40 Gmx100","SUNRICE WG15 100X50GR BOT IN"]
["Superb Cotton 450gmx20","SURPASS SUPERB BG2 20X450G BAG IN"]
["TOP STAR 35GM(10X10)","TOPSTAR (T) WP80 10X(10X35GR) BOX IN"]
["TOPSTAR WP100GM(10X4)","TOPSTAR (T) WP80 4X(10X100GR) BOX IN"]
["VELUM PRIME SC (250mlX40)","VELUM PRIME SC400 40X250ML BOT IN"]
["VELUM PRIME SC(500mlX20)","VELUM PRIME SC400 20X500ML BOT IN"]
["WHIPSUPER 1LTRX10","WHIPSUPER (T) EC90 10X1L BOT IN"]
["Whipsuper 250mlx40","WHIPSUPER (T) EC90 40X250ML BOT IN"]
["Whipsuper 500mlx20","WHIPSUPER (T) EC90 20X500ML BOT IN"]
["Agenda 100 ML","AGENDA EC25 50X100ML BOT IN"]
["Agenda 500ml","AGENDA EC25 20X500ML BOT IN"]
["Agenda 5 Lt","AGENDA EC25 2X5L BOT IN"]
["Barcelo Gr 1kg","BARCELO GR2 4X1KG BOT IN"]
["Baytex 1000 EC 10 Ltr","DISCOUNTINUE PRODUCT"]
["Baytex 1000 EC 1 Ltr","DISCOUNTINUE PRODUCT"]
["Bi-Larv 500g","DISCOUNTINUE PRODUCT"]
["King Fog 1 Lt","KINGFOG UL10 12X1L BOT IN"]
["K-Obiol WP 1 Kg","K-OBIOL WP2 5 10X1KG BOT IN"]
["K-Othrine 50 ML","K-OTHRINE SC25 5 15X1L BOT IN"]
["K-Othrine Flow 1 Lt","K-OTHRINE SC25 5 15X1L BOT IN"]
["K-Othrine W.P","K-OTHRINE SC25 5 15X1L BOT IN"]
["Max Force Forte 35g","MAXFORCE FORTE RB0 03 5X4X(35GR) TUB IN"]
["Premise 1 Lt","PREMISE SC350 10X1L BOT IN"]
["Premise 350 SC 250 ML","PREMISE SC350 40X250ML BOT IN"]
["Premise 50 ML","Need to check with DB"]
["Premise 5 Lt","PREMISE SC350 2X5L BOT IN"]
["Quick Bayt 2 Kg","QUICK BAYT GR0 5 4X2KG DRM IN"]
["Quick Bayt 350g","QUICK BAYT GR0 5 2X(20X50GR) BAG IN"]
["Quick Bayt 50g","QUICK BAYT GR0 5 2X(20X50GR) BAG IN"]
["Racumen Sure 100g","RACUMIN SURE RB0 005 10X(20X100G) BAG IN"]
["Responsar 1 Ltr","RESPONSAR SC25 10X1L BOT IN"]
["Solfac EW 100 ML","SOLFAC EW50 50X100ML BOT IN"]
["Solfac EW 1 Lt","SOLFAC EW50 10X1L BOT IN"]
["Solfac Wp 20g","SOLFAC WP10 100X20GR BAG IN"]
["Temprid Sc 500 Ml","TEMPRID SC365.4 20X500ML BOT IN"]
["Temprid Sc 50 Ml","TEMPRID SC365.4 100X50ML BOT IN"]
["ADMIRE WG70 125X8X2GM","ADMIRE WG70 125X(8X2GR) BAG IN"]
["ALANTO (T) SC240 40X250ML.","ALANTO (T) SC240 40X250ML BOT IN"]
["ALANTO (T) SC240 50X100 ML","ALANTO (T) SC240 20X500ML BOT IN"]
["AMBITION 40X250 ML","AMBITION 40X250ML BOT IN"]
["ANTRACOL (T) WP70 10X1KG","ANTRACOL (T) WP70 10X1KG BAG IN"]
["ANTRACOL (T) WP70 20X500GM","ANTRACOL (T) WP70 20X500GR BAG IN"]
["ARIZE 6444 GOLD 10X3KG","ARIZE 6444 GOLD LOC 10X3KG BAG IN"]
["COUNCIL ACTIV WG30 8X10X45GR","COUNCIL ACTIV WG30 8X(10X45GR) BOX IN"]
["DECIS EC101 50X100ML","DECIS EC101-2 50X100ML BOX IN"]
["DECIS EC 20X500ML","DECIS EC 28 20X500ML BOT IN"]
["DECIS EC24 50X100ML.","DECIS EC 28 50X100ML BOT IN"]
["DECIS EC 40X250ML","DECIS EC 28 40X250ML BOT IN"]
["EMESTO PRIME FS240 50X100ML. BOT","EMESTO PRIME FS240 50X100ML BOT IN"]
["EVERGOL XTEND FS 100ML","EVERGOL XTEND FS308 50X100ML BOT IN"]
["FOOST WP 50 (24X500GM)","FOOST WP50 24X500G BAG IN"]
["HY.MAIZE DKC7074 ACC 5KG IN","C DK DKC7074 5KG"]
["HY MAIZE DKC 9144 4KGIN","C DK DKC9144 4KG IN"]
["HY. MAIZE SEEDS DKC7074 IN5KG","C DK DKC7074 5KG"]
["HY.MAIZE SEEDS DKC8181 4KG","C DK DKC8181 4KG IN"]
["HY MAIZE SEEDS DKC9108 PLUS","C DK DKC9108PLUS 4.5KG IN"]
["HY. MAIZE SEEDS DKC 9144 ACC 4KG IN","C DK DKC9144 4KG IN"]
["INFINITO SC687 10X1LTR.","INFINITO SC687 5 10X1L BOT IN"]
["INFINITO SC687 20X500ML.","INFINITO SC687 5 20X500ML BOT IN"]
["JUMP WG80  2GR.","JUMP WG80 160X(10X2GR) BAG IN"]
["LARVIN (T) WP75 (40X100GM)","LARVIN (T) WP75 40X100GR BAG IN"]
["LAUDIS 115ML PACK","LAUDIS SC630 8X115ML BOT IN"]
["LAUDIS SC630 10X57.5ML","LAUDIS SC630 10X57.5ML BOT IN"]
["LAUDIS SC630 3X230ML","LAUDIS SC630 3X230ML BOT IN"]
["LUCIFER (T) WP 15 25X160GR.","LUCIFER (T) WP15 25X160GR BAG IN"]
["MONCEREN SC250 10X1L BOT IN","MONCEREN SC250 10X1L BOT IN"]
["MONCERON SC250 20X500ML BOT IN","MONCEREN SC250 20X500ML BOT IN"]
["MUSTARD 5222 30X1KG","MUSTARD 5222 30X1KG BAG IN"]
["NATIVO WG75 50X100GM","NATIVO WG75 50X100GR BAG IN"]
["NATIVO WG75 50X100GR BAG","NATIVO WG75 50X100GR BAG IN"]
["PLANOFIX SL4,5 50X100ML.","PLANOFIX SL4 5 50X100ML BOT IN"]
["REGENT GR 0.3,4X5KG","REGENT GR0 3 4X5KG BAG IN"]
["REGENT (T) SC50 20X250ML.","REGENT (T) SC50 20X250ML BOT IN"]
["REGENT (T) SC50 50X100ML BOT IN","REGENT (T) SC50 50X100ML BOT IN"]
["REGENT ULTRA GR 0.6 5X4KG.","REGENT ULTRA GR0 6 5X4KG BAG IN"]
["ROUNDUP 1LTR BOTTLES","ROUNDUP 41% SL (IN) 10X1 LTR"]
["ROUND UP SPEED 100ML.","bayer"]
["ROUNDUP SPEED, 1LTR BOTTLES","ROUNDUP 41% SL (IN) 10X1 LTR"]
["SECTIN WG60 20X600 GR","SECTIN WG60 20X600GR BAG IN"]
["SENCOR WP 70 60X100GR BAG","SENCOR WP70 60X100GR BAG IN"]
[8181,"new"]
["9108+","C DK DKC9108 4.5KG IN"]
[9144,"NEW"]
[9180,"MILLET PA 9180 (LOC) 20X1.50KG BAG IN"]
[9450,"MILLET HYBRID 9450 20X1 5KG BAG IN"]
["ADMIRE","NEW"]
["ALTRACOL","DISCOUNTINUE PRODUCT"]
["AMBITION","AMBITION 10X1L BOT IN"]
["FENOS QUICK","FENOS QUICK SC150 50X100ML BOT IN"]
["FOOST","FOOST WP50 24X500G BAG IN"]
["LAUDIS","LAUDIS SC630 8X115ML BOT IN"]
["Monsren500ml","MONCEREN SC250 20X500ML BOT IN"]
["REGENT","REGENT (T) SC50 10X1L BOT IN"]
["REJENT","DISCOUNTINUE PRODUCT"]
["Raundup","DISCOUNTINUE PRODUCT"]
["SENCOR","SENCOR WP70 60X100GR BAG IN"]
["monsren1Ltr","MONCEREN SC250 10X1L BOT IN"]
["Admire 2gm","ADMIRE WG70 125X(8X2GR) BAG IN"]
["Admire 300Gm","ADMIRE WG70 20X300GR BAG IN"]
["Admire 30gm","ADMIRE (T) WG70 150X30GR BOT IN"]
["Admire 75gm","ADMIRE (T) WG70 60X75GR BOT IN"]
["Admire150gm","ADMIRE (T) WG70 30X150GR BOT IN"]
["Aliette 100gm","ALIETTE WP80 40X100GR BAG IN"]
["Aliette1kg","ALIETTE WP80 10X1KG BAG IN"]
["Aliette250gm","ALIETTE WP80 20X250GR BAG IN"]
["Aliette500gm","ALIETTE WP80 20X500GR BAG IN"]
["Ambition 1Lit","AMBITION 10X1L BOT IN"]
["Ambition 250ml","AMBITION 40X250ML BOT IN"]
["Ambition 500ml","AMBITION 20X500ML BOT IN"]
["Antracol 100Gm","ANTRACOL (T) WP70 50X100GR BAG IN"]
["Antracol 1kg","ANTRACOL (T) WP70 10X1KG BAG IN"]
["Antracol 250gm","ANTRACOL (T) WP70 40X250GR BAG IN"]
["Antracol 500gm","ANTRACOL (T) WP70 20X500GR BAG IN"]
["Antracol1kg","ANTRACOL (T) WP70 10X1KG BAG IN"]
["Bajara Pa9285-1.5Kg","DISCOUNTINUE PRODUCT"]
["Buonos 100Ml","Bayer"]
["Buonos 250Ml","BUONOS SC430 40X250ML BOT IN"]
["Confidor 1Lit","CONFIDOR (T) SL200 10X1L BOT IN"]
["Confidor 250ml","CONFIDOR (T) SL200 20X250ML BOT IN"]
["Confidor 500ml","CONFIDOR (T) SL200 20X500ML BOT IN"]
["Confidor Super 100ml","CONFIDOR SUPER (T) SC350 50X100ML BOT IN"]
["Confidor Super 1lit","CONFIDOR SUPER (T) SC350 10X1L BOT IN"]
["Confidor Super 500ml","CONFIDOR SUPER (T) SC350 20X500ML BOT IN"]
["Confidor Super250ml","CONFIDOR SUPER (T) SC350 20X250ML BOT IN"]
["Decis 11%ec100ml","DECIS EC101-2 50X100ML BOX IN"]
["Decis 11%ec1lit","DECIS EC101-2 10X1L BOT IN"]
["Decis 11%ec250ml","DECIS EC101-2 40X250ML BOT IN"]
["Decis 2.8%ec -1lit","DECIS EC 28 10X1L BOT IN"]
["Decis 2.8%ec -250ml","DECIS EC 28 40X250ML BOT IN"]
["Decis 2.8%ec -500ml","DECIS EC 28 20X500ML BOT IN"]
["Decis 2.8%ec-100ml","DECIS EC 28 50X100ML BOT IN"]
["Dekalb Dk9141-3.5Kg","C DK DKC9141 3.5KG IN"]
["Dekalb Dkc 9149-4Kg","C DK DKC9149 4KG IN"]
["Dekalb Dkc9178-4Kg","C DK DKC9178 4KG IN"]
["Ethrel 1lit","ETHREL SL39 10X1L BOT IN"]
["Ethrel 500ml","ETHREL SL39 20X500ML BOT IN"]
["Evergol Extend 100Ml","EVERGOL XTEND FS308 50X100ML BOT IN"]
["Evergol Extend 250Ml","EVERGOL XTEND FS308 40X250ML BOT IN"]
["Evergol Extend 40Ml","EVERGOL XTEND FS308 100X40ML BOT IN"]
["Fame 100ml","FAME (T) SC480 20X100ML BOT IN"]
["Fenos Quick 100Ml","FENOS QUICK SC150 50X100ML BOT IN"]
["Fitrest 100gm","FITREST SG5 40X100GR BOT IN"]
["Folicur 1Lit","FOLICUR (T) EC250 10X1L BOT IN"]
["Folicur 250ml","FOLICUR (T) EC250 40X250ML BOT IN"]
["Folicur 500ml","FOLICUR (T) EC250 20X500ML BOT IN"]
["Foost 250GM","FOOST WP50 20X250G BAG IN"]
["Foost 500gm","FOOST WP50 24X500G BAG IN"]
["Infinito 100Ml","INFINITO SC687 5 50X100ML BOT IN"]
["Infinito 1Lit","INFINITO SC687 5 10X1L BOT IN"]
["Infinito 500Ml","INFINITO SC687 5 20X500ML BOT IN"]
["Larvin 1Kg","LARVIN (T) WP75 10X1KG BAG IN"]
["Larvin 500gm","LARVIN (T) WP75 20X500GR BAG IN"]
["Larvin100gm","LARVIN (T) WP75 40X100GR BAG IN"]
["Larvin250gm","LARVIN (T) WP75 20X250GR BAG IN"]
["Laudis 115ml","LAUDIS SC630 8X115ML BOT IN"]
["Laudis 57.5ml","LAUDIS SC630 10X57.5ML BOT IN"]
["Lesenta 100gm","LESENTA WG80 50X100GR BAG IN"]
["Lesenta 40gm","LESENTA WG80 100X40GR BAG IN"]
["Luna experience 100ml","LUNA EXPERIENCE SC400 50X100ML BOT IN"]
["Luna experience 1lit","LUNA EXPERIENCE SC400 10X1L BOT IN"]
["Luna experience 250ml","LUNA EXPERIENCE SC400 40X250ML BOT IN"]
["Luna experience 500ml","LUNA EXPERIENCE SC400 20X500ML BOT IN"]
["Melody 100gm","MELODY DUO WP66 8 50X100GR BAG IN"]
["Melody 400gm","MELODY DUO WP66 8 10X400GR BAG IN"]
["Melody 800gm","MELODY DUO WP66 8 10X800G BAG IN"]
["Movento Energy 100ml","MOVENTO ENERGY SC240 50X100ML BOT IN"]
["Movento Energy 1Lit","MOVENTO ENERGY SC240 10X1L BOT IN"]
["Movento Energy 250ml","MOVENTO ENERGY SC240 40X250ML BOT IN"]
["Movento Od 1Lit","MOVENTO OD150 10X1L BOT IN"]
["Movento Od250ml","MOVENTO OD150 40X250ML BOT IN"]
["Movento Od500ml","MOVENTO OD150 20X500ML BOT IN"]
["Nativo 100gm","NATIVO WG75 50X100GR BAG IN"]
["Nativo 10Gm","NATIVO WG75 20X(10X10GR) BAG IN"]
["Nativo 250gm","NATIVO WG75 40X250GR BAG IN"]
["Nativo 500Gm","NATIVO WG75 20X500GR BAG IN"]
["Oberon 200ml","OBERON (T) SC240 40X200ML BOT IN"]
["Oberon 500Ml","OBERON (T) SC240 20X500ML BOT IN"]
["Planofix 1lit","PLANOFIX SL45 10X1L BOT IN"]
["Planofix 250ml","PLANOFIX SL4 5 40X250ML BOT IN"]
["Planofix 500ml","PLANOFIX SL4 5 20X500ML BOT IN"]
["Profiler 1kg","PROFILER WG71 11 10X1KG BAG IN"]
["Profiler 250gm","PROFILER WG71 11 20X250GR BAG IN"]
["Regent 100 Ml","REGENT (T) SC50 50X100ML BOT IN"]
["Regent Gold 100ml","REGENT GOLD SC200 50X100ML BOT IN"]
["Regent Gold 250ml","REGENT GOLD SC200 40X250ML BOT IN"]
["Regent Gr 1kg","REGENT GR0 3 20X1KG BAG IN"]
["Regent Sc 1lit","REGENT (T) SC50 10X1L BOT IN"]
["Regent Sc 250ml","REGENT (T) SC50 20X250ML BOT IN"]
["Regent Sc 500ml","REGENT (T) SC50 20X500ML BOT IN"]
["Regent Ultra 1kg","REGENT ULTRA GR0 6 20X1KG BAG IN"]
["Regent Ultra 4kg","REGENT ULTRA GR0 6 5X4KG BAG IN"]
["Roundup 5Lit","ROUNDUP 41% SL (IN) 2X5 LTR"]
["Roundup Speed 100Ml","BAYER"]
["Roundup Speed 1Lit","ROUNDUP 41% SL (IN) 10X1 LTR"]
["Sectin 100gm","SECTIN WG60 50X100GR BAG IN"]
["Sectin 1kg","SECTIN WG60 10X1KG BAG IN"]
["Sectin 600gm","SECTIN WG60 20X600GR BAG IN"]
["Sencor 100gm","SENCOR WP70 60X100GR BAG IN"]
["Sencor 500gm","SENCOR WP70 20X500GR BOX IN"]
["Solomon 1lit","SOLOMON OD300 10X1L BOT IN"]
["Solomon 250ml","SOLOMON OD300 40X250ML BOT IN"]
["Solomon 500ml","SOLOMON OD300 20X500ML BOT IN"]
["Spintor 75ml","SPINTOR SC495 20X75ML BOT IN"]
["Sunrice 50gm","SUNRICE WG15 100X50GR BOT IN"]
["Topstar 22.5gm","TOPSTAR (T) WP80 8X(20X22.5GR) BOX IN"]
["Velum Prime 100Ml","VELUM PRIME SC400 50X100ML BOT IN"]
["Velum Prime 250ml","VELUM PRIME SC400 40X250ML BOT IN"]
["Velum Prime 500ml","VELUM PRIME SC400 20X500ML BOT IN"]
["Whip Super 100ml","WHIPSUPER (T) EC90 50X100ML BOT IN"]
["Whip Super250ml","WHIPSUPER (T) EC90 40X250ML BOT IN"]
["Whip Super500ml","WHIPSUPER (T) EC90 20X500ML BOT IN"]
["Whipsuper 1Lit","WHIPSUPER (T) EC90 10X1L BOT IN"]
["ADMIER 300 GM","ADMIRE WG70 20X300GR BAG IN"]
["ADMIRE 16 GMS","ADMIRE WG70 125X(8X2GR) BAG IN"]
["ADMIRE 2 GM","ADMIRE WG70 125X(8X2GR) BAG IN"]
["ADMIRE 30 GM","ADMIRE (T) WG70 150X30GR BOT IN"]
["ADUE 200 GM","ADUE WG70 3X200G BOT IN"]
["ALANTO 250 ML","ALANTO (T) SC240 40X250ML BOT IN"]
["ALANTO 500 ML","ALANTO (T) SC240 20X500ML BOT IN"]
["ALIETTE 1 KGS","ALIETTE WP80 10X1KG BAG IN"]
["ALIETTE (80WP) 100 GMS","ALIETTE WP80 40X100GR BAG IN"]
["ALIETTE 80 WP 250 GMS","ALIETTE WP80 20X250GR BAG IN"]
["ALIETTE 80 WP 500 GMS","ALIETTE WP80 20X500GR BAG IN"]
["AMBITION 500 ML","AMBITION 20X500ML BOT IN"]
["ANTRACOL (70WP) 100 GM","ANTRACOL (T) WP70 50X100GR BAG IN"]
["ANTRACOL (70WP) 1 KGS","ANTRACOL (T) WP70 10X1KG BAG IN"]
["ANTRACOL (70WP) 500 GM","ANTRACOL (T) WP70 20X500GR BAG IN"]
["ARENT SG 100 GM","REGENT (T) SC50 50X100ML BOT IN"]
["BAYFOLAN ZINK 250 GMS","DISCOUNTINUE PRODUCT"]
["BAYLETON 500 GM","DISCOUNTINUE PRODUCT"]
["BECTIN WG 60 100 GMS","SECTIN WG60 50X100GR BAG IN"]
["BELT EXPERT 100 ML","BELT EXPERT SC480 50X100ML BOT IN"]
["Belt Expert 250ml","BELT EXPERT SC480 40X250ML BOT IN"]
["BILCYP 10 EC 1 LTR","DISCOUNTINUE PRODUCT"]
["BILCYP 10 EC 250 ML","DISCOUNTINUE PRODUCT"]
["BILCYP 10 EC 500 ML","DISCOUNTINUE PRODUCT"]
["BILCYP 10 EC 5 LTR","DISCOUNTINUE PRODUCT"]
["BILZEB (75WP) 1 KGS","DISCOUNTINUE PRODUCT"]
["BILZEB (75WP) 500 GMS","DISCOUNTINUE PRODUCT"]
["CONFIDOR 50 ML","CONFIDOR (T) SL200 100X50ML BOT IN"]
["CONFIDOR SUPER 50 ML","CONFIDOR SUPER (T) SC350 50X50ML BOT IN"]
["COTTON -ASHA 1171 BTII 450 GMS","SURPASS AASHA 1171 BG2 20X450G BAG IN"]
["COTTON- DHANNO BT-2 450 GMS","SURPASS DHANNO B2 20X450GR BOX IN"]
["COTTON- DHANNO BT BAYER 450 GMS","SURPASS DHANNO B2 20X450GR BOX IN"]
["COTTON-FAST CLASS 450 GM","SURPASS FIRSTCLASS 7149B2 20X450G BAG IN"]
["COTTON FIRST CLASS 7149 BT 450 GM","SURPASS FIRSTCLASS 7149B2 20X450G BAG IN"]
["COTTON- SP1037 BT 2 BAYER 450 GMS","New"]
["COTTON SURPASS SUPERB BG2 450 GR","SURPASS SUPERB BG2 20X450G BAG IN"]
["CYBIL 25 EC 1 LTR","DISCOUNTINUE PRODUCT"]
["CYBIL 25 EC 250","DISCOUNTINUE PRODUCT"]
["CYBIL 25 ES 500 ML","DISCOUNTINUE PRODUCT"]
["DECIS 100 ES 250 ML","DECIS EC101-2 40X250ML BOT IN"]
["DECIS 2.8 EC 250 ML","DECIS EC 28 40X250ML BOT IN"]
["DECIS 2.8 EC 500 ML","DECIS EC 28 20X500ML BOT IN"]
["DECIS EC 101, 100ML","DECIS EC101-2 50X100ML BOX IN"]
["DEROSAL 50 WP 100 GMS","DISCOUNTINUE PRODUCT"]
["DEROSAL WP 50 500 GMS","DISCOUNTINUE PRODUCT"]
["ETHERAL SL 1 LTR","ETHREL SL39 10X1L BOT IN"]
["ETHEREL 500 ML","ETHREL SL39 20X500ML BOT IN"]
["EVERGOL XTEND 100 ML","EVERGOL XTEND FS308 50X100ML BOT IN"]
["EVERGOLXTEND 250 ML","EVERGOL XTEND FS308 40X250ML BOT IN"]
["EVERGOL  XTEND  40 ML","EVERGOL XTEND FS308 100X40ML BOT IN"]
["FAME 10ML","FAME (T) SC480 10X(20X10ML) BOT IN"]
["FENOS  QUICK SC 150 100 ML","FENOS QUICK SC150 50X100ML BOT IN"]
["FENOS QUICK SC 150 250 ML","FENOS QUICK SC150 40X250ML BOT IN"]
["FITREST 100 GM","FITREST SG5 40X100GR BOT IN"]
["FITREST 250 GM","FITREST SG5 16X250GR BOT IN"]
["FOOST WP50 250GM","FOOST WP50 20X250G BAG IN"]
["FOOST WP50 500 GM","FOOST WP50 24X500G BAG IN"]
["GAUCHO 600 FS 100 ML","GAUCHO FS600 50X100ML BOT IN"]
["GAUCHO 600 FS 1 LTR","GAUCHO FS600 2X(5X1L) BOT IN"]
["Gaucho600fs 250ml","GAUCHO FS600 40X250ML BOT IN"]
["GAUCHO 600 FS 5 LTR","GAUCHO FS600 2X5L BOT IN"]
["GAUCHO 70 WS 9 GMS","GAUCHO FS600 5X(20X9)ML BOT IN"]
["HOSTATHION 40EC 100 ML","DISCOUNTINUE PRODUCT"]
["HOSTATHION 40EC 5 LTR","DISCOUNTINUE PRODUCT"]
["HOSTATHION 40 ES 1 LTR","DISCOUNTINUE PRODUCT"]
["HOSTATHION 40 ES 250 ML","DISCOUNTINUE PRODUCT"]
["HOSTATHION 40 ES 500 ML","DISCOUNTINUE PRODUCT"]
["INFINITO SC687, 100 ML","INFINITO SC687 5 40X250ML BOT IN"]
["JAWAR- 8562 3 KGS","JUMP WG80 160X(10X2GR) BAG IN"]
["JAWAR - SORGUM HYBRID 8562 3 KGS","New"]
["JUMP 20 GM","JUMP WG80 160X(10X2GR) BAG IN"]
["JUMP (WG80) 10X2GR","JUMP WG80 80X40GR BAG IN"]
["JUMP (WG80)40 GMS","DISCOUNTINUE PRODUCT"]
["KARLE US6214 500","DISCOUNTINUE PRODUCT"]
["KAR US-6214 250","DISCOUNTINUE PRODUCT"]
["K-OTHRINE SC 25.2 1 LTR","K-OTHRINE SC25 5 15X1L BOT IN"]
["K-OTHRINE SC25.5 50 ML","K-OTHRINE SC25 5 15X1L BOT IN"]
["K-OTHRINE WP2.5 120DRM","DISCOUNTINUE PRODUCT"]
["LARVIN 75WP 100 GM","LARVIN (T) WP75 40X100GR BAG IN"]
["LARVIN 75WP 1 KG","LARVIN (T) WP75 10X1KG BAG IN"]
["LARVIN 75 WP 250 GMS","LARVIN (T) WP75 20X250GR BAG IN"]
["Larvin 75wp 500 Gm","LARVIN (T) WP75 20X500GR BAG IN"]
["LAUDIS 57.5 ML","LAUDIS SC630 10X57.5ML BOT IN"]
["LESENTA WG80 40 GM","LESENTA WG80 100X40GR BAG IN"]
["LUNAEXPERIENCE SC 400 100 ML","LUNA EXPERIENCE SC400 50X100ML BOT IN"]
["MAIZ- 4640 BAYER 5 KGS","New"]
["MAIZ- SAMARTH 5 KGS","New"]
["MAIZ- SAMPPANN 5 KG","New"]
["MELIDY DUO 500 GMS","New"]
["MELODY DUG 1 KGS","New"]
["MELODY DUO 400gm","MELODY DUO WP66 8 10X400GR BAG IN"]
["Melody Duo 800gm","MELODY DUO WP66 8 10X800G BAG IN"]
["MOVENTO 250 ML","MOVENTO OD150 40X250ML BOT IN"]
["MOVENTO ENERGY 100 ML","MOVENTO ENERGY SC240 50X100ML BOT IN"]
["NATIVO 50 GM","NATIVO WG75 100X50GR BAG IN"]
["OBERON 50 ML","OBERON (T) SC240 100X50ML BOT IN"]
["OBERON SC 240 200 ML","OBERON (T) SC240 40X200ML BOT IN"]
["PERIDIAM 10 LTR","New"]
["PLANOFIX 4.5 SL 100 ML","PLANOFIX SL4 5 50X100ML BOT IN"]
["PLANOFIX 4.5 SL 250 ML","PLANOFIX SL4 5 40X250ML BOT IN"]
["PLANOFIX 500 ML","PLANOFIX SL4 5 20X500ML BOT IN"]
["PREMISE SC350 250 ML","PREMISE SC350 40X250ML BOT IN"]
["QUINTAL (50WP) 100 GMS","DISCOUNTINUE PRODUCT"]
["QUINTAL (50WP) 200 GMS","DISCOUNTINUE PRODUCT"]
["QUINTAL (50WP) 500 GMS","DISCOUNTINUE PRODUCT"]
["RAXIL 100 GMS","RAXIL (T) DS2 5X(10X100GR) BAG IN"]
["RAXIL 40 GM","RAXIL (T) DS2 5X(25X40GR) BAG IN"]
["REGENT 5 SC 100 ML","REGENT (T) SC50 50X100ML BOT IN"]
["REGENT5 SC 1 LTR","RICESTAR EC69 10X1L BOT IN"]
["REGENT 5 SC 250 ML","REGENT (T) SC50 20X250ML BOT IN"]
["REGENT 5 SC 500 ML","REGENT (T) SC50 20X500ML BOT IN"]
["REGENT GOLD SC200 100 ML","REGENT GOLD SC200 50X100ML BOT IN"]
["REGENT GOLD SC200 250 ML","REGENT GOLD SC200 40X250ML BOT IN"]
["REGENT (GR) 25 KG","REGENT GR0 3 1X25KG BOX WW"]
["REGENT (GR) 5 KG","REGENT GR0 3 4X5KG BAG IN"]
["ROUND-UP 1 LTR BAYER","ROUNDUP 41% SL (IN) 10X1 LTR"]
["ROUND-UP 5 LTR BAYER","ROUNDUP 41% SL (IN) 2X5 LTR"]
["SECTIN WG 60 100 GM","SECTIN WG60 50X100GR BAG IN"]
["SECTIN WG 60 250 GRM","New"]
["SECTIN WG 60 600 GRM","SECTIN WG60 20X600GR BAG IN"]
["SENCOR 500 GM","SENCOR WP70 20X500GR BOX IN"]
["SEVIN 50 WP 500 GMS","New"]
["SHAREFA ALFA 1 LTR","DISCOUNTINUE PRODUCT"]
["SOLITUTE 1 LTR","SOLITUDE SL107 4X1L BOT IN"]
["SOLOMAN 100 ML","SOLOMON OD300 50X100ML BOT IN"]
["SOLOMAN 1 LTR","SOLOMON OD300 10X1L BOT IN"]
["SOLOMAN 250ml","SOLOMON OD300 40X250ML BOT IN"]
["SOLOMAN 500 ML","SOLOMON OD300 20X500ML BOT IN"]
["SPARK 36EC 100 ML","DISCOUNTINUE PRODUCT"]
["SPARK 36 ES 1 LTR","DISCOUNTINUE PRODUCT"]
["SPARK 36 ES 250 ML","DISCOUNTINUE PRODUCT"]
["SPARK 36 ES 500 ML","DISCOUNTINUE PRODUCT"]
["SPARK 36 ES 5 LTR","DISCOUNTINUE PRODUCT"]
["SPINTOR  250 ML","new"]
["Spintor 45sc 7ml","SPINTOR SC495 10X(20X7ML) BOT IN"]
["SURPASS SUPERB 450 GM COTTAN","SURPASS SUPERB BG2 20X450G BAG IN"]
["TAMARON GOLD 1 KGS","DISCOUNTINUE PRODUCT"]
["TAMARON GOLD 500 GMS","DISCOUNTINUE PRODUCT"]
["TAMARON GOLD 75 SP 250 GMS","DISCOUNTINUE PRODUCT"]
["TAMARON GOLD 75 SP 25 KG","DISCOUNTINUE PRODUCT"]
["THIDON 35 ES 5 LTR","DISCOUNTINUE PRODUCT"]
["THIODAN 35 EC 5 LTR","DISCOUNTINUE PRODUCT"]
["THIODAN 35 ES 1 LTR","DISCOUNTINUE PRODUCT"]
["THIODAN 35 ES 250 ML","DISCOUNTINUE PRODUCT"]
["THIODAN 35 ES 500 ML","DISCOUNTINUE PRODUCT"]
["THIOVIT JET 500 GMS","DISCOUNTINUE PRODUCT"]
["TRANZ WP25 15 GMS","DISCOUNTINUE PRODUCT"]
["VELUM PRIME SC 400 100ML","VELUM PRIME SC400 50X100ML BOT IN"]
["VELUM PRIME SC400 250 ML","VELUM PRIME SC400 40X250ML BOT IN"]
["VELUM PRIME SC400 500ML","VELUM PRIME SC400 20X500ML BOT IN"]
["WHIP SUPER 100 ML","WHIPSUPER (T) EC90 50X100ML BOT IN"]
["WHIP SUPER 1 LTR","WHIPSUPER (T) EC90 10X1L BOT IN"]
["WHIP SUPER 250 ML","WHIPSUPER (T) EC90 40X250ML BOT IN"]
["WHIP SUPER 500ml","WHIPSUPER (T) EC90 20X500ML BOT IN"]
["ADMIRE 2G","ADMIRE WG70 125X(8X2GR) BAG IN"]
["AMBITION 1LTR","AMBITION 10X1L BOT IN"]
["Ambiton 250ml","AMBITION 40X250ML BOT IN"]
["ANTRACOL 100GR","ANTRACOL (T) WP70 50X100GR BAG IN"]
["ANTRACOL 250GR","ANTRACOL (T) WP70 40X250GR BAG IN"]
["ANTRACOL 500G","ANTRACOL (T) WP70 20X500GR BAG IN"]
["CORN DKC-7074 4KG","C DK DKC7074 4KG IN"]
["CORN DKC-8144 4KG","C DK DKC8144 4KG IN"]
["CORN DKC-9126 4KG","C DK DKC9126 4KG"]
["CORN DKC 9126 C DK 4KG","C DK DKC9126 4KG"]
["CORN DKC-9133 4KG","C DK DKC9133 4KG IN"]
["CORN DKC9141 3.5KG","C DK DKC9141 3.5KG IN"]
["CORN MAIZE DKC 9133 4kg C DK","C DK DKC9133 4KG IN"]
["CORN MAIZE DKC 9198 4.5kg","C DK DKC9198 4.5KG AU IN"]
["Decis EC 101 1ltr","DECIS EC101-2 10X1L BOT IN"]
["Decis Ec101,2  100ml","DECIS EC101-2 50X100ML BOX IN"]
["Decis Ec101 250ml","DECIS EC101-2 40X250ML BOT IN"]
["Evergol Xtend FS308 100ml","EVERGOL XTEND FS308 50X100ML BOT IN"]
["Evergol Xtend Fs 308 40ml","EVERGOL XTEND FS308 100X40ML BOT IN"]
["FAME SC 480 -100ML","FAME (T) SC480 20X100ML BOT IN"]
["FAME SC 480 -100ML_N_","FAME (T) SC480 20X100ML BOT IN"]
["FAME SC 480 -10ML","FAME (T) SC480 10X(20X10ML) BOT IN"]
["FAME SC 480 250ML","FAME (T) SC480 8X250ML BOT IN"]
["FAME SC480 -50ML","FAME (T) SC480 40X50ML BOT IN"]
["Foost 250g","FOOST WP50 20X250G BAG IN"]
["Foost 500gr","FOOST WP50 24X500G BAG IN"]
["Gaucho 100ml","GAUCHO FS600 50X100ML BOT IN"]
["Gaucho 50ml","GAUCHO FS600 100X50ML BOT IN"]
["Lucifer (T) Wp15 160gm","LUCIFER (T) WP15 25X160GR BAG IN"]
["Regent GR0 5kg","REGENT GR0 3 4X5KG BAG IN"]
["Regent (T) SC50 100ml","REGENT (T) SC50 50X100ML BOT IN"]
["Ricestar Ec69 250ml","RICESTAR EC69 40X250ML BOT IN"]
["Ricestar Ec69 500ml","RICESTAR EC69 20X500ML BOT IN"]
["SENCOR 100G","SENCOR WP70 60X100GR BAG IN"]
["SENCOR 500GR","SENCOR WP70 20X500GR BOX IN"]
["Soloman 100ml","SOLOMON OD300 50X100ML BOT IN"]
["Soloman 1ltr","SOLOMON OD300 10X1L BOT IN"]
["Soloman OD300 250ml","SOLOMON OD300 40X250ML BOT IN"]
["Soloman OD300 500ml","SOLOMON OD300 20X500ML BOT IN"]
["WHIPSUPER 100 ML","WHIPSUPER (T) EC90 50X100ML BOT IN"]
["WHIPSUPER 500 ML","WHIPSUPER (T) EC90 20X500ML BOT IN"]
["Admire 150gm","ADMIRE (T) WG70 30X150GR BOT IN"]
["Aliette 1kg","ALIETTE WP80 10X1KG BAG IN"]
["Aliette 250gm","ALIETTE WP80 20X250GR BAG IN"]
["Aliette 500gm","ALIETTE WP80 20X500GR BAG IN"]
["Alliette 1kg","ALIETTE WP80 10X1KG BAG IN"]
["Alliette 250gm","ALIETTE WP80 20X250GR BAG IN"]
["Basta-1ltr","BASTA SL150 10X1L BOT IN"]
["Buonos Sc 430-250ml","BUONOS SC430 40X250ML BOT IN"]
["Confidor 1ltr","CONFIDOR (T) SL200 10X1L BOT IN"]
["Confidor 50ml","CONFIDOR (T) SL200 100X50ML BOT IN"]
["Confidor Super 1ltr","CONFIDOR SUPER (T) SC350 10X1L BOT IN"]
["Confidor Super 250ml","CONFIDOR SUPER (T) SC350 20X250ML BOT IN"]
["DECIS100 - 100 ML","DECIS EC101-2 50X100ML BOX IN"]
["Decis2.8- 100ml","DECIS EC 28 50X100ML BOT IN"]
["Decis2.8- 1lit","DECIS EC 28 10X1L BOT IN"]
["Decis2.8-250ml","DECIS EC 28 40X250ML BOT IN"]
["Decis2.8-500ml","DECIS EC 28 20X500ML BOT IN"]
["Ditaf 200 Gm","DISCOUNTINUE PRODUCT"]
["Ethrel 1ltr","ETHREL SL39 10X1L BOT IN"]
["Ethrel 250ml","Bayer"]
["Evergol Xtend-100ml","EVERGOL XTEND FS308 50X100ML BOT IN"]
["Fame-50ml","FAME (T) SC480 40X50ML BOT IN"]
["Fenos Quick Sc 150-100ml","FENOS QUICK SC150 50X100ML BOT IN"]
["Fenos Quick Sc 150-250ml","FENOS QUICK SC150 40X250ML BOT IN"]
["Fit Rest100 Gm","FITREST SG5 40X100GR BOT IN"]
["Foost 100ml","Bayer"]
["Foost 1kg","Bayer"]
["Gaucho 9ml","GAUCHO FS600 5X(20X9)ML BOT IN"]
["Jump WG80- 40 Gm","JUMP WG80 80X40GR BAG IN"]
["Larvin 100gm","LARVIN (T) WP75 40X100GR BAG IN"]
["Larvin 250gm","LARVIN (T) WP75 20X250GR BAG IN"]
["Lesenta 1kg","bayer"]
["Lesenta 250gm","LESENTA WG80 20X250GR BAG IN"]
["Lesenta 500gm","LESENTA WG80 10X500GR BAG IN"]
["Luna Exper 1ltr","LUNA EXPERIENCE SC400 10X1L BOT IN"]
["Luna Experience 1lt","LUNA EXPERIENCE SC400 10X1L BOT IN"]
["Melody Deo 100gm","MELODY DUO WP66 8 50X100GR BAG IN"]
["Melody Deo- 400 Gm","MELODY DUO WP66 8 10X400GR BAG IN"]
["MOVENTO ENERGY SC 1ltr","MOVENTO ENERGY SC240 10X1L BOT IN"]
["Movento OD150-1 Ltr","MOVENTO OD150 10X1L BOT IN"]
["Movento Od150-500ml","MOVENTO OD150 20X500ML BOT IN"]
["Movento Od-250ml","MOVENTO OD150 40X250ML BOT IN"]
["Nativo - 100gm","NATIVO WG75 50X100GR BAG IN"]
["Nativo - 10gm","NATIVO WG75 20X(10X10GR) BAG IN"]
["Nativo -50 Gm","NATIVO WG75 100X50GR BAG IN"]
["PLANOFIX SL4 -250 ML","PLANOFIX SL4 5 40X250ML BOT IN"]
["Regent Gold - 250ml","REGENT GOLD SC200 40X250ML BOT IN"]
["Regent GR 5kg","REGENT GR0 3 4X5KG BAG IN"]
["Regent Sc 100ml","REGENT (T) SC50 50X100ML BOT IN"]
["Regent Sc 1ltr","REGENT (T) SC50 10X1L BOT IN"]
["Sencor 1kg","New"]
["Sencor 250gm","New"]
["Solomon 1ltr","SOLOMON OD300 10X1L BOT IN"]
["Spintor 7ml","SPINTOR SC495 10X(20X7ML) BOT IN"]
["Sunrice Ws15- 50gm","SUNRICE WG15 100X50GR BOT IN"]
["Velum Prime 250 Ml","VELUM PRIME SC400 40X250ML BOT IN"]
["WHIPSUPER 100ml","WHIPSUPER (T) EC90 50X100ML BOT IN"]
["Whipsuper 250ml","WHIPSUPER (T) EC90 40X250ML BOT IN"]
["Bayer Admire 150gm","ADMIRE (T) WG70 30X150GR BOT IN"]
["Bayer Admire 75gm","ADMIRE (T) WG70 60X75GR BOT IN"]
["Bayer Adora 10ml","ADORA (T) SC100 100X10ML BOT IN"]
["Bayer Adora 50ml","ADORA (T) SC100 50X50ML BOT IN"]
["Bayer Adue 100gm","ADUE WG70 6X100G BOT IN"]
["Bayer Adue 40gm","ADUE WG70 15X40G BOT IN"]
["Bayer Adue Wg 70 200gm","ADUE WG70 3X200G BOT IN"]
["Bayer Alanto 250ml","ALANTO (T) SC240 40X250ML BOT IN"]
["Bayer Aliette 100gm","ALIETTE WP80 40X100GR BAG IN"]
["Bayer Aliette 250gm","ALIETTE WP80 20X250GR BAG IN"]
["Bayer Ambition 1ltr","AMBITION 10X1L BOT IN"]
["Bayer Confidor 100ml","CONFIDOR (T) SL200 50X100ML BOT IN"]
["Bayer Confidor 1ltr","CONFIDOR (T) SL200 10X1L BOT IN"]
["Bayer Confidor 250ml","CONFIDOR (T) SL200 20X250ML BOT IN"]
["Bayer Confidor 500ml","CONFIDOR (T) SL200 20X500ML BOT IN"]
["Bayer Confidor Super 100ml","CONFIDOR SUPER (T) SC350 50X100ML BOT IN"]
["Bayer Confidor Super 250ml","CONFIDOR SUPER (T) SC350 20X250ML BOT IN"]
["Bayer Confidor Super 500ml","CONFIDOR SUPER (T) SC350 20X500ML BOT IN"]
["Bayer Decis 1ltr","DECIS EC 28 10X1L BOT IN"]
["Bayer Decis 250ml","DECIS EC 28 40X250ML BOT IN"]
["Bayer Decis 500ml","DECIS EC 28 20X500ML BOT IN"]
["Bayer Evergol xtend 40ml","EVERGOL XTEND FS308 100X40ML BOT IN"]
["Bayer Fame 100ml","FAME (T) SC480 20X100ML BOT IN"]
["Bayer Fame 250ml","FAME (T) SC480 8X250ML BOT IN"]
["Bayer Fitrest Sg5 100gm","FITREST SG5 40X100GR BOT IN"]
["Bayer Fitrest Sg5 250gm","FITREST SG5 16X250GR BOT IN"]
["Bayer Folicur (T) EC250 250ml","FOLICUR (T) EC250 40X250ML BOT IN"]
["Bayer Gaucho FS 600 100ML","GAUCHO FS600 50X100ML BOT IN"]
["Bayer Gaucho FS 600 50ml","GAUCHO FS600 100X50ML BOT IN"]
["Bayer Jump 40gm","JUMP WG80 80X40GR BAG IN"]
["Bayer Larvin 100gm","LARVIN (T) WP75 40X100GR BAG IN"]
["Bayer Larvin 1kg","LARVIN (T) WP75 10X1KG BAG IN"]
["Bayer Larvin 250gm","LARVIN (T) WP75 20X250GR BAG IN"]
["Bayer Larvin 500gm","LARVIN (T) WP75 20X500GR BAG IN"]
["Bayer Lesenta 100gm","LESENTA WG80 50X100GR BAG IN"]
["Bayer Lesenta 250gm","LESENTA WG80 20X250GR BAG IN"]
["Bayer Lesenta wg80 250gm","LESENTA WG80 20X250GR BAG IN"]
["Bayer Movento 250ml","MOVENTO OD150 40X250ML BOT IN"]
["Bayer Movento Energy 1ltr","MOVENTO ENERGY SC240 10X1L BOT IN"]
["Bayer Movento Energy 250ml","MOVENTO ENERGY SC240 40X250ML BOT IN"]
["Bayer Nativo 250gm","NATIVO WG75 40X250GR BAG IN"]
["Bayer Nativo wg75 10gm","NATIVO WG75 20X(10X10GR) BAG IN"]
["Bayer Nativo wg 75 50gm","NATIVO WG75 100X50GR BAG IN"]
["Bayer Planofix 250ml","PLANOFIX SL4 5 40X250ML BOT IN"]
["Bayer Regent 1ltr","REGENT ULTRA GR0 6 20X1KG BAG IN"]
["Bayer Regent 250ml","REGENT (T) SC50 20X250ML BOT IN"]
["Bayer Regent 500ml","REGENT (T) SC50 20X500ML BOT IN"]
["Bayer Regent Gold 250ml","REGENT GOLD SC200 40X250ML BOT IN"]
["Bayer Regent gold 500ml","REGENT GOLD SC200 20X500ML BOT IN"]
["Bayer Regent ultra GR0,6 1kg","REGENT ULTRA GR0 6 20X1KG BAG IN"]
["Bayer Roundup 1lit","ROUNDUP 41% SL (IN) 10X1 LTR"]
["Bayer Roundup 5lit","ROUNDUP 41% SL (IN) 2X5 LTR"]
["Bayer Sivanto Prime 1 Ltr","SIVANTO PRIME SL200 10X1L BOT IN"]
["Bayer Sivanto Prime 250ml","SIVANTO PRIME SL200 40X250ML BOT IN"]
["Bayer Sivanto Prime 500ml","SIVANTO PRIME SL200 20X500ML BOT IN"]
["Bayer Solomon 1ltr","SOLOMON OD300 10X1L BOT IN"]
["Bayer Spintor 75ml","SPINTOR SC495 20X75ML BOT IN"]
["Bayer Spintor 7ml","SPINTOR SC495 10X(20X7ML) BOT IN"]
["Bayer Superb BG2 Cotton 450gm","SURPASS SUPERB BG2 20X450G BAG IN"]
["Bayer Surpass fc -7149 cotton 475gm","SURPASS FIRSTCLASS 7149B2 20X450G BAG IN"]
["Bayer Surpass firstclass Cotton 7149B2 450gm","SURPASS FIRSTCLASS 7149B2 20X450G BAG IN"]
["Bayer SURPASS SAFAL Cotton- 555 120gm","DISCOUNTINUE PRODUCT"]
["Bayer Surpass superb cotton 475gm","SURPASS SUPERB BG2 20X450G BAG IN"]
["Bayer Top star 35gm","TOPSTAR (T) WP80 10X(10X35GR) BOX IN"]
["Bayer Whipsuper 1ltr","WHIPSUPER (T) EC90 10X1L BOT IN"]
["Bayer Whipsuper 250ml","WHIPSUPER (T) EC90 40X250ML BOT IN"]
["Bayer Whipsuper 500ml","WHIPSUPER (T) EC90 20X500ML BOT IN"]
["ADMIRE (150GM)","ADMIRE (T) WG70 30X150GR BOT IN"]
["ADMIRE (300GM)","ADMIRE WG70 20X300GR BAG IN"]
["ADMIRE (75GM)","ADMIRE (T) WG70 60X75GR BOT IN"]
["ADORA (10ML)","ADORA (T) SC100 100X10ML BOT IN"]
["ADUE (100GR)","ADUE WG70 6X100G BOT IN"]
["ADUE (200GR)","ADUE WG70 3X200G BOT IN"]
["ALANTO (100ML)","ALANTO (T) SC240 50X100ML BOT IN"]
["AMBITION (1LIT)","AMBITION 10X1L BOT IN"]
["CONFIDOR (1LIT)","CONFIDOR (T) SL200 10X1L BOT IN"]
["CONFIDOR (500ML)","CONFIDOR (T) SL200 20X500ML BOT IN"]
["DECIES 2.8(1LTR)","DECIS EC 28 10X1L BOT IN"]
["DECIS (250ML)","DECIS EC 28 40X250ML BOT IN"]
["DECIS 2.8EC  (500ML)","DECIS EC 28 20X500ML BOT IN"]
["EVERGOL XTEND (40ML)","EVERGOL XTEND FS308 100X40ML BOT IN"]
["FAME (10ML)","FAME (T) SC480 20X100ML BOT IN"]
["FOLICUR (1LIT)","FOLICUR (T) EC250 10X1L BOT IN"]
["FOLICUR (250ML)","FOLICUR (T) EC250 40X250ML BOT IN"]
["FOLICUR (500ML)","FOLICUR (T) EC250 20X500ML BOT IN"]
["JUMP (100GM)","JUMP WG80 2X(15X100GR) BOT IN"]
["JUMP ( 2 GM)","JUMP WG80 160X(10X2GR) BAG IN"]
["JUMP (40 GM)","JUMP WG80 80X40GR BAG IN"]
["LESENTA (250GM)","LESENTA WG80 20X250GR BAG IN"]
["LESENTA (40GR)","LESENTA WG80 100X40GR BAG IN"]
["MOVENTO ENERGY (100ML)","MOVENTO ENERGY SC240 50X100ML BOT IN"]
["MOVENTO ENERGY (1LIT)","MOVENTO ENERGY SC240 10X1L BOT IN"]
["MOVENTO ENERGY (250ML)","MOVENTO ENERGY SC240 40X250ML BOT IN"]
["OBERON (1LIT)","OBERON (T) SC240 10X1L BOT IN"]
["PLANOFIX (1LIT)","PLANOFIX SL45 10X1L BOT IN"]
["PLANOFIX (250ML)","PLANOFIX SL4 5 40X250ML BOT IN"]
["PLANOFIX (500ML)","PLANOFIX SL4 5 20X500ML BOT IN"]
["REGENT GOLD (100ML)","REGENT GOLD SC200 50X100ML BOT IN"]
["REGENT GOLD (1LTR)","REGENT GOLD SC200 10X1L BOT IN"]
["REGENT GOLD (250ML)","REGENT GOLD SC200 40X250ML BOT IN"]
["REGENT GOLD (500ML)","REGENT GOLD SC200 20X500ML BOT IN"]
["REGENT SC (100ML)","REGENT (T) SC50 50X100ML BOT IN"]
["REGENT SC (1LIT)","REGENT (T) SC50 10X1L BOT IN"]
["REGENT SC (250ML)","REGENT (T) SC50 20X250ML BOT IN"]
["REGENT SC (500ML)","REGENT (T) SC50 20X500ML BOT IN"]
["ROUND UP (1 LTR)","ROUNDUP 41% SL (IN) 10X1 LTR"]
["ROUNDUP (20 LTR)","ROUNDUP 41% SL (IN) 1X20 LTR"]
["ROUNDUP (5LTR)","ROUNDUP 41% SL (IN) 2X5 LTR"]
["SENCOR (100GM)","SENCOR WP70 60X100GR BAG IN"]
["SIVANTO PRIME(1LIT)","SIVANTO PRIME SL200 10X1L BOT IN"]
["SIVANTO PRIME (250ML)","SIVANTO PRIME SL200 40X250ML BOT IN"]
["SIVANTO PRIME (500ML)","SIVANTO PRIME SL200 20X500ML BOT IN"]
["SOLOMON (1LIT)","SOLOMON OD300 10X1L BOT IN"]
["SOLOMON (500ML)","SOLOMON OD300 20X500ML BOT IN"]
["SPINTOR (7ML)","SPINTOR SC495 10X(20X7ML) BOT IN"]
["SUPER CONFIDOR (100ML)","CONFIDOR SUPER (T) SC350 50X100ML BOT IN"]
["SUPER CONFIDOR (1LIT)","CONFIDOR SUPER (T) SC350 10X1L BOT IN"]
["SUPER CONFIDOR (250ML)","CONFIDOR SUPER (T) SC350 20X250ML BOT IN"]
["SUPER CONFIDOR( 500ML)","CONFIDOR SUPER (T) SC350 20X500ML BOT IN"]
["SUPER CONFIDOR (50ML)","CONFIDOR SUPER (T) SC350 50X50ML BOT IN"]
["WHIP SUPER (100ML)","WHIPSUPER (T) EC90 50X100ML BOT IN"]
["WHIP SUPER (1LIT)","WHIPSUPER (T) EC90 10X1L BOT IN"]
["WHIP SUPER (250)","WHIPSUPER (T) EC90 40X250ML BOT IN"]
["WHIP SUPER (500ML)","WHIPSUPER (T) EC90 20X500ML BOT IN"]
["Admire 70%Wg 2GmX8","ADMIRE WG70 125X(8X2GR) BAG IN"]
["Admire 70%Wg 300Gms","ADMIRE WG70 20X300GR BAG IN"]
["Admire 70%Wg 30Gms","ADMIRE (T) WG70 150X30GR BOT IN"]
["Admire 70%Wg 75Gms","ADMIRE (T) WG70 60X75GR BOT IN"]
["Adora(T)Sc 80ml","ADORA (T) SC100 50X50ML BOT IN"]
["Alanto 21.7%Sc 100ML","ALANTO (T) SC240 50X100ML BOT IN"]
["Alanto 21.7%Sc 250ML","ALANTO (T) SC240 40X250ML BOT IN"]
["Alanto 21.7%Sc 500ML","ALANTO (T) SC240 20X500ML BOT IN"]
["Aliette 80%WP 100gms","ALIETTE WP80 40X100GR BAG IN"]
["Aliette 80%WP 1Kg","ALIETTE WP80 10X1KG BAG IN"]
["Aliette 80%WP 250gms","ALIETTE WP80 20X250GR BAG IN"]
["Aliette 80%WP 500Gms","ALIETTE WP80 20X500GR BAG IN"]
["Ambition 100ml","AMBITION 50X100ML BOT IN"]
["Antracol 70%WP 100gm","ANTRACOL (T) WP70 50X100GR BAG IN"]
["Antracol 70%WP 1kg","ANTRACOL (T) WP70 10X1KG BAG IN"]
["Antracol 70%WP 250gm","ANTRACOL (T) WP70 40X250GR BAG IN"]
["Antracol 70%WP 500gm","ANTRACOL (T) WP70 20X500GR BAG IN"]
["Basta 13.5% SL 1Ltr","BASTA SL150 10X1L BOT IN"]
["Baycor 100gms","DISCOUNTINUE PRODUCT"]
["Bayleton 100gms","DISCOUNTINUE PRODUCT"]
["Bayleton  1kg","DISCOUNTINUE PRODUCT"]
["Bayleton   500gm","DISCOUNTINUE PRODUCT"]
["Baytex 1Ltr","DISCOUNTINUE PRODUCT"]
["Belt Expert 480sc 100mlX50","BELT EXPERT SC480 100X50ML BOT IN"]
["Belt Expert 480sc 50mlx100","BELT EXPERT SC480 100X50ML BOT IN"]
["Bilzeb 75%Wp 1kg","DISCOUNTINUE PRODUCT"]
["Bilzeb 75%Wp  500gms","DISCOUNTINUE PRODUCT"]
["Bitam 1ltr","DISCOUNTINUE PRODUCT"]
["Bitam 250ml","DISCOUNTINUE PRODUCT"]
["Bitam 500ml","DISCOUNTINUE PRODUCT"]
["Buonos 38.39%W/w SC 250ml","BUONOS SC430 40X250ML BOT IN"]
["Buonos 38.39%W/w SC 500ml","BUONOS SC430 20X500ML BOT IN"]
["Confidor 17.80%SL 100ML","CONFIDOR (T) SL200 50X100ML BOT IN"]
["Confidor 17.80%SL  1Ltr","CONFIDOR (T) SL200 10X1L BOT IN"]
["Confidor 17.80%SL 250ML","CONFIDOR (T) SL200 20X250ML BOT IN"]
["Confidor 17.80%SL 500ML","CONFIDOR (T) SL200 20X500ML BOT IN"]
["Confidor 17.80%SL  50ML","CONFIDOR (T) SL200 100X50ML BOT IN"]
["Confidor Super 30.5%Sc 100ML","CONFIDOR SUPER (T) SC350 50X100ML BOT IN"]
["Confidor Super 30.5%Sc 250ML","CONFIDOR SUPER (T) SC350 20X250ML BOT IN"]
["Confidor Super 30.5%Sc 500ML","CONFIDOR SUPER (T) SC350 20X500ML BOT IN"]
["Confidor Super 30.5%Sc 50ML","CONFIDOR SUPER (T) SC350 50X50ML BOT IN"]
["Council Activ 45gms","COUNCIL ACTIV WG30 8X(10X45GR) BOX IN"]
["Council Activ 90gms","COUNCIL ACTIV WG30 12X(5X90GR) BOX IN"]
["Cybil 25%Ec  500ml","DISCOUNTINUE PRODUCT"]
["Cybil 25EC 100ml","DISCOUNTINUE PRODUCT"]
["Cybil 25EC 250ml","DISCOUNTINUE PRODUCT"]
["Dadcei 100ml","DISCOUNTINUE PRODUCT"]
["Dadcei 1ltr","DISCOUNTINUE PRODUCT"]
["Dadcei 500ml","DISCOUNTINUE PRODUCT"]
["Dadecei 600Ml","DISCOUNTINUE PRODUCT"]
["Decies 2.8% 100ml","DECIS EC 28 50X100ML BOT IN"]
["Decies 2.8% 1ltr","DECIS EC 28 10X1L BOT IN"]
["Decies 2.8% 250ml","DECIS EC 28 40X250ML BOT IN"]
["Decies 2.8% 500ml","DECIS EC 28 20X500ML BOT IN"]
["Decis-100.11%W/w  100ml","DECIS EC101-2 50X100ML BOX IN"]
["Decis-100.11%W/w  1Ltr","DECIS EC101-2 50X100ML BOX IN"]
["Decis-100.11%W/w  250ml","DECIS EC101-2 50X100ML BOX IN"]
["Ektino 100gms","DISCOUNTINUE PRODUCT"]
["Ethrel 39%SL 100ml","ETHREL SL39 50X100ML BOT IN"]
["Ethrel 39%SL 1Ltr","ETHREL SL39 10X1L BOT IN"]
["Ethrel 39%SL 500ml","ETHREL SL39 20X500ML BOT IN"]
["Ever Gol Xtend 100ml","EVERGOL XTEND FS308 50X100ML BOT IN"]
["Ever Gol Xtend 40ml","EVERGOL XTEND FS308 100X40ML BOT IN"]
["Fame 39.35%m/m Sc 100ml","FAME (T) SC480 20X100ML BOT IN"]
["Fame 39.35%m/m Sc 10ml","FAME (T) SC480 10X(20X10ML) BOT IN"]
["Fame 39.35%m/m Sc 250ml","FAME (T) SC480 8X250ML BOT IN"]
["Fame 39.35%m/m Sc 50ml","FAME (T) SC480 40X50ML BOT IN"]
["Fenos Quick 8.33+5.56%W/w Sc 100ml","FENOS QUICK SC150 50X100ML BOT IN"]
["Fenos Quick 8.33+5.56%W/w Sc 250ml","FENOS QUICK SC150 40X250ML BOT IN"]
["Fitrest 5%SG 100gmX40","FITREST SG5 40X100GR BOT IN"]
["Fitrest 5%SG 50gmX80","FITREST SG5 80X50GR BOT IN"]
["Flotis Sc 250ml","FLOTIS (T) SC262 5 40X250ML BOT IN"]
["Folicur 25.9%Ec 100ml","FOLICUR (T) EC250 50X100ML BOT IN"]
["Folicur 25.9%Ec 1ltr","FOLICUR (T) EC250 10X1L BOT IN"]
["Folicur 25.9%Ec 250ml","FOLICUR (T) EC250 40X250ML BOT IN"]
["Folicur 25.9%Ec 500ml","FOLICUR (T) EC250 20X500ML BOT IN"]
["Foost 50%Wp 250gm","FOOST WP50 20X250G BAG IN"]
["Foost 50%Wp 500gm","FOOST WP50 24X500G BAG IN"]
["Gaucho Fs 100ml","GAUCHO FS600 50X100ML BOT IN"]
["Gaucho FS 50ml","GAUCHO FS600 100X50ML BOT IN"]
["Glamore 80%Wg 50gm","GLAMORE WG80 40X50GR BOT IN"]
["Glamore 80%Wg 5gmX10","GLAMORE WG80 50X(10X5GR) BAG IN"]
["Hostathion 1ltr","DISCOUNTINUE PRODUCT"]
["Hostathion 500ml","DISCOUNTINUE PRODUCT"]
["Infinito 1ltr","INFINITO SC687 5 10X1L BOT IN"]
["Jump(Fipronil 80%Wg) 2gmX10","JUMP WG80 160X(10X2GR) BAG IN"]
["Jump(Fipronil 80%Wg) 40gms","JUMP WG80 80X40GR BAG IN"]
["Kingfog 1Ltr","KINGFOG UL10 12X1L BOT IN"]
["K-Obiol 1Kg","K-OBIOL WP2 5 10X1KG BOT IN"]
["K-Othrine 2.8%Sc","K-OTHRINE SC25 5 15X1L BOT IN"]
["Larvin 75%WP 100gms","LARVIN (T) WP75 40X100GR BAG IN"]
["Larvin 75%WP 1Kg","LARVIN (T) WP75 10X1KG BAG IN"]
["Larvin 75%WP 250gms","LARVIN (T) WP75 20X250GR BAG IN"]
["Larvin 75%WP 500gms","LARVIN (T) WP75 20X500GR BAG IN"]
["Laudis 34.4%W/w Sc 115mlx8","LAUDIS SC630 8X115ML BOT IN"]
["Laudis 34.4%W/w Sc 230mlX3","LAUDIS SC630 3X230ML BOT IN"]
["Laudis 34.4%W/w Sc 57.50ml","LAUDIS SC630 10X57.5ML BOT IN"]
["Lesenta WG80-100Gms","LESENTA WG80 50X100GR BAG IN"]
["Lesenta WG80-40gms","LESENTA WG80 100X40GR BAG IN"]
["Manceren 250ml","MONCEREN SC250 40X250ML BOT IN"]
["Melody Duo  1Kg","new"]
["Melody Duo  500gm","new"]
["Melody Duo 66.75%WP 100gms","MELODY DUO WP66 8 50X100GR BAG IN"]
["Melody Duo 66.75%WP 400gms","MELODY DUO WP66 8 10X400GR BAG IN"]
["Melody Duo 66.75%WP 800gms","MELODY DUO WP66 8 10X800G BAG IN"]
["Movento Energy 100mlX50","MOVENTO ENERGY SC240 50X100ML BOT IN"]
["Nativo 75%WG 100gmx50","NATIVO WG75 50X100GR BAG IN"]
["Nativo 75%WG 10GmX10","NATIVO WG75 20X(10X10GR) BAG IN"]
["Nativo 75%WG 1Kg","NATIVO WG75 10X1KG BAG IN"]
["Nativo 75%WG  250gm","NATIVO WG75 40X250GR BAG IN"]
["Nativo 75%WG  500Gms","NATIVO WG75 20X500GR BAG IN"]
["Nativo 75%WG 50gmx100","NATIVO WG75 100X50GR BAG IN"]
["Oberon 22.9%W/W Sc 100ml","OBERON (T) SC240 50X100ML BOT IN"]
["Oberon 22.9%W/W Sc 100X50ml","OBERON (T) SC240 100X50ML BOT IN"]
["Oberon 22.9%W/W Sc 200ml","OBERON (T) SC240 40X200ML BOT IN"]
["Oberon 22.9%W/W Sc 500ml","OBERON (T) SC240 20X500ML BOT IN"]
["Planofix 4.5%SL 100ml","PLANOFIX SL4 5 50X100ML BOT IN"]
["Planofix 4.5%SL 1ltr","PLANOFIX SL45 10X1L BOT IN"]
["Planofix 4.5%SL 250ml","PLANOFIX SL4 5 40X250ML BOT IN"]
["Planofix 4.5%SL 500ml","PLANOFIX SL4 5 20X500ML BOT IN"]
["Premise 350SC 250Ml","PREMISE SC350 40X250ML BOT IN"]
["Premise  50ml","new"]
["Profiler 71%WG 1Kg","PROFILER WG71 11 10X1KG BAG IN"]
["Profiler 71%WG 250Gms","PROFILER WG71 11 20X250GR BAG IN"]
["Quintal 100gms","DISCOUNTINUE PRODUCT"]
["Quintal 1kg","DISCOUNTINUE PRODUCT"]
["Quintal 200gms","DISCOUNTINUE PRODUCT"]
["Quintal 500gms","DISCOUNTINUE PRODUCT"]
["Rat Control 100gms","DISCOUNTINUE PRODUCT"]
["Regent Gold SC 100ml","REGENT GOLD SC200 50X100ML BOT IN"]
["Regent Gold SC 250ml","REGENT GOLD SC200 40X250ML BOT IN"]
["Regent GR 25kgs","REGENT GR0 3 1X25KG BOX WW"]
["Regent GR 5kgsX4 Pkts","REGENT GR0 3 4X5KG BAG IN"]
["Regent SC 250ml","REGENT GR0 3 1X25KG BOX WW"]
["Regent Ultra GR 1kgX20pkt","REGENT ULTRA GR0 6 20X1KG BAG IN"]
["Regent Ultra GR 4kgsX5 Pkts","REGENT ULTRA GR0 6 5X4KG BAG IN"]
["Responsar 025sc 1Ltr","RESPONSAR SC25 10X1L BOT IN"]
["Sectin 250gms","New"]
["Sectin 60%WG 100gms","SECTIN WG60 50X100GR BAG IN"]
["Sectin 60%WG 1kg","SECTIN WG60 10X1KG BAG IN"]
["Sectin 60%WG 600gms","SECTIN WG60 20X600GR BAG IN"]
["Sencor 70% WP 100gm","SENCOR WP70 60X100GR BAG IN"]
["Sencor 70% WP 500gm","SENCOR WP70 20X500GR BOX IN"]
["Sevin 100gms","DISCOUNTINUE PRODUCT"]
["Sevin 500gms","DISCOUNTINUE PRODUCT"]
["Simbola 20%SG 100gm","SIMBOLA (T) SG20 50X100G BOT IN"]
["Simbola 20%SG 250gm","SIMBOLA (T) SG20 20X250G BOT IN"]
["Sivanto Prime 100ml","SIVANTO PRIME SL200 50X100ML BOT IN"]
["Solomon OD300-100ml","SOLOMON OD300 50X100ML BOT IN"]
["Solomon OD300 1ltr","SOLOMON OD300 10X1L BOT IN"]
["Solomon OD300-250Ml","SOLOMON OD300 40X250ML BOT IN"]
["Solomon OD300-500ml","SOLOMON OD300 20X500ML BOT IN"]
["Spark 1ltr","DISCOUNTINUE PRODUCT"]
["Spark 250ml","DISCOUNTINUE PRODUCT"]
["Spark 500ml","DISCOUNTINUE PRODUCT"]
["Spintor 45%SC 75ml","SPINTOR SC495 20X75ML BOT IN"]
["Spintor 45%SC 7ml","SPINTOR SC495 10X(20X7ML) BOT IN"]
["Sunrice 50gms","SUNRICE WG15 100X50GR BOT IN"]
["Thiodan 250ml","DISCOUNTINUE PRODUCT"]
["Thiodan 35%Ec 1tr","DISCOUNTINUE PRODUCT"]
["Thiodan 500ml","DISCOUNTINUE PRODUCT"]
["Top Star 80%Wp 22.5gm","TOPSTAR (T) WP80 8X(20X22.5GR) BOX IN"]
["Top Star 80%Wp  35gms","TOPSTAR (T) WP80 10X(10X35GR) BOX IN"]
["Whip Super 250ml","WHIPSUPER (T) EC90 40X250ML BOT IN"]
["ALANTO 21.7%SC BCS-250ML","ALANTO (T) SC240 40X250ML BOT IN"]
["ALANTO 21.7%SC BCS-500ML","ALANTO (T) SC240 20X500ML BOT IN"]
["ALIETTE 80%WP BCS-100G","ALIETTE WP80 40X100GR BAG IN"]
["ALIETTE 80%WP BCS-250G","ALIETTE WP80 20X250GR BAG IN"]
["ALIETTE 80%WP BCS-500G","ALIETTE WP80 20X500GR BAG IN"]
["AMBITION BCS-1LT","AMBITION 10X1L BOT IN"]
["AMBITION BCS 250ML","AMBITION 40X250ML BOT IN"]
["AMBITION BCS-500ML","AMBITION 20X500ML BOT IN"]
["A.N.A 4.5%SL BCS-100ML","PLANOFIX SL4 5 50X100ML BOT IN"]
["A.N.A. 4.5%SL BCS-1LT","PLANOFIX SL45 10X1L BOT IN"]
["A.N.A.4.5%SL BCS-250ML","PLANOFIX SL4 5 40X250ML BOT IN"]
["A.N.A 4.5%SL BCS-500ML","PLANOFIX SL4 5 20X500ML BOT IN"]
["ATRAZINE 50%WP BCS-250G","FOOST WP50 20X250G BAG IN"]
["ATRAZINE 50%WP BCS-500G","FOOST WP50 24X500G BAG IN"]
["BISPYRIBAC S10%SC BCS-100ML","ADORA (T) SC100 50X100ML BOT IN"]
["BISPYRIBAC S10%SC BCS-10ML","ADORA (T) SC100 100X10ML BOT IN"]
["BISPYRIBAC S10%SC BCS-1LT","ADORA (T) SC100 4X1L BOT IN"]
["BISPYRIBAC S10%SC BCS-200ML","ADORA (T) SC100 20X200ML BOT IN"]
["BISPYRIBAC S10%SC BCS-500ML","ADORA (T) SC100 8X500ML BOT IN"]
["BISPYRIBAC S10%SC BCS-50ML","ADORA (T) SC100 50X50ML BOT IN"]
["COUNCIL ACTIV 30%WG BCS-90G","COUNCIL ACTIV WG30 12X(5X90GR) BOX IN"]
["DELTAMETHRIN 100%EC BCS-100ML","DECIS EC101-2 50X100ML BOX IN"]
["DELTAMETHRIN 100%EC BCS-1LT","DECIS EC101-2 10X1L BOT IN"]
["DELTAMETHRIN 100%EC BCS 250ML","DECIS EC101-2 40X250ML BOT IN"]
["DELTAMETHRIN 2.6%WP BCS-1KG","DECIS EC 28 10X1L BOT IN"]
["DELTAMETHRIN 2.8%EC-BCS-100ML","DECIS EC 28 50X100ML BOT IN"]
["DELTAMETHRIN 2.8%EC BCS 1LT","DECIS EC 28 10X1L BOT IN"]
["DELTAMETHRIN 2.8%EC BCS 250ML","DECIS EC 28 40X250ML BOT IN"]
["DELTAMETHRIN 2.8%EC BCS 500ML","DECIS EC 28 20X500ML BOT IN"]
["DELTAMETHRIN2.8%EC BCS-5LT","DISCOUNTINUE PRODUCT"]
["DINOTEFURAN 20%SG BCS-100G","SIMBOLA (T) SG20 50X100G BOT IN"]
["DINOTEFURAN 20%SG BCS-250G","SIMBOLA (T) SG20 20X250G BOT IN"]
["EVERGOL 13.28%WW BCS-100ML","EVERGOL XTEND FS308 50X100ML BOT IN"]
["EVERGOL 13.28%WW BCS-250ML","EVERGOL XTEND FS308 40X250ML BOT IN"]
["FAME 39.33%SC BCSL-100ML","FAME (T) SC480 20X100ML BOT IN"]
["FAME 39.33%SC BCSL-250ML","FAME (T) SC480 8X250ML BOT IN"]
["FAME 39.33%SC BCSL-500ML","FAME (T) SC480 4X500ML BOT IN"]
["FAME 39.33%SC BCSL-50ML","FAME (T) SC480 40X50ML BOT IN"]
["FENOS QUUICK BCS-250ML","FENOS QUICK SC150 40X250ML BOT IN"]
["FIPRONI 5%SC BCS-1LT","REGENT (T) SC50 10X1L BOT IN"]
["FIPRONIL 0.6%W/W BCS-4KG","REGENT ULTRA GR0 6 5X4KG BAG IN"]
["FIPRONIL 18.87% SC BCS-100ML","REGENT (T) SC50 50X100ML BOT IN"]
["FIPRONIL 3%GR BCS-5KG","REGENT GR0 3 4X5KG BAG IN"]
["FIPRONIL 5% BCS-500ML","REGENT (T) SC50 20X500ML BOT IN"]
["FIPRONIL 5%SC BCS","REGENT (T) SC50 10X1L BOT IN"]
["FIPRONIL 5%SC BCS-100ML","REGENT (T) SC50 50X100ML BOT IN"]
["FIPRONIL 80%WG BCS-2G","JUMP WG80 160X(10X2GR) BAG IN"]
["FIPRONIL 80%WG BCS-40G","JUMP WG80 80X40GR BAG IN"]
["GAUCHO 600FS BCS-100ML","GAUCHO FS600 50X100ML BOT IN"]
["GAUCHO 600FS BCS-1LT","GAUCHO FS600 2X(5X1L) BOT IN"]
["GAUCHO 600FS BCS-250ML","GAUCHO FS600 40X250ML BOT IN"]
["GAUCHO 600FS BCS-50ML","GAUCHO FS600 100X50ML BOT IN"]
["GAUCHO 600FS BCS-5LT","GAUCHO FS600 2X5L BOT IN"]
["GLAMORE 80%WG BCS-100G","GLAMORE WG80 20X100GR BOT IN"]
["GLAMORE 80%WG BCS-250G","GLAMORE WG80 8X250GR BAG IN"]
["GLAMORE 80%WG BCS-50G","GLAMORE WG80 40X50GR BOT IN"]
["GLYPHOSATE 54%SL BCS-100ML","DISCOUNTINUE PRODUCT"]
["GLYPHOSATE 54%SL BCS-1LT","ROUNDUP 41% SL (IN) 10X1 LTR"]
["GLYPHOSATE 54%SL BCS-5LT","ROUNDUP 41% SL (IN) 2X5 LTR"]
["IMIDACLOPRID 17.8%SL BCS-100ML","CONFIDOR (T) SL200 50X100ML BOT IN"]
["IMIDACLOPRID 17.8%SL BCS-250ML","CONFIDOR (T) SL200 20X250ML BOT IN"]
["IMIDACLOPRID 17.8%SL BCS-500ML","CONFIDOR (T) SL200 20X500ML BOT IN"]
["IMIDACLOPRIDE 17.8%SL BCS-100ML","CONFIDOR (T) SL200 50X100ML BOT IN"]
["IMIDACLOPROD 30.5%SC BCS-500ML","CONFIDOR SUPER (T) SC350 20X500ML BOT IN"]
["LARVIN 75%WP BCS-1KG","LARVIN (T) WP75 10X1KG BAG IN"]
["LARVIN 75%WP BCS 250G","LARVIN (T) WP75 20X250GR BAG IN"]
["LARVIN 75%WP BCS-500G","LARVIN (T) WP75 20X500GR BAG IN"]
["LAUDIS 34.4%SC BCS-115ML","LAUDIS SC630 8X115ML BOT IN"]
["LAUDIS 34.4%SC BCS-230ML","LAUDIS SC630 3X230ML BOT IN"]
["LAUDIS 34.4%SC BCS-57.5ML","LAUDIS SC630 10X57.5ML BOT IN"]
["MOVENTO ENERGY SC 240% BCS-1LT","MOVENTO ENERGY SC240 10X1L BOT IN"]
["MOVENTO ENERGY SC 240% BCS-250ML","MOVENTO ENERGY SC240 40X250ML BOT IN"]
["MOVENTO SC 240% BSC-100ML","MOVENTO ENERGY SC240 50X100ML BOT IN"]
["NATIVO 75%WG BCS-100G","NATIVO WG75 50X100GR BAG IN"]
["NATIVO 75%WG BCS-1KG","NATIVO WG75 10X1KG BAG IN"]
["NATIVO 75%WG BCS-250G","NATIVO WG75 40X250GR BAG IN"]
["NATIVO 75%WG BCS-500G","NATIVO WG75 20X500GR BAG IN"]
["PROFILER 71.1%WG BCS-250G","PROFILER WG71 11 20X250GR BAG IN"]
["PROPINEB 70%WP BCS-100G","ANTRACOL (T) WP70 50X100GR BAG IN"]
["PROPINEB 70%WP BCS-1KG","ANTRACOL (T) WP70 10X1KG BAG IN"]
["PROPINEB 70%WP BCS-250G","ANTRACOL (T) WP70 40X250GR BAG IN"]
["PROPINEB 70%WP BCS-500G","ANTRACOL (T) WP70 20X500GR BAG IN"]
["RAXIL EASY 5.36%FS BCS-100ML","RAXIL EASY FS60 50X100ML BOT IN"]
["RAXIL EASY 5.36%FS BCS-1LT","RAXIL EASY FS60 10X1L BOT IN"]
["RAXIL EASY 5.36%FS BCS-250ML","RAXIL EASY FS60 40X250ML BOT IN"]
["RICE STAR 6.7%WW BCS-250ML","RICESTAR EC69 40X250ML BOT IN"]
["RICE STAR 6.7%WW EC BCS-1LT","RICESTAR EC69 10X1L BOT IN"]
["RICE STAR 6.7%WW EC BCS-500ML","RICESTAR EC69 20X500ML BOT IN"]
["SOLOMON BCS-100ML","SOLOMON OD300 50X100ML BOT IN"]
["SOLOMON BCS-1LT","SOLOMON OD300 10X1L BOT IN"]
["SOLOMON BCS-250ML","SOLOMON OD300 40X250ML BOT IN"]
["SOLOMON BCS-500ML","SOLOMON OD300 20X500ML BOT IN"]
["TEBUCONAZOLE 25.9%EC BCS-1LT","FOLICUR (T) EC250 10X1L BOT IN"]
["TEBUCONAZOLE 25.9%EC BCS-250ML","FOLICUR (T) EC250 40X250ML BOT IN"]
["TEBUCONAZOLE 29.9%EC BCS 500ML","FOLICUR (T) EC250 20X500ML BOT IN"]
["TEBUCONAZOLE 38.39%WW BCS-250ML","BUONOS SC430 40X250ML BOT IN"]
["TEBUCONAZOLE38.39%WW BCS-500ML","BUONOS SC430 20X500ML BOT IN"]
["TEBUCONAZOLE 38.9%WW BCS-1LT","BUONOS SC430 10X1L BOT IN"]
["WHIPSUPER 10%EC BCS-100ML","WHIPSUPER (T) EC90 50X100ML BOT IN"]
["WHIPSUPER 10%EC BCS-1LT","WHIPSUPER (T) EC90 10X1L BOT IN"]
["WHIPSUPER 10%EC BCS-250ML","WHIPSUPER (T) EC90 40X250ML BOT IN"]
["WHIPSUPER 10%EC BCS-500ML","WHIPSUPER (T) EC90 20X500ML BOT IN"]
["WHIPSUPER BCS-500ML","WHIPSUPER (T) EC90 20X500ML BOT IN"]
["7576 BG II 475 Gm","SURPASS 7576 BG2 (LOC) 20X450GR BAG IN"]
["Admire 150 Gm.","ADMIRE (T) WG70 30X150GR BOT IN"]
["Admire 2 Gm.","ADMIRE WG70 125X(8X2GR) BAG IN"]
["Admire 30 Gm.","ADMIRE (T) WG70 150X30GR BOT IN"]
["Admire 75 Gm.","ADMIRE (T) WG70 60X75GR BOT IN"]
["Adue 100 Gm.","ADUE WG70 6X100G BOT IN"]
["Aliette  100 Gm.","ALIETTE WP80 40X100GR BAG IN"]
["Aliette  250 Gm.","ALIETTE WP80 20X250GR BAG IN"]
["Aliette 1 Kg.","ALIETTE WP80 10X1KG BAG IN"]
["AMBITION  1 Ltr.","AMBITION 10X1L BOT IN"]
["AMBITION 250 ML","AMBITION 40X250ML BOT IN"]
["Antracol 70 Wp 1 Kg.","ANTRACOL (T) WP70 10X1KG BAG IN"]
["Antracol 70 Wp 100 Gm.","ANTRACOL (T) WP70 50X100GR BAG IN"]
["Antracol 70 Wp 250 Gm.","ANTRACOL (T) WP70 40X250GR BAG IN"]
["Antracol 70 Wp 500gm","ANTRACOL (T) WP70 20X500GR BAG IN"]
["Arent 100 Gm.","DISCOUNTINUE PRODUCT"]
["Atlantis 160 Gm","ATLANTIS KL3 6 15X160GR BOT IN"]
["BASTA 1 Ltr.","BASTA SL150 10X1L BOT IN"]
["Bayfolan 100 Gm.","DISCOUNTINUE PRODUCT"]
["Bayfolan 150GM","DISCOUNTINUE PRODUCT"]
["Bayfolan 250 ML","DISCOUNTINUE PRODUCT"]
["Bayrusil 25% Ec 1 Ltr.","DISCOUNTINUE PRODUCT"]
["Bayrusil 25% Ec 500 ML","DISCOUNTINUE PRODUCT"]
["Belt Expert Sc 100 Ml","BELT EXPERT SC480 50X100ML BOT IN"]
["Bilcyp 10% Ec 1 Ltr.","DISCOUNTINUE PRODUCT"]
["Bilcyp 10% Ec 250 ML","DISCOUNTINUE PRODUCT"]
["Bilcyp 10% Ec 500 ML","DISCOUNTINUE PRODUCT"]
["Bilzeb-M-45 1 Kg.","DISCOUNTINUE PRODUCT"]
["Bilzeb-M-45 150GM","DISCOUNTINUE PRODUCT"]
["Buonos 1 Ltr.","BUONOS SC430 10X1L BOT IN"]
["Buonos 250 ML","BUONOS SC430 40X250ML BOT IN"]
["Buonos 500 ML","BUONOS SC430 20X500ML BOT IN"]
["Confidor 200 Sl 1 Ltr.","CONFIDOR (T) SL200 10X1L BOT IN"]
["Confidor 200 Sl 100 Ml","CONFIDOR (T) SL200 50X100ML BOT IN"]
["Confidor 200 Sl 250 ML","CONFIDOR (T) SL200 20X250ML BOT IN"]
["Confidor 200 Sl 50 ML","CONFIDOR (T) SL200 100X50ML BOT IN"]
["Confidor 200 Sl 500 ML","CONFIDOR (T) SL200 20X500ML BOT IN"]
["Confidor Super 1 Ltr.","CONFIDOR SUPER (T) SC350 10X1L BOT IN"]
["Cybil 25% Ec 1 Ltr.","DISCOUNTINUE PRODUCT"]
["Cybil 25% Ec 100 Ml","DISCOUNTINUE PRODUCT"]
["Cybil 25% Ec 250 ML","DISCOUNTINUE PRODUCT"]
["Cybil 25% Ec 500 ML","DISCOUNTINUE PRODUCT"]
["DECIS 100 EC 1 Ltr.","DECIS EC101-2 10X1L BOT IN"]
["Decis 100 EC 100 Ml","DECIS EC101-2 50X100ML BOX IN"]
["Decis 100 EC 250 ML","DECIS EC101-2 40X250ML BOT IN"]
["Decis 100 Ec 50 ML","DECIS EC101-2 100X50ML BOT IN"]
["Decis 2.8 Ec 1 Ltr.","DECIS EC 28 10X1L BOT IN"]
["Decis 2.8.Ec 250 ML","DECIS EC 28 40X250ML BOT IN"]
["Decis 2.8.Ec 500 ML","DECIS EC 28 20X500ML BOT IN"]
["Ethrel SL39 1 Ltr.","ETHREL SL39 10X1L BOT IN"]
["Ethrel SL39 100 Ml","ETHREL SL39 50X100ML BOT IN"]
["Ethrel SL39 500 ML","ETHREL SL39 20X500ML BOT IN"]
["Evergol 100 Ml","EVERGOL XTEND FS308 50X100ML BOT IN"]
["Evergol 250 ML","EVERGOL XTEND FS308 40X250ML BOT IN"]
["Evergol 40 Ml","EVERGOL XTEND FS308 100X40ML BOT IN"]
["FENOS QUICK 100 Ml","FENOS QUICK SC150 50X100ML BOT IN"]
["FENOS QUICK 250 ML","FENOS QUICK SC150 40X250ML BOT IN"]
["First Class Bg 2 475 Gm","SURPASS FIRSTCLASS 7149B2 20X450G BAG IN"]
["Folicur 1 Ltr.","FOLICUR (T) EC250 10X1L BOT IN"]
["Gaucho  1 Ltr.","GAUCHO FS600 2X(5X1L) BOT IN"]
["Gaucho  250 ML","GAUCHO FS600 40X250ML BOT IN"]
["Gaucho  9 Ml","GAUCHO FS600 5X(20X9)ML BOT IN"]
["Gaucho Fs 5 Ltr.","GAUCHO FS600 2X5L BOT IN"]
["Hostathion  1 Ltr.","DISCOUNTINUE PRODUCT"]
["Hostathion 500 ML","DISCOUNTINUE PRODUCT"]
["JUMP 80% WG 100 Gm.","JUMP WG80 80X40GR BAG IN"]
["JUMP 80% WG 2 Gm.","JUMP WG80 160X(10X2GR) BAG IN"]
["JUMP 80% WG 40 Gm","JUMP WG80 80X40GR BAG IN"]
["JUMP 80% WG 50 Gm","JUMP WG80 160X(10X2GR) BAG IN"]
["Larvin 1 Kg.","LARVIN (T) WP75 10X1KG BAG IN"]
["Larvin 100 Gm.","LARVIN (T) WP75 40X100GR BAG IN"]
["Larvin 250 Gm.","LARVIN (T) WP75 20X250GR BAG IN"]
["LAUDIS 57.5","LAUDIS SC630 10X57.5ML BOT IN"]
["Lesenta Wg80 100 Gm.","LESENTA WG80 50X100GR BAG IN"]
["Lesenta Wg80 250 Gm.","LESENTA WG80 20X250GR BAG IN"]
["LODISH 115ML","LAUDIS SC630 8X115ML BOT IN"]
["LODISH 57.5","LAUDIS SC630 10X57.5ML BOT IN"]
["MILLET HYBRID BAJRA 1.5 Kg.","MILLET HYBRID 9001 20X1.5 BAG IN"]
["MOVENTO  1 Ltr.","MOVENTO OD150 10X1L BOT IN"]
["Movento 100 Ml","MOVENTO ENERGY SC240 50X100ML BOT IN"]
["Nativo 1 Kg.","NATIVO WG75 10X1KG BAG IN"]
["Nativo 100 Gm.","NATIVO WG75 50X100GR BAG IN"]
["Nativo 250 Gm.","NATIVO WG75 40X250GR BAG IN"]
["OBERON SC240 1 Ltr.","OBERON (T) SC240 10X1L BOT IN"]
["OBERON SC240 100 Ml","OBERON (T) SC240 50X100ML BOT IN"]
["OBERON SC240 2 LTR","OBERON (T) SC240 5X2L BOT IN"]
["OBERON SC240 200 Ml","OBERON (T) SC240 40X200ML BOT IN"]
["OBERON SC240 50 ML","OBERON (T) SC240 100X50ML BOT IN"]
["OBERON SC240 500 ML","OBERON (T) SC240 20X500ML BOT IN"]
["Power Activator 200 Ml","DISCOUNTINUE PRODUCT"]
["Prepare 1 Ltr.","DISCOUNTINUE PRODUCT"]
["Profiler 250 ML","PROFILER WG71 11 20X250GR BAG IN"]
["Puma Power 400 Ml","DISCOUNTINUE PRODUCT"]
["Quintal 50 WP 100 Gm.","DISCOUNTINUE PRODUCT"]
["Quintal 50 WP 150GM","DISCOUNTINUE PRODUCT"]
["Quintal 50 WP 200 GM","DISCOUNTINUE PRODUCT"]
["Raft 1 Ltr.","RAFT EC60 10X1L BOT IN"]
["Raft 250 ML","RAFT EC60 40X250ML BOT IN"]
["Raft 500 ML","RAFT EC60 20X500ML BOT IN"]
["Rat Cantrol 100 Gm.","DISCOUNTINUE PRODUCT"]
["Raxil 100 Gm.","RAXIL (T) DS2 5X(10X100GR) BAG IN"]
["Regent Altra 4 Kg","REGENT ULTRA GR0 6 5X4KG BAG IN"]
["Regent Gold 100 Ml","REGENT GOLD SC200 50X100ML BOT IN"]
["Regent Gold 250 ML","REGENT GOLD SC200 40X250ML BOT IN"]
["Regent Gold 500 ML","REGENT GOLD SC200 40X250ML BOT IN"]
["Regent Sc 1 Ltr.","REGENT (T) SC50 10X1L BOT IN"]
["Regent Sc 100 Ml","REGENT (T) SC50 50X100ML BOT IN"]
["Regent Sc 250 ML","REGENT (T) SC50 20X250ML BOT IN"]
["Regent(G.R) 25 Kg.","REGENT GR0 3 1X25KG BOX WW"]
["Regent(G.R.) 1 Kg.","REGENT GR0 3 20X1KG BAG IN"]
["Regent(G.R.) 5 Kg.","REGENT GR0 3 4X5KG BAG IN"]
["Sectin 60wg 100 Gm.","SECTIN WG60 50X100GR BAG IN"]
["Sectin 60wg 250 Gm.","bayer"]
["SECTIN 60WG 600GM","SECTIN WG60 20X600GR BAG IN"]
["SENCOR 100 Gm.","SENCOR WP70 60X100GR BAG IN"]
["Sinrice Wg15 50 Gm","SUNRICE WG15 100X50GR BOT IN"]
["Solomon 1 Ltr.","SOLOMON OD300 10X1L BOT IN"]
["Spintor 250 ML","bayer"]
["Superb Bg 475 Gm","SURPASS SUPERB BG2 20X450G BAG IN"]
["Tamarongold 75% Sp 1 Kg.","DISCOUNTINUE PRODUCT"]
["Tamarongold 75% Sp 150GM","DISCOUNTINUE PRODUCT"]
["Tamarongold 75% Sp 25 Kg.","DISCOUNTINUE PRODUCT"]
["Tamarongold 75% Sp 250 Gm.","DISCOUNTINUE PRODUCT"]
["Tamarongold 75% Sp 5 Kg.","DISCOUNTINUE PRODUCT"]
["Velum Prime 500 ML","VELUM PRIME SC400 20X500ML BOT IN"]
["Velume Prime 250 ML","VELUM PRIME SC400 40X250ML BOT IN"]
["Whip Super 1 Ltr.","WHIPSUPER (T) EC90 10X1L BOT IN"]
["Whip Super 500 ML","WHIPSUPER (T) EC90 20X500ML BOT IN"]
["Admire 2gm","ADMIRE WG70 125X(8X2GR) BAG IN"]
["Admire 30gm","ADMIRE (T) WG70 150X30GR BOT IN"]
["ADMIRE 75GM","ADMIRE (T) WG70 60X75GR BOT IN"]
["Aliette 100gm","ALIETTE WP80 40X100GR BAG IN"]
["Aliette 1kg","ALIETTE WP80 10X1KG BAG IN"]
["Aliette 250gm","ALIETTE WP80 20X250GR BAG IN"]
["Aliette 500gm","ALIETTE WP80 20X500GR BAG IN"]
["Ambition 100ml","AMBITION 50X100ML BOT IN"]
["AMBITION 1LIT","AMBITION 10X1L BOT IN"]
["AMBITION 250ML","AMBITION 40X250ML BOT IN"]
["AMBITION 500ML","AMBITION 20X500ML BOT IN"]
["Antracol 100gm","ANTRACOL (T) WP70 50X100GR BAG IN"]
["ANTRACOL 1KG","ANTRACOL (T) WP70 10X1KG BAG IN"]
["Antracol 250gm","ANTRACOL (T) WP70 40X250GR BAG IN"]
["Antracol 500gm","ANTRACOL (T) WP70 20X500GR BAG IN"]
["Bayer Sectin 600gm","SECTIN WG60 20X600GR BAG IN"]
["BAYFOLAN ALGAE 250ML","Bayer"]
["BELT EXPERT 100ML","BELT EXPERT SC480 50X100ML BOT IN"]
["Buonos 250ml","BUONOS SC430 40X250ML BOT IN"]
["Confidor 100ml","CONFIDOR (T) SL200 50X100ML BOT IN"]
["Confidor 250ml","CONFIDOR (T) SL200 20X250ML BOT IN"]
["Confidor 50ml","CONFIDOR (T) SL200 100X50ML BOT IN"]
["Confidor Super 100ml","CONFIDOR SUPER (T) SC350 50X100ML BOT IN"]
["Confidor Super 50ml","CONFIDOR SUPER (T) SC350 50X50ML BOT IN"]
["Decis 100ml","DECIS EC 28 50X100ML BOT IN"]
["Decis101 100ML","DECIS EC101-2 50X100ML BOX IN"]
["Decis 101 250ml","DECIS EC101-2 40X250ML BOT IN"]
["Decis 250ml","DECIS EC 28 40X250ML BOT IN"]
["Decis 500ml","DECIS EC 28 20X500ML BOT IN"]
["ETHREL 100ML","ETHREL SL39 50X100ML BOT IN"]
["Evergolxtend 100ml","EVERGOL XTEND FS308 50X100ML BOT IN"]
["EVERGOL XTEND 40ML","EVERGOL XTEND FS308 100X40ML BOT IN"]
["Fame 10ml","FAME (T) SC480 10X(20X10ML) BOT IN"]
["Fame 50ml","FAME (T) SC480 40X50ML BOT IN"]
["FENOS QUICK 100ML","FENOS QUICK SC150 50X100ML BOT IN"]
["FENOS QUICK 250ML","FENOS QUICK SC150 40X250ML BOT IN"]
["Folicur 100ml","FOLICUR (T) EC250 50X100ML BOT IN"]
["Folicur 250ml","FOLICUR (T) EC250 40X250ML BOT IN"]
["Folicur 500ml","FOLICUR (T) EC250 20X500ML BOT IN"]
["Foost 250gm","FOOST WP50 20X250G BAG IN"]
["FOOST 500GM","FOOST WP50 24X500G BAG IN"]
["Gaucho 100ml","GAUCHO FS600 50X100ML BOT IN"]
["Infinito 100ml","INFINITO SC687 5 50X100ML BOT IN"]
["Infinito 500ml","INFINITO SC687 5 20X500ML BOT IN"]
["Larvin 100gm","LARVIN (T) WP75 40X100GR BAG IN"]
["Larvin 250gm","LARVIN (T) WP75 20X250GR BAG IN"]
["Laudis 115ml","LAUDIS SC630 8X115ML BOT IN"]
["Laudis 57.5ml","LAUDIS SC630 10X57.5ML BOT IN"]
["Lesenta 100gm","LESENTA WG80 50X100GR BAG IN"]
["Lesenta 40gm","LESENTA WG80 100X40GR BAG IN"]
["LUNA EXP 250L","LUNA EXPERIENCE SC400 40X250ML BOT IN"]
["Luna Experience 100ml","LUNA EXPERIENCE SC400 50X100ML BOT IN"]
["Melodue 800gm","MELODY DUO WP66 8 10X800G BAG IN"]
["Melody Duo 100gm","MELODY DUO WP66 8 50X100GR BAG IN"]
["Melody Duo 400gm","MELODY DUO WP66 8 10X400GR BAG IN"]
["Movento Energy 100ml","MOVENTO ENERGY SC240 50X100ML BOT IN"]
["Movento Energy 250ml","MOVENTO ENERGY SC240 40X250ML BOT IN"]
["Movento Od 250ml","MOVENTO OD150 40X250ML BOT IN"]
["Nativo 100gm","NATIVO WG75 50X100GR BAG IN"]
["Nativo 10gm","NATIVO WG75 20X(10X10GR) BAG IN"]
["NATIVO 250GM","NATIVO WG75 40X250GR BAG IN"]
["Nativo 50gm","NATIVO WG75 100X50GR BAG IN"]
["Oberon  100ml","OBERON (T) SC240 50X100ML BOT IN"]
["OBERON 200ML","OBERON (T) SC240 40X200ML BOT IN"]
["Planofix 100ml","PLANOFIX SL4 5 50X100ML BOT IN"]
["Regent 100ml","REGENT (T) SC50 50X100ML BOT IN"]
["Regent 250ml","REGENT (T) SC50 20X250ML BOT IN"]
["Regent 500ml","REGENT (T) SC50 20X500ML BOT IN"]
["Regent Altra 1kg","REGENT ULTRA GR0 6 20X1KG BAG IN"]
["Regent Gro 5kg","REGENT GR0 3 4X5KG BAG IN"]
["Regent Grunu 1kg","REGENT GR0 3 20X1KG BAG IN"]
["REGENT ULTRA 4KG","REGENT ULTRA GR0 6 5X4KG BAG IN"]
["Sectin 100gm","SECTIN WG60 50X100GR BAG IN"]
["Sencor 100gm","SENCOR WP70 60X100GR BAG IN"]
["SOLOMMON 250ML","SOLOMON OD300 40X250ML BOT IN"]
["Solomon 100ml","SOLOMON OD300 50X100ML BOT IN"]
["SOLOMON 500ML","SOLOMON OD300 20X500ML BOT IN"]
["Spintor 75ml","SPINTOR SC495 20X75ML BOT IN"]
["Topstar 100gm","TOPSTAR (T) WP80 4X(10X100GR) BOX IN"]
["Topstar 35gm","TOPSTAR (T) WP80 10X(10X35GR) BOX IN"]
["Velum Prime 100ml","VELUM PRIME SC400 50X100ML BOT IN"]
["VELUMPRIME 500ML","VELUM PRIME SC400 20X500ML BOT IN"]
["Whipsuper 100ml","WHIPSUPER (T) EC90 50X100ML BOT IN"]
["Whipsuper 250ml","WHIPSUPER (T) EC90 40X250ML BOT IN"]
["Adamaer 150 Gm","ADMIRE (T) WG70 30X150GR BOT IN"]
["Admire 150X30gm","ADMIRE (T) WG70 150X30GR BOT IN"]
["Admire 20X300gm","ADMIRE WG70 20X300GR BAG IN"]
["ADMIRE 2gm","ADMIRE WG70 125X(8X2GR) BAG IN"]
["Admire 30X150 GM","ADMIRE (T) WG70 30X150GR BOT IN"]
["Admire 60X75GM","ADMIRE (T) WG70 60X75GR BOT IN"]
["Aliette 10X1 Kg","ALIETTE WP80 10X1KG BAG IN"]
["Aliette 20X250 Gm","ALIETTE WP80 20X250GR BAG IN"]
["Aliette 20X500 Gm","ALIETTE WP80 20X500GR BAG IN"]
["Aliette 40X100 Gm","ALIETTE WP80 40X100GR BAG IN"]
["AMBITION 10X1 LIT","AMBITION 10X1L BOT IN"]
["AMBITION 20X500ML","AMBITION 20X500ML BOT IN"]
["AMBITION 40X250ML","AMBITION 40X250ML BOT IN"]
["Antracol 100 Gm","ANTRACOL (T) WP70 50X100GR BAG IN"]
["Antracol 10X1 Kg","ANTRACOL (T) WP70 10X1KG BAG IN"]
["Antracol 20X500 Gm","ANTRACOL (T) WP70 20X500GR BAG IN"]
["Antracol 40X250 Gm","ANTRACOL (T) WP70 40X250GR BAG IN"]
["Baycor 100ML","DISCOUNTINUE PRODUCT"]
["Baycor 50ML","DISCOUNTINUE PRODUCT"]
["Belt Eaxpert 50X100ml","BELT EXPERT SC480 50X100ML BOT IN"]
["Belt Expeart 250ml","BELT EXPERT SC480 40X250ML BOT IN"]
["BUONOS 40X250 Ml","BUONOS SC430 40X250ML BOT IN"]
["Confidor 100X50 Ml","CONFIDOR (T) SL200 100X50ML BOT IN"]
["Confidor 10X1 Lit","CONFIDOR (T) SL200 10X1L BOT IN"]
["Confidor 20X250 Ml","CONFIDOR (T) SL200 20X250ML BOT IN"]
["Confidor 20X500ML","CONFIDOR (T) SL200 20X500ML BOT IN"]
["Confidor 50X100 ML","CONFIDOR (T) SL200 50X100ML BOT IN"]
["Confidor Super 20X250ml","CONFIDOR SUPER (T) SC350 20X250ML BOT IN"]
["Confidor Super 20X500ml","CONFIDOR SUPER (T) SC350 20X500ML BOT IN"]
["Confidor Super 50X100ml","CONFIDOR SUPER (T) SC350 50X100ML BOT IN"]
["CONFIDOR SUPER 50X50ML","CONFIDOR SUPER (T) SC350 50X50ML BOT IN"]
["Decis100EC 1ltr","DECIS EC101-2 10X1L BOT IN"]
["Decis100EC 40X250 ML","DECIS EC101-2 40X250ML BOT IN"]
["Decis 100EC 50X100ML","DECIS EC101-2 50X100ML BOX IN"]
["Decis 250ml","DECIS EC 28 40X250ML BOT IN"]
["Decis 2.8 EC 10X1ltr","DECIS EC 28 10X1L BOT IN"]
["Decis 2.8 EC 20X500ML","DECIS EC 28 20X500ML BOT IN"]
["Decis 2.8EC 40X 250 Ml","DECIS EC 28 40X250ML BOT IN"]
["Desis 100 Ml","DECIS EC 28 50X100ML BOT IN"]
["Desis 1 Lit","DECIS EC 28 10X1L BOT IN"]
["Desis2.8 100ml","DECIS EC 28 50X100ML BOT IN"]
["Desis (2.8)1ltr","DECIS EC 28 10X1L BOT IN"]
["Desis(2.8) 250 Ml","DECIS EC 28 40X250ML BOT IN"]
["Desis(2.8)500ml","DECIS EC 28 20X500ML BOT IN"]
["Desis 500 Ml","DECIS EC 28 20X500ML BOT IN"]
["Desis 50 Ml","DECIS EC101-2 100X50ML BOT IN"]
["Ethrel 10X1 Lit","ETHREL SL39 10X1L BOT IN"]
["Ethrel 20X500 Ml","ETHREL SL39 20X500ML BOT IN"]
["Ethrel 250 Ml","NOT FOUND"]
["Ethrel 50X100 Ml","ETHREL SL39 50X100ML BOT IN"]
["EVERGOL XTEND 50X100 Ml","EVERGOL XTEND FS308 50X100ML BOT IN"]
["Fame 40X50ML","FAME (T) SC480 40X50ML BOT IN"]
["FENOS QUICK 40X250 Ml","FENOS QUICK SC150 40X250ML BOT IN"]
["FENOS QUICK 50X100 Ml","FENOS QUICK SC150 50X100ML BOT IN"]
["FITREST SG5 40X100gm","FITREST SG5 40X100GR BOT IN"]
["Folicur 10X1ltr","FOLICUR (T) EC250 10X1L BOT IN"]
["Folicur 20X500 Ml","FOLICUR EC250 20X500ML BOT IN"]
["Folicur 40X250 Ml","FOLICUR EC250 40X250ML BOT IN"]
["Folicur 50X100 Ml","FITREST SG5 40X100GR BOT IN"]
["FOOST 20X250gm","FOOST WP50 20X250G BAG IN"]
["Foost 24X500gm","FOOST WP50 24X500G BAG IN"]
["GAUCHO FS600 100X50ML","GAUCHO FS600 100X50ML BOT IN"]
["INFINITO SC687.5 10X1 LTR","INFINITO SC687 5 10X1L BOT IN"]
["INFINITO SC687.5 20X500 ML","INFINITO SC687 5 20X500ML BOT IN"]
["INFINITO SC687.5 50X100 ML","INFINITO SC687 5 50X100ML BOT IN"]
["JUMP 2gm","JUMP WG80 160X(10X2GR) BAG IN"]
["Jump 40 Gm","JUMP WG80 80X40GR BAG IN"]
["Larvin 1kg","LARVIN (T) WP75 10X1KG BAG IN"]
["Larvin 500 Gm","LARVIN (T) WP75 20X500GR BAG IN"]
["Larvin WP75 20X250gm","LARVIN (T) WP75 20X250GR BAG IN"]
["Larvin WP75 40X100 Gm","LARVIN (T) WP75 40X100GR BAG IN"]
["LAUDIS SC630  10X57.5ml","LAUDIS SC630 10X57.5ML BOT IN"]
["LAUDIS SC630 3X230ML","LAUDIS SC630 3X230ML BOT IN"]
["Laudis SC630  8X115ml","LAUDIS SC630 8X115ML BOT IN"]
["LESENTA 100X40GM","LESENTA WG80 100X40GR BAG IN"]
["LESENTA 50X100GM","LESENTA WG80 50X100GR BAG IN"]
["Luna Experience SC400 10X1 LTR","LUNA EXPERIENCE SC400 10X1L BOT IN"]
["Luna Experience SC400 40X250ML","LUNA EXPERIENCE SC400 40X250ML BOT IN"]
["Luna Experience SC400 50X100ML","LUNA EXPERIENCE SC400 50X100ML BOT IN"]
["MAIZE PINACAL 8X3.5 KG","NOT FOUND"]
["Melody 400 Gm","MELODY DUO WP66 8 10X400GR BAG IN"]
["Melody 800 Gm","MELODY DUO WP66 8 10X800G BAG IN"]
["Melody Duo 1kg","DISCOUNTINUE PRODUCT"]
["Melody Duo WP66.8 10X400Gm","MELODY DUO WP66 8 10X400GR BAG IN"]
["Melody Duo WP66.8 10X800 Gm","MELODY DUO WP66 8 10X800G BAG IN"]
["Movento 1ltr","MOVENTO OD150 10X1L BOT IN"]
["Movento Energy 20X500ml","MOVENTO ENERGY SC240 20X500ML BOT IN"]
["Movento Energy 40x250ml","MOVENTO ENERGY SC240 40X250ML BOT IN"]
["Movento Energy 50X100ml","MOVENTO ENERGY SC240 50X100ML BOT IN"]
["MOVENTO OD150 10X1LIT","MOVENTO OD150 10X1L BOT IN"]
["MOVENTO OD150 20X500ML","MOVENTO OD150 20X500ML BOT IN"]
["MOVENTO  OD 40X250ml","MOVENTO OD150 40X250ML BOT IN"]
["Nativo 100X50 Gm","NATIVO WG75 100X50GR BAG IN"]
["NATIVO 200X10gm","NATIVO WG75 20X(10X10GR) BAG IN"]
["Nativo 20X500 Gm","NATIVO WG75 20X500GR BAG IN"]
["Nativo 40X250 Gm","NATIVO WG75 40X250GR BAG IN"]
["Nativo 50X100 Gm","NATIVO WG75 50X100GR BAG IN"]
["Oberon 40X200 Ml","OBERON (T) SC240 40X200ML BOT IN"]
["Oberon 50X100 Ml","OBERON (T) SC240 50X100ML BOT IN"]
["PLANOFIX 10X1LIT","PLANOFIX SL45 10X1L BOT IN"]
["Planofix 20X500 Ml","PLANOFIX SL4 5 20X500ML BOT IN"]
["Planofix 40X250 Ml","PLANOFIX SL4 5 40X250ML BOT IN"]
["Planofix 50X100 Ml","PLANOFIX SL4 5 50X100ML BOT IN"]
["PROFILER WG71.11 10X1 Kg","PROFILER WG71 11 10X1KG BAG IN"]
["PROFILER WG71.11 20X250GM","PROFILER WG71 11 20X250GR BAG IN"]
["Regent Gold SC200 40X250 Ml","REGENT GOLD SC200 40X250ML BOT IN"]
["Regent Gold SC200 50X100 Ml","REGENT GOLD SC200 50X100ML BOT IN"]
["REGENT GR  20X1kg","REGENT GR0 3 20X1KG BAG IN"]
["REGENT GR  4X5kg","REGENT GR0 3 4X5KG BAG IN"]
["REGENT SC 10X1LIT","REGENT (T) SC50 10X1L BOT IN"]
["Regent SC 20X250ml","REGENT GR0 3 20X1KG BAG IN"]
["Regent Sc 20X500 ML","REGENT GOLD SC200 20X500ML BOT IN"]
["Regent SC 50X100 Ml","REGENT (T) SC50 50X100ML BOT IN"]
["REGENT ULTRA GR 5X4 KG","REGENT ULTRA GR0 6 5X4KG BAG IN"]
["Sectin 250 Gm","SENCOR (TD-IN) WP70 40X250GR BAG TH"]
["Sectin 600 Gm","SECTIN WG60 20X600GR BAG IN"]
["Sectin WG60 10X1 Kg","SECTIN WG60 10X1KG BAG IN"]
["Sencor  20X500gm","SENCOR WP70 20X500GR BOX IN"]
["Sencor 60X100 Gm","SENCOR WP70 60X100GR BAG IN"]
["SOLOMON 10X1 LIT","SOLOMON OD300 10X1L BOT IN"]
["Solomon 20X500 Ml","SOLOMON OD300 20X500ML BOT IN"]
["Solomon 40X250ml","SOLOMON OD300 40X250ML BOT IN"]
["SOLOMON 50X100ml","SOLOMON OD300 50X100ML BOT IN"]
["Spintor 20X75 Ml","SPINTOR SC495 20X75ML BOT IN"]
["Spintor 7 Ml","SPINTOR SC495 10X(20X7ML) BOT IN"]
["Super Confidor 1 Lit","CONFIDOR SUPER (T) SC350 10X1L BOT IN"]
["Super Confidor 50 Ml","CONFIDOR SUPER (T) SC350 50X50ML BOT IN"]
["VELUM PRIME SC400 20X500 Ml","VELUM PRIME SC400 20X500ML BOT IN"]
["VELUM PRIME SC400 40X250 Ml","VELUM PRIME SC400 40X250ML BOT IN"]
["Whip Super 20X500ml","WHIPSUPER (T) EC90 20X500ML BOT IN"]
["Whip Super 40X250ml","WHIPSUPER (T) EC90 40X250ML BOT IN"]
["Whip Super 50X100ML","WHIPSUPER (T) EC90 50X100ML BOT IN"]
["Admire (150gm) Bayer","ADMIRE (T) WG70 30X150GR BOT IN"]
["Admire (2gm) Bayer","ADMIRE WG70 125X(8X2GR) BAG IN"]
["Admire (300gm) Bayer","ADMIRE WG70 20X300GR BAG IN"]
["Admire (30gm) Bayer","ADMIRE (T) WG70 150X30GR BOT IN"]
["Admire (75gm) Bayer","ADMIRE (T) WG70 60X75GR BOT IN"]
["Aliete 1kg","ALIETTE WP80 10X1KG BAG IN"]
["Aliette 250gm Bayer","ALIETTE WP80 20X250GR BAG IN"]
["Aliette 500gm","ALIETTE WP80 20X500GR BAG IN"]
["Ambition 100ml","AMBITION 50X100ML BOT IN"]
["Ambition 1ltr","AMBITION 10X1L BOT IN"]
["Ambition 1ltr (5%)","AMBITION 10X1L BOT IN"]
["Ambition 250ml","AMBITION 40X250ML BOT IN"]
["Ambition 500ml","AMBITION 20X500ML BOT IN"]
["Antracol (1kg) Bayer","ANTRACOL (T) WP70 10X1KG BAG IN"]
["Antracol (250gm) Bayer","ANTRACOL (T) WP70 40X250GR BAG IN"]
["Antracol (500gm) Bayer","ANTRACOL (T) WP70 20X500GR BAG IN"]
["Bayfolan Algae 250ml","bayer"]
["Bayfolan Algae 500ml","bayer"]
["Belt Expert 100ml","BELT EXPERT SC480 50X100ML BOT IN"]
["Buonos 250ml","BUONOS SC430 40X250ML BOT IN"]
["Confidor 100ml","CONFIDOR (T) SL200 50X100ML BOT IN"]
["Confidor 1ltr","CONFIDOR (T) SL200 10X1L BOT IN"]
["Confidor (250ml) Bayer","CONFIDOR (T) SL200 20X250ML BOT IN"]
["Confidor 500ml","CONFIDOR (T) SL200 20X500ML BOT IN"]
["Confidor (50ml) Bayer","CONFIDOR (T) SL200 100X50ML BOT IN"]
["Desis 100 (100ml) Bayer","DECIS EC101-2 50X100ML BOX IN"]
["Desis 100 (250ml) Bayer","DECIS EC101-2 40X250ML BOT IN"]
["Desis 1ltr","DECIS EC 28 10X1L BOT IN"]
["Desis 50ml","DECIS EC101-2 100X50ML BOT IN"]
["Ethrel (100ml)","ETHREL SL39 50X100ML BOT IN"]
["Ethrel 1lit (Bayer)","ETHREL SL39 10X1L BOT IN"]
["Ethrel (500ml) Bayer","ETHREL SL39 20X500ML BOT IN"]
["Evergol 40ml","EVERGOL XTEND FS308 100X40ML BOT IN"]
["Fame (100ml) Bayer","FAME (T) SC480 20X100ML BOT IN"]
["Fame (1ltr) Bayer","FAME (T) SC480 20X100ML BOT IN"]
["Fame (250ml) Bayer","FAME (T) SC480 8X250ML BOT IN"]
["Fame (50ml) Bayer","FAME (T) SC480 40X50ML BOT IN"]
["Fenos Quick Sc 100ml","FENOS QUICK SC150 50X100ML BOT IN"]
["Folicur 500ml","FOLICUR (T) EC250 20X500ML BOT IN"]
["Folicure (100ml) Bayer","FOLICUR (T) EC250 50X100ML BOT IN"]
["Folicure (250ml) Bayer","FOLICUR (T) EC250 40X250ML BOT IN"]
["Foost 250g","FOOST WP50 20X250G BAG IN"]
["Foost 500g","FOOST WP50 24X500G BAG IN"]
["Gaucho 100ml Bayer","GAUCHO FS600 50X100ML BOT IN"]
["Gaucho (50ml) Bayer","GAUCHO FS600 100X50ML BOT IN"]
["Gaucho 9ml","GAUCHO FS600 5X(20X9)ML BOT IN"]
["Infinito 100ml","INFINITO SC687 5 50X100ML BOT IN"]
["Infinito 1lit","INFINITO SC687 5 10X1L BOT IN"]
["Infinito 500ml","INFINITO SC687 5 50X100ML BOT IN"]
["Jump 2gm","JUMP WG80 160X(10X2GR) BAG IN"]
["Jump Wg 80 (40gm) Bayer","JUMP WG80 80X40GR BAG IN"]
["Kaligad Maxx 1000seeds","DISCOUNTINUE PRODUCT"]
["Larvin 100g","LARVIN (T) WP75 40X100GR BAG IN"]
["Larvin (250gm) Bayer","LARVIN (T) WP75 20X250GR BAG IN"]
["Larvin (500gm) Bayer","LARVIN (T) WP75 20X500GR BAG IN"]
["Laudis 115ml","LAUDIS SC630 8X115ML BOT IN"]
["Laudis 57.5 Ml","LAUDIS SC630 10X57.5ML BOT IN"]
["Lesenta 40gm","LESENTA WG80 100X40GR BAG IN"]
["Luna 100ml","LUNA EXPERIENCE SC400 50X100ML BOT IN"]
["Luna 1ltr","LUNA EXPERIENCE SC400 10X1L BOT IN"]
["Luna 250ml","LUNA EXPERIENCE SC400 40X250ML BOT IN"]
["Maize All Rounder 5kg","C MS ALLROUNDER 5KG IN"]
["Maize Dekalb9141 3.5kg","C DK DKC9141 3.5KG"]
["Meladu (100gm) Bayer","MELODY DUO WP66 8 50X100GR BAG IN"]
["Meladu (500gm) Bayer","DISCOUNTINUE PRODUCT"]
["Meladu (800g)Bayer","MELODY DUO WP66 8 10X800G BAG IN"]
["Melody Deo 400gm","MELODY DUO WP66 8 10X400GR BAG IN"]
["Melody Deo 800gm","MELODY DUO WP66 8 10X800G BAG IN"]
["Movento Energy 100ml",{"$error":"#N/A"}]
["Movento Energy 1ltr","MOVENTO ENERGY SC240 10X1L BOT IN"]
["Movento Enragy 250ml","MOVENTO OD150 40X250ML BOT IN"]
["Movento Od 1lit","MOVENTO OD150 10X1L BOT IN"]
["Movento Od 250ml","MOVENTO OD150 40X250ML BOT IN"]
["Movento Od 500ml","MOVENTO OD150 20X500ML BOT IN"]
["Nativo 100gm","NATIVO WG75 50X100GR BAG IN"]
["Nativo 1kg","NATIVO WG75 10X1KG BAG IN"]
["Nativo 500gm","NATIVO WG75 20X500GR BAG IN"]
["Nativo 50gm","NATIVO WG75 100X50GR BAG IN"]
["Nativo Wg 250g","NATIVO WG75 40X250GR BAG IN"]
["Netio (100gm) Bayer","NATIVO WG75 50X100GR BAG IN"]
["Netio (250gm) Bayer","NATIVO WG75 40X250GR BAG IN"]
["Oberon 100ml","OBERON (T) SC240 50X100ML BOT IN"]
["Oberon 200ml","OBERON (T) SC240 40X200ML BOT IN"]
["Planofix 100ml","PLANOFIX SL4 5 50X100ML BOT IN"]
["Planofix 500ml","PLANOFIX SL4 5 20X500ML BOT IN"]
["Planoix 250ml",{"$error":"#N/A"}]
["Profiler 1kg","PROFILER WG71 11 10X1KG BAG IN"]
["Profiler 250gm","PROFILER WG71 11 20X250GR BAG IN"]
["Regent (100gm) Bayer","REGENT (T) SC50 50X100ML BOT IN"]
["Regent (1kg) Bayer","REGENT (T) SC50 10X1L BOT IN"]
["Regent (5kg) Bayer","REGENT GR0 3 4X5KG BAG IN"]
["Regent Gold 100ml","REGENT GOLD SC200 50X100ML BOT IN"]
["Regent Sc 1L","REGENT (T) SC50 10X1L BOT IN"]
["Regent SC 250ml","REGENT (T) SC50 20X250ML BOT IN"]
["Regent SC 500ml","REGENT (T) SC50 20X500ML BOT IN"]
["Regent Ultra 4kg","REGENT ULTRA GR0 6 5X4KG BAG IN"]
["Sectin 1kg","SECTIN WG60 10X1KG BAG IN"]
["Sectin (600gm) Bayer","SECTIN WG60 20X600GR BAG IN"]
["Sencor 100gm BAYER","SENCOR WP70 60X100GR BAG IN"]
["Sencor 500gm","SENCOR WP70 20X500GR BOX IN"]
["Soloman 100ml","SOLOMON OD300 50X100ML BOT IN"]
["Solomon 1L","SOLOMON OD300 10X1L BOT IN"]
["Solomon 250ml","SOLOMON OD300 40X250ML BOT IN"]
["Solomon 500ml","SOLOMON OD300 20X500ML BOT IN"]
["Spinter (75ml) Bayer","SPINTOR SC495 20X75ML BOT IN"]
["Sunrice 50gm","SUNRICE WG15 100X50GR BOT IN"]
["Super Confidor 500ml","CONFIDOR SUPER (T) SC350 20X500ML BOT IN"]
["Super Confidor Sc (100ml) Bayer","CONFIDOR SUPER (T) SC350 50X100ML BOT IN"]
["Super Confidor Sc (250ml) Bayer","CONFIDOR SUPER (T) SC350 20X250ML BOT IN"]
["Super Confidor Sc (50ml) Bayer","CONFIDOR SUPER (T) SC350 50X50ML BOT IN"]
["Velum Prime 250ml","WHIPSUPER (T) EC90 40X250ML BOT IN"]
["Velum Prime 500ml","WHIPSUPER (T) EC90 20X500ML BOT IN"]
["Whipsuper 100ml","WHIPSUPER (T) EC90 50X100ML BOT IN"]
["WHIP SUPER 250ML","WHIPSUPER (T) EC90 40X250ML BOT IN"]
["Whip Super 500ml","WHIPSUPER (T) EC90 20X500ML BOT IN"]
["Planoix 250ml","PLANOFIX SL4 5 40X250ML BOT IN"]

{"sheet":"Final Dealer Work","index":4,"n_rows":109,"n_cols":14,"rows_kept":109,"cut":false,"hidden":false,"merged":[]}
[]
[null,"PRODUCT","ITEMALIAS","Bpc","Volume","Opening Qty","Purchase Qty","Purchase Return Qty","Sales Qty","Sales Return Qty","Transfer Qty","Consignment Qty","Adjustment Qty","CLSG"]
[null,"ADMIRE (T) WG70 150X30GR BOT IN",null,null,null,58,450,0,446,0,0,0,0,62]
[null,"ADMIRE (T) WG70 30X150GR BOT IN",null,null,null,14,null,0,17,0,0,0,0,-3]
[null,"ADMIRE (T) WG70 60X75GR BOT IN",null,null,null,1,180,0,159,0,0,0,0,22]
[null,"ADMIRE WG70 125X(8X2GR) BAG IN",null,null,null,null,7800,0,6798,0,0,0,0,1002]
[null,"ADMIRE WG70 20X300GR BAG IN",null,null,null,12,160,0,145,0,0,0,0,27]
[null,"ALIETTE WP80 10X1KG BAG IN",null,null,null,6,220,0,190,0,0,0,0,36]
[null,"ALIETTE WP80 20X250GR BAG IN",null,null,null,null,null,0,null,0,0,0,0]
[null,"ALIETTE WP80 20X500GR BAG IN",null,null,null,-6,320,0,317,0,0,0,0,-3]
[null,"AMBITION 10X1L BOT IN",null,null,null,14,100,0,115,0,0,0,0,-1]
[null,"AMBITION 20X500ML BOT IN",null,null,null,30,840,0,642,0,0,0,0,228]
[null,"AMBITION 40X250ML BOT IN",null,null,null,25,1080,0,942,0,0,0,0,163]
[null,"AMBITION 50X100ML BOT IN",null,null,null,null,500,0,383,0,0,0,0,117]
[null,"ANTRACOL (T) WP70 10X1KG BAG IN",null,null,null,9,1150,0,995,0,0,0,0,164]
[null,"ANTRACOL (T) WP70 20X500GR BAG IN",null,null,null,164,2400,0,2083,0,0,0,0,481]
[null,"ANTRACOL (T) WP70 40X250GR BAG IN",null,null,null,67,1840,0,1807,0,0,0,0,100]
[null,"Bayer",null,null,null,null,null,0,null,0,0,0,0]
[null,"BELT EXPERT SC480 50X100ML BOT IN",null,null,null,1,150,0,120,0,0,0,0,31]
[null,"BUONOS SC430 40X250ML BOT IN",null,null,null,null,320,0,298,0,0,0,0,22]
[null,"C DK DKC9141 3.5KG",null,null,null,null,16,0,8,0,0,0,0,8]
[null,"C MS ALLROUNDER 5KG IN",null,null,null,null,null,0,9,0,0,0,0,-9]
[null,"CONFIDOR (T) SL200 100X50ML BOT IN",null,null,null,null,100,0,77,0,0,0,0,23]
[null,"CONFIDOR (T) SL200 10X1L BOT IN",null,null,null,null,50,0,35,0,0,0,0,15]
[null,"CONFIDOR (T) SL200 20X250ML BOT IN",null,null,null,18,40,0,55,0,0,0,0,3]
[null,"CONFIDOR (T) SL200 20X500ML BOT IN",null,null,null,null,100,0,51,0,0,0,0,49]
[null,"CONFIDOR (T) SL200 50X100ML BOT IN",null,null,null,25,150,0,143,0,0,0,0,32]
[null,"CONFIDOR SUPER (T) SC350 20X250ML BOT IN",null,null,null,-1,100,0,87,0,0,0,0,12]
[null,"CONFIDOR SUPER (T) SC350 20X500ML BOT IN",null,null,null,null,40,0,40,0,0,0,0]
[null,"CONFIDOR SUPER (T) SC350 50X100ML BOT IN",null,null,null,-2,450,0,463,0,0,0,0,-15]
[null,"CONFIDOR SUPER (T) SC350 50X50ML BOT IN",null,null,null,59,500,0,495,0,0,0,0,64]
[null,"DECIS EC 28 10X1L BOT IN",null,null,null,null,50,0,50,0,0,0,0]
[null,"DECIS EC101-2 100X50ML BOT IN",null,null,null,null,300,0,200,0,0,0,0,100]
[null,"DECIS EC101-2 40X250ML BOT IN",null,null,null,34,520,0,519,0,0,0,0,35]
[null,"DECIS EC101-2 50X100ML BOX IN",null,null,null,14,1400,0,1313,0,0,0,0,101]
[null,"DISCOUNTINUE PRODUCT",null,null,null,null,6,0,6,0,0,0,0]
[null,"ETHREL SL39 10X1L BOT IN",null,null,null,null,250,0,214,0,0,0,0,36]
[null,"ETHREL SL39 20X500ML BOT IN",null,null,null,-1,200,0,211,0,0,0,0,-12]
[null,"ETHREL SL39 50X100ML BOT IN",null,null,null,null,250,0,149,0,0,0,0,101]
[null,"EVERGOL XTEND FS308 100X40ML BOT IN",null,null,null,null,1700,0,1658,0,0,0,0,42]
[null,"FAME (T) SC480 20X100ML BOT IN",null,null,null,5,120,0,119,0,0,0,0,6]
[null,"FAME (T) SC480 40X50ML BOT IN",null,null,null,18,320,0,274,0,0,0,0,64]
[null,"FAME (T) SC480 8X250ML BOT IN",null,null,null,null,16,0,5,0,0,0,0,11]
[null,"FENOS QUICK SC150 50X100ML BOT IN",null,null,null,null,550,0,521,0,0,0,0,29]
[null,"FOLICUR (T) EC250 20X500ML BOT IN",null,null,null,4,80,0,78,0,0,0,0,6]
[null,"FOLICUR (T) EC250 40X250ML BOT IN",null,null,null,-14,680,0,610,0,0,0,0,56]
[null,"FOLICUR (T) EC250 50X100ML BOT IN",null,null,null,11,1000,0,881,0,0,0,0,130]
[null,"FOOST WP50 20X250G BAG IN",null,null,null,5,40,0,35,0,0,0,0,10]
[null,"FOOST WP50 24X500G BAG IN",null,null,null,-9,168,0,95,0,0,0,0,64]
[null,"GAUCHO FS600 100X50ML BOT IN",null,null,null,143,3300,0,2896,0,0,0,0,547]
[null,"GAUCHO FS600 50X100ML BOT IN",null,null,null,8,1290,0,1055,0,0,0,0,243]
[null,"GAUCHO FS600 5X(20X9)ML BOT IN",null,null,null,null,2200,0,2203,0,0,0,0,-3]
[null,"INFINITO SC687 5 10X1L BOT IN",null,null,null,null,80,0,37,0,0,0,0,43]
[null,"INFINITO SC687 5 20X500ML BOT IN",null,null,null,null,360,0,304,0,0,0,0,56]
[null,"INFINITO SC687 5 50X100ML BOT IN",null,null,null,null,300,0,263,0,0,0,0,37]
[null,"JUMP WG80 160X(10X2GR) BAG IN",null,null,null,null,1600,0,196,0,0,0,0,1404]
[null,"JUMP WG80 80X40GR BAG IN",null,null,null,null,80,0,83,0,0,0,0,-3]
[null,"LARVIN (T) WP75 20X250GR BAG IN",null,null,null,22,360,0,249,0,0,0,0,133]
[null,"LARVIN (T) WP75 20X500GR BAG IN",null,null,null,null,100,0,37,0,0,0,0,63]
[null,"LARVIN (T) WP75 40X100GR BAG IN",null,null,null,null,null,0,null,0,0,0,0]
[null,"LAUDIS SC630 10X57.5ML BOT IN",null,null,null,8,30,0,33,0,0,0,0,5]
[null,"LAUDIS SC630 8X115ML BOT IN",null,null,null,-46,80,0,64,0,0,0,0,-30]
[null,"LESENTA WG80 100X40GR BAG IN",null,null,null,null,600,0,449,0,0,0,0,151]
[null,"LUNA EXPERIENCE SC400 10X1L BOT IN",null,null,null,null,120,0,77,0,0,0,0,43]
[null,"LUNA EXPERIENCE SC400 40X250ML BOT IN",null,null,null,15,800,0,803,0,0,0,0,12]
[null,"LUNA EXPERIENCE SC400 50X100ML BOT IN",null,null,null,2,250,0,204,0,0,0,0,48]
[null,"MELODY DUO WP66 8 10X400GR BAG IN",null,null,null,29,590,0,504,0,0,0,0,115]
[null,"MELODY DUO WP66 8 10X800G BAG IN",null,null,null,34,1150,0,749,0,0,0,0,435]
[null,"MELODY DUO WP66 8 50X100GR BAG IN",null,null,null,null,850,0,765,0,0,0,0,85]
[null,"MOVENTO ENERGY SC240 10X1L BOT IN",null,null,null,null,90,0,88,0,0,0,0,2]
[null,"MOVENTO ENERGY SC240 50X100ML BOT IN",null,null,null,null,50,0,21,0,0,0,0,29]
[null,"MOVENTO OD150 10X1L BOT IN",null,null,null,null,20,0,21,0,0,0,0,-1]
[null,"MOVENTO OD150 20X500ML BOT IN",null,null,null,null,60,0,43,0,0,0,0,17]
[null,"MOVENTO OD150 40X250ML BOT IN",null,null,null,7,600,0,503,0,0,0,0,104]
[null,"NATIVO WG75 100X50GR BAG IN",null,null,null,-27,1300,0,1260,0,0,0,0,13]
[null,"NATIVO WG75 10X1KG BAG IN",null,null,null,null,10,0,10,0,0,0,0]
[null,"NATIVO WG75 20X500GR BAG IN",null,null,null,null,40,0,40,0,0,0,0]
[null,"NATIVO WG75 40X250GR BAG IN",null,null,null,21,280,0,211,0,0,0,0,90]
[null,"NATIVO WG75 50X100GR BAG IN",null,null,null,35,1100,0,1041,0,0,0,0,94]
[null,"OBERON (T) SC240 40X200ML BOT IN",null,null,null,null,280,0,213,0,0,0,0,67]
[null,"OBERON (T) SC240 50X100ML BOT IN",null,null,null,null,50,0,27,0,0,0,0,23]
[null,"PLANOFIX SL4 5 20X500ML BOT IN",null,null,null,null,null,0,null,0,0,0,0]
[null,"PLANOFIX SL4 5 50X100ML BOT IN",null,null,null,13,400,0,327,0,0,0,0,86]
[null,"PROFILER WG71 11 10X1KG BAG IN",null,null,null,2,80,0,79,0,0,0,0,3]
[null,"PROFILER WG71 11 20X250GR BAG IN",null,null,null,19,null,0,18,0,0,0,0,1]
[null,"REGENT (T) SC50 10X1L BOT IN",null,null,null,3,830,0,653,0,0,0,0,180]
[null,"REGENT (T) SC50 20X250ML BOT IN",null,null,null,1,400,0,336,0,0,0,0,65]
[null,"REGENT (T) SC50 20X500ML BOT IN",null,null,null,2,340,0,281,0,0,0,0,61]
[null,"REGENT (T) SC50 50X100ML BOT IN",null,null,null,null,null,0,null,0,0,0,0]
[null,"REGENT GOLD SC200 50X100ML BOT IN",null,null,null,32,null,0,28,0,0,0,0,4]
[null,"REGENT GR0 3 4X5KG BAG IN",null,null,null,null,480,0,416,0,0,0,0,64]
[null,"REGENT ULTRA GR0 6 5X4KG BAG IN",null,null,null,null,75,0,61,0,0,0,0,14]
[null,"SECTIN WG60 10X1KG BAG IN",null,null,null,null,null,0,null,0,0,0,0]
[null,"SECTIN WG60 20X600GR BAG IN",null,null,null,null,null,0,null,0,0,0,0]
[null,"SENCOR WP70 20X500GR BOX IN",null,null,null,null,40,0,40,0,0,0,0]
[null,"SENCOR WP70 60X100GR BAG IN",null,null,null,4,900,0,781,0,0,0,0,123]
[null,"SOLOMON OD300 10X1L BOT IN",null,null,null,null,100,0,101,0,0,0,0,-1]
[null,"SOLOMON OD300 20X500ML BOT IN",null,null,null,null,380,0,366,0,0,0,0,14]
[null,"SOLOMON OD300 40X250ML BOT IN",null,null,null,20,1560,0,1429,0,0,0,0,151]
[null,"SOLOMON OD300 50X100ML BOT IN",null,null,null,19,1650,0,1504,0,0,0,0,165]
[null,"SPINTOR SC495 20X75ML BOT IN",null,null,null,5,null,0,null,0,0,0,0,5]
[null,"SUNRICE WG15 100X50GR BOT IN",null,null,null,null,200,0,100,0,0,0,0,100]
[null,"VELUM PRIME SC400 20X500ML BOT IN",null,null,null,null,80,0,72,0,0,0,0,8]
[null,"VELUM PRIME SC400 40X250ML BOT IN",null,null,null,null,160,0,128,0,0,0,0,32]
[null,"WHIPSUPER (T) EC90 20X500ML BOT IN",null,null,null,1,100,0,101,0,0,0,0]
[null,"WHIPSUPER (T) EC90 40X250ML BOT IN",null,null,null,-3,520,0,504,0,0,0,0,13]
[null,"WHIPSUPER (T) EC90 50X100ML BOT IN",null,null,null,36,1050,0,1027,0,0,0,0,59]
[null,"(blank)",null,null,null,null,null,0,null,0,0,0,0]
[null,"Grand Total",null,null,null,966,54071,0,46659,0,0,0,0,8378]

{"sheet":"Zylem SNS Report","index":5,"n_rows":106,"n_cols":13,"rows_kept":106,"cut":false,"hidden":false,"merged":[[1,0,1,12],[3,0,3,12],[4,0,4,12],[5,0,5,12],[6,0,6,12]]}
[]
["Company Name:-BAYER"]
["Stock and Sales FOR THE PERIOD 01-Apr-2020 TO 28-Feb-2021"]
["Generated on 4/2/2021 11:32:48 AM"]
["DISTRIBUTOR PRODUCTWISE"]
["OUTPUT IN : PIC,DETAILS AS : Column,CONSIDER : Voucher Date,INCLUDE VALIDATION : False"]
["DISTRIBUTOR:S S Agro Agency,"]
["DISTRIBUTOR","SAPCODE","PRODUCT","ITEMALIAS","Opening Qty","Purchase Qty","Purchase Return Qty","Sales Qty","Sales Return Qty","Transfer Qty","Consignment Qty","Adjustment Qty","CLSG"]
["S S Agro Agency",4486971,"ADMIRE (T) WG70 150X30GR BOT IN",79234988,58,450,0,446,0,0,0,0,62]
["S S Agro Agency",4486971,"ADMIRE (T) WG70 30X150GR BOT IN",79277857,14,0,0,19,2,0,0,0,-3]
["S S Agro Agency",4486971,"ADMIRE (T) WG70 60X75GR BOT IN",79297696,1,180,0,159,0,0,0,0,22]
["S S Agro Agency",4486971,"ADMIRE WG70 125X(8X2GR) BAG IN",6101665,0,7800,0,6798,0,0,0,0,1002]
["S S Agro Agency",4486971,"ADMIRE WG70 20X300GR BAG IN",79696000,12,160,0,145,0,0,0,0,27]
["S S Agro Agency",4486971,"ALIETTE WP80 10X1KG BAG IN",3822323,6,220,0,200,10,0,0,0,36]
["S S Agro Agency",4486971,"ALIETTE WP80 20X500GR BAG IN",3822366,-6,320,0,337,20,0,0,0,-3]
["S S Agro Agency",4486971,"AMBITION 10X1L BOT IN",86212544,14,100,0,117,2,0,0,0,-1]
["S S Agro Agency",4486971,"AMBITION 20X500ML BOT IN",86228564,30,840,0,643,1,0,0,0,228]
["S S Agro Agency",4486971,"AMBITION 40X250ML BOT IN",86232308,25,1080,0,943,1,0,0,0,163]
["S S Agro Agency",4486971,"ANTRACOL (T) WP70 10X1KG BAG IN",6077322,9,1150,0,1056,61,0,0,0,164]
["S S Agro Agency",4486971,"ANTRACOL (T) WP70 20X500GR BAG IN",5999978,164,2400,0,2143,60,0,0,0,481]
["S S Agro Agency",4486971,"ANTRACOL (T) WP70 40X250GR BAG IN",6112179,67,1840,0,1847,40,0,0,0,100]
["S S Agro Agency",4486971,"BELT EXPERT SC480 50X100ML BOT IN",79722869,1,350,200,122,2,0,0,0,31]
["S S Agro Agency",4486971,"CONFIDOR (T) SL200 100X50ML BOT IN",5708361,0,100,0,77,0,0,0,0,23]
["S S Agro Agency",4486971,"CONFIDOR (T) SL200 10X1L BOT IN",5697343,0,50,0,35,0,0,0,0,15]
["S S Agro Agency",4486971,"CONFIDOR (T) SL200 20X250ML BOT IN",5699494,18,40,0,55,0,0,0,0,3]
["S S Agro Agency",4486971,"CONFIDOR (T) SL200 20X500ML BOT IN",5704439,0,100,0,55,4,0,0,0,49]
["S S Agro Agency",4486971,"CONFIDOR (T) SL200 50X100ML BOT IN",5703475,25,150,0,143,0,0,0,0,32]
["S S Agro Agency",4486971,"CONFIDOR SUPER (T) SC350 20X250ML BOT IN",79710852,-1,100,0,108,21,0,0,0,12]
["S S Agro Agency",4486971,"CONFIDOR SUPER (T) SC350 20X500ML BOT IN",79734727,0,40,0,40,0,0,0,0,0]
["S S Agro Agency",4486971,"CONFIDOR SUPER (T) SC350 50X100ML BOT IN",79735219,-2,450,0,483,20,0,0,0,-15]
["S S Agro Agency",4486971,"CONFIDOR SUPER (T) SC350 50X50ML BOT IN",79985169,59,500,0,496,1,0,0,0,64]
["S S Agro Agency",4486971,"DECIS EC 28 10X1L BOT IN",3823303,0,50,0,50,0,0,0,0,0]
["S S Agro Agency",4486971,"ETHREL SL39 10X1L BOT IN",79435487,0,250,0,225,11,0,0,0,36]
["S S Agro Agency",4486971,"ETHREL SL39 20X500ML BOT IN",4299034,-1,200,0,221,10,0,0,0,-12]
["S S Agro Agency",4486971,"ETHREL SL39 50X100ML BOT IN",4299026,0,250,0,154,5,0,0,0,101]
["S S Agro Agency",4486971,"EVERGOL XTEND FS308 100X40ML BOT IN",85402838,0,1700,0,1670,12,0,0,0,42]
["S S Agro Agency",4486971,"FAME (T) SC480 20X100ML BOT IN",79266197,5,120,0,120,1,0,0,0,6]
["S S Agro Agency",4486971,"FAME (T) SC480 40X50ML BOT IN",79224699,18,320,0,275,1,0,0,0,64]
["S S Agro Agency",4486971,"FAME (T) SC480 8X250ML BOT IN",80183291,0,16,0,5,0,0,0,0,11]
["S S Agro Agency",4486971,"FENOS QUICK SC150 50X100ML BOT IN",80942990,0,550,0,521,0,0,0,0,29]
["S S Agro Agency",4486971,"FOLICUR (T) EC250 20X500ML BOT IN",79652933,4,80,0,78,0,0,0,0,6]
["S S Agro Agency",4486971,"FOLICUR (T) EC250 40X250ML BOT IN",79682271,-14,680,0,610,0,0,0,0,56]
["S S Agro Agency",4486971,"FOLICUR (T) EC250 50X100ML BOT IN",79629125,11,1000,0,881,0,0,0,0,130]
["S S Agro Agency",4486971,"FOOST WP50 20X250G BAG IN",85760270,5,40,0,35,0,0,0,0,10]
["S S Agro Agency",4486971,"FOOST WP50 24X500G BAG IN",85811770,-9,168,0,96,1,0,0,0,64]
["S S Agro Agency",4486971,"GAUCHO FS600 100X50ML BOT IN",80034733,143,3300,0,2896,0,0,0,0,547]
["S S Agro Agency",4486971,"GAUCHO FS600 50X100ML BOT IN",79664141,8,1290,0,1055,0,0,0,0,243]
["S S Agro Agency",4486971,"GAUCHO FS600 5X(20X9)ML BOT IN",85824333,0,2200,0,2203,0,0,0,0,-3]
["S S Agro Agency",4486971,"INFINITO SC687 5 10X1L BOT IN",79688172,0,80,0,41,4,0,0,0,43]
["S S Agro Agency",4486971,"INFINITO SC687 5 20X500ML BOT IN",79641176,0,360,0,304,0,0,0,0,56]
["S S Agro Agency",4486971,"INFINITO SC687 5 50X100ML BOT IN",79632487,0,300,0,264,1,0,0,0,37]
["S S Agro Agency",4486971,"JUMP WG80 160X(10X2GR) BAG IN",79215304,0,1600,0,196,0,0,0,0,1404]
["S S Agro Agency",4486971,"JUMP WG80 80X40GR BAG IN",79267509,0,80,0,83,0,0,0,0,-3]
["S S Agro Agency",4486971,"LARVIN (T) WP75 20X250GR BAG IN",6003167,22,360,0,249,0,0,0,0,133]
["S S Agro Agency",4486971,"LARVIN (T) WP75 20X500GR BAG IN",6005291,0,100,0,37,0,0,0,0,63]
["S S Agro Agency",4486971,"LAUDIS SC630 10X57.5ML BOT IN",84470481,8,30,0,33,0,0,0,0,5]
["S S Agro Agency",4486971,"LAUDIS SC630 8X115ML BOT IN",80491085,-46,144,64,65,1,0,0,0,-30]
["S S Agro Agency",4486971,"LESENTA WG80 100X40GR BAG IN",80500823,0,600,0,449,0,0,0,0,151]
["S S Agro Agency",4486971,"LUNA EXPERIENCE SC400 10X1L BOT IN",80251904,0,120,0,87,10,0,0,0,43]
["S S Agro Agency",4486971,"LUNA EXPERIENCE SC400 40X250ML BOT IN",80549652,15,800,0,813,10,0,0,0,12]
["S S Agro Agency",4486971,"LUNA EXPERIENCE SC400 50X100ML BOT IN",80199414,2,250,0,206,2,0,0,0,48]
["S S Agro Agency",4486971,"MELODY DUO WP66 8 10X400GR BAG IN",80994974,29,590,0,565,61,0,0,0,115]
["S S Agro Agency",4486971,"MELODY DUO WP66 8 10X800G BAG IN",80975252,34,1150,0,819,70,0,0,0,435]
["S S Agro Agency",4486971,"MELODY DUO WP66 8 50X100GR BAG IN",5997541,0,850,0,765,0,0,0,0,85]
["S S Agro Agency",4486971,"MOVENTO ENERGY SC240 10X1L BOT IN",79556837,0,90,0,108,20,0,0,0,2]
["S S Agro Agency",4486971,"MOVENTO ENERGY SC240 50X100ML BOT IN",79722605,0,50,0,21,0,0,0,0,29]
["S S Agro Agency",4486971,"MOVENTO OD150 10X1L BOT IN",81732884,0,20,0,21,0,0,0,0,-1]
["S S Agro Agency",4486971,"MOVENTO OD150 20X500ML BOT IN",81679703,0,60,0,43,0,0,0,0,17]
["S S Agro Agency",4486971,"MOVENTO OD150 40X250ML BOT IN",81714150,7,600,0,504,1,0,0,0,104]
["S S Agro Agency",4486971,"NATIVO WG75 100X50GR BAG IN",80580061,-27,1300,0,1260,0,0,0,0,13]
["S S Agro Agency",4486971,"NATIVO WG75 10X1KG BAG IN",80525346,0,10,0,10,0,0,0,0,0]
["S S Agro Agency",4486971,"NATIVO WG75 20X500GR BAG IN",79198698,0,40,0,40,0,0,0,0,0]
["S S Agro Agency",4486971,"NATIVO WG75 40X250GR BAG IN",79237790,21,280,0,221,10,0,0,0,90]
["S S Agro Agency",4486971,"NATIVO WG75 50X100GR BAG IN",79304102,35,1100,0,1061,20,0,0,0,94]
["S S Agro Agency",4486971,"OBERON (T) SC240 40X200ML BOT IN",79971362,0,280,0,213,0,0,0,0,67]
["S S Agro Agency",4486971,"OBERON (T) SC240 50X100ML BOT IN",79998538,0,50,0,27,0,0,0,0,23]
["S S Agro Agency",4486971,"PLANOFIX SL4 5 50X100ML BOT IN",3825098,13,400,0,327,0,0,0,0,86]
["S S Agro Agency",4486971,"PROFILER WG71 11 10X1KG BAG IN",80478488,2,150,70,79,0,0,0,0,3]
["S S Agro Agency",4486971,"PROFILER WG71 11 20X250GR BAG IN",80532261,19,0,0,18,0,0,0,0,1]
["S S Agro Agency",4486971,"REGENT (T) SC50 20X250ML BOT IN",5976951,1,400,0,336,0,0,0,0,65]
["S S Agro Agency",4486971,"REGENT (T) SC50 20X500ML BOT IN",5987678,2,340,0,321,40,0,0,0,61]
["S S Agro Agency",4486971,"REGENT GOLD SC200 50X100ML BOT IN",84133965,32,0,0,28,0,0,0,0,4]
["S S Agro Agency",4486971,"REGENT GR0 3 4X5KG BAG IN",80018703,0,480,0,416,0,0,0,0,64]
["S S Agro Agency",4486971,"REGENT ULTRA GR0 6 5X4KG BAG IN",84093394,0,75,0,61,0,0,0,0,14]
["S S Agro Agency",4486971,"SENCOR WP70 20X500GR BOX IN",79052375,0,40,0,40,0,0,0,0,0]
["S S Agro Agency",4486971,"SENCOR WP70 60X100GR BAG IN",3825578,4,900,0,781,0,0,0,0,123]
["S S Agro Agency",4486971,"SOLOMON OD300 10X1L BOT IN",79637365,0,100,0,121,20,0,0,0,-1]
["S S Agro Agency",4486971,"SOLOMON OD300 20X500ML BOT IN",79987870,0,380,0,386,20,0,0,0,14]
["S S Agro Agency",4486971,"SOLOMON OD300 40X250ML BOT IN",79706723,20,1560,0,1475,46,0,0,0,151]
["S S Agro Agency",4486971,"SOLOMON OD300 50X100ML BOT IN",79641931,19,1650,0,1505,1,0,0,0,165]
["S S Agro Agency",4486971,"SPINTOR SC495 20X75ML BOT IN",3826566,5,0,0,0,0,0,0,0,5]
["S S Agro Agency",4486971,"SUNRICE WG15 100X50GR BOT IN",80219121,0,200,0,100,0,0,0,0,100]
["S S Agro Agency",4486971,"VELUM PRIME SC400 20X500ML BOT IN",84407038,0,80,0,76,4,0,0,0,8]
["S S Agro Agency",4486971,"VELUM PRIME SC400 40X250ML BOT IN",84474886,0,160,0,128,0,0,0,0,32]
["S S Agro Agency",4486971,"WHIPSUPER (T) EC90 20X500ML BOT IN",5955989,1,220,120,101,0,0,0,0,0]
["S S Agro Agency",4486971,"WHIPSUPER (T) EC90 40X250ML BOT IN",5966131,-3,520,0,504,0,0,0,0,13]
["S S Agro Agency",4486971,"WHIPSUPER (T) EC90 50X100ML BOT IN",5994151,36,1050,0,1227,200,0,0,0,59]
["S S Agro Agency",4486971,"AMBITION 50X100ML BOT IN",86790122,0,500,0,383,0,0,0,0,117]
["S S Agro Agency",4486971,"C DK DKC9141 3.5KG",12759965,0,16,0,8,0,0,0,0,8]
["S S Agro Agency",4486971,"C MS ALLROUNDER 5KG IN",10673790,0,0,0,9,0,0,0,0,-9]
["S S Agro Agency",4486971,"DECIS EC101-2 100X50ML BOT IN",79646194,0,300,0,200,0,0,0,0,100]
["S S Agro Agency",4486971,"DECIS EC101-2 50X100ML BOX IN",6103692,14,1400,0,1314,1,0,0,0,101]
["S S Agro Agency",4486971,"DECIS EC101-2 40X250ML BOT IN",3823281,34,520,0,519,0,0,0,0,35]
["S S Agro Agency",4486971,"BUONOS SC430 40X250ML BOT IN",86224801,0,320,0,298,0,0,0,0,22]
["S S Agro Agency",4486971,"REGENT (T) SC50 10X1L BOT IN",5962667,3,830,0,673,20,0,0,0,180]
["GRANDTOTAL",null,null,null,966,54519,454,47501,848,0,0,0,8378]

{"sheet":"Sheet1","index":6,"n_rows":104,"n_cols":3,"rows_kept":104,"cut":false,"hidden":false,"merged":[]}
["ADMIRE (T) WG70 150X30GR BOT IN",{"$f":"VLOOKUP(A1,'[2]Product Master Sheet'!$B$2:$F$506,5,0)","v":13},58]
["ADMIRE (T) WG70 30X150GR BOT IN",{"$f":"VLOOKUP(A2,'[2]Product Master Sheet'!$B$2:$F$506,5,0)","v":14},14]
["ADMIRE (T) WG70 60X75GR BOT IN",{"$f":"VLOOKUP(A3,'[2]Product Master Sheet'!$B$2:$F$506,5,0)","v":15},1]
["ADMIRE WG70 125X(8X2GR) BAG IN",{"$f":"VLOOKUP(A4,'[2]Product Master Sheet'!$B$2:$F$506,5,0)","v":16},0]
["ADMIRE WG70 20X300GR BAG IN",{"$f":"VLOOKUP(A5,'[2]Product Master Sheet'!$B$2:$F$506,5,0)","v":17},12]
["ALIETTE WP80 10X1KG BAG IN",{"$f":"VLOOKUP(A6,'[2]Product Master Sheet'!$B$2:$F$506,5,0)","v":31},6]
["ALIETTE WP80 20X500GR BAG IN",{"$f":"VLOOKUP(A7,'[2]Product Master Sheet'!$B$2:$F$506,5,0)","v":34},-6]
["AMBITION 10X1L BOT IN",{"$f":"VLOOKUP(A8,'[2]Product Master Sheet'!$B$2:$F$506,5,0)","v":39},14]
["AMBITION 20X500ML BOT IN",{"$f":"VLOOKUP(A9,'[2]Product Master Sheet'!$B$2:$F$506,5,0)","v":40},30]
["AMBITION 40X250ML BOT IN",{"$f":"VLOOKUP(A10,'[2]Product Master Sheet'!$B$2:$F$506,5,0)","v":41},25]
["ANTRACOL (T) WP70 10X1KG BAG IN",{"$f":"VLOOKUP(A11,'[2]Product Master Sheet'!$B$2:$F$506,5,0)","v":42},9]
["ANTRACOL (T) WP70 20X500GR BAG IN",{"$f":"VLOOKUP(A12,'[2]Product Master Sheet'!$B$2:$F$506,5,0)","v":43},164]
["ANTRACOL (T) WP70 40X250GR BAG IN",{"$f":"VLOOKUP(A13,'[2]Product Master Sheet'!$B$2:$F$506,5,0)","v":44},67]
["BELT EXPERT SC480 50X100ML BOT IN",{"$f":"VLOOKUP(A14,'[2]Product Master Sheet'!$B$2:$F$506,5,0)","v":111},1]
["CONFIDOR (T) SL200 100X50ML BOT IN",{"$f":"VLOOKUP(A15,'[2]Product Master Sheet'!$B$2:$F$506,5,0)","v":112},0]
["CONFIDOR (T) SL200 10X1L BOT IN",{"$f":"VLOOKUP(A16,'[2]Product Master Sheet'!$B$2:$F$506,5,0)","v":113},0]
["CONFIDOR (T) SL200 20X250ML BOT IN",{"$f":"VLOOKUP(A17,'[2]Product Master Sheet'!$B$2:$F$506,5,0)","v":114},18]
["CONFIDOR (T) SL200 20X500ML BOT IN",{"$f":"VLOOKUP(A18,'[2]Product Master Sheet'!$B$2:$F$506,5,0)","v":115},0]
["CONFIDOR (T) SL200 50X100ML BOT IN",{"$f":"VLOOKUP(A19,'[2]Product Master Sheet'!$B$2:$F$506,5,0)","v":116},25]
["CONFIDOR SUPER (T) SC350 20X250ML BOT IN",{"$f":"VLOOKUP(A20,'[2]Product Master Sheet'!$B$2:$F$506,5,0)","v":118},-1]
["CONFIDOR SUPER (T) SC350 20X500ML BOT IN",{"$f":"VLOOKUP(A21,'[2]Product Master Sheet'!$B$2:$F$506,5,0)","v":119},0]
["CONFIDOR SUPER (T) SC350 50X100ML BOT IN",{"$f":"VLOOKUP(A22,'[2]Product Master Sheet'!$B$2:$F$506,5,0)","v":120},-2]
["CONFIDOR SUPER (T) SC350 50X50ML BOT IN",{"$f":"VLOOKUP(A23,'[2]Product Master Sheet'!$B$2:$F$506,5,0)","v":121},59]
["DECIS EC 28 10X1L BOT IN",{"$f":"VLOOKUP(A24,'[2]Product Master Sheet'!$B$2:$F$506,5,0)","v":124},0]
["ETHREL SL39 10X1L BOT IN",{"$f":"VLOOKUP(A25,'[2]Product Master Sheet'!$B$2:$F$506,5,0)","v":136},0]
["ETHREL SL39 20X500ML BOT IN",{"$f":"VLOOKUP(A26,'[2]Product Master Sheet'!$B$2:$F$506,5,0)","v":137},-1]
["ETHREL SL39 50X100ML BOT IN",{"$f":"VLOOKUP(A27,'[2]Product Master Sheet'!$B$2:$F$506,5,0)","v":138},0]
["EVERGOL XTEND FS308 100X40ML BOT IN",{"$f":"VLOOKUP(A28,'[2]Product Master Sheet'!$B$2:$F$506,5,0)","v":139},0]
["FAME (T) SC480 20X100ML BOT IN",{"$f":"VLOOKUP(A29,'[2]Product Master Sheet'!$B$2:$F$506,5,0)","v":145},5]
["FAME (T) SC480 40X50ML BOT IN",{"$f":"VLOOKUP(A30,'[2]Product Master Sheet'!$B$2:$F$506,5,0)","v":146},18]
["FAME (T) SC480 8X250ML BOT IN",{"$f":"VLOOKUP(A31,'[2]Product Master Sheet'!$B$2:$F$506,5,0)","v":148},0]
["FENOS QUICK SC150 50X100ML BOT IN",{"$f":"VLOOKUP(A32,'[2]Product Master Sheet'!$B$2:$F$506,5,0)","v":152},0]
["FOLICUR (T) EC250 20X500ML BOT IN",{"$f":"VLOOKUP(A33,'[2]Product Master Sheet'!$B$2:$F$506,5,0)","v":163},4]
["FOLICUR (T) EC250 40X250ML BOT IN",{"$f":"VLOOKUP(A34,'[2]Product Master Sheet'!$B$2:$F$506,5,0)","v":164},-14]
["FOLICUR (T) EC250 50X100ML BOT IN",{"$f":"VLOOKUP(A35,'[2]Product Master Sheet'!$B$2:$F$506,5,0)","v":165},11]
["FOOST WP50 20X250G BAG IN",{"$f":"VLOOKUP(A36,'[2]Product Master Sheet'!$B$2:$F$506,5,0)","v":175},5]
["FOOST WP50 24X500G BAG IN",{"$f":"VLOOKUP(A37,'[2]Product Master Sheet'!$B$2:$F$506,5,0)","v":177},-9]
["GAUCHO FS600 100X50ML BOT IN",{"$f":"VLOOKUP(A38,'[2]Product Master Sheet'!$B$2:$F$506,5,0)","v":179},143]
["GAUCHO FS600 50X100ML BOT IN",{"$f":"VLOOKUP(A39,'[2]Product Master Sheet'!$B$2:$F$506,5,0)","v":182},8]
["GAUCHO FS600 5X(20X9)ML BOT IN",{"$f":"VLOOKUP(A40,'[2]Product Master Sheet'!$B$2:$F$506,5,0)","v":183},0]
["INFINITO SC687 5 10X1L BOT IN",{"$f":"VLOOKUP(A41,'[2]Product Master Sheet'!$B$2:$F$506,5,0)","v":194},0]
["INFINITO SC687 5 20X500ML BOT IN",{"$f":"VLOOKUP(A42,'[2]Product Master Sheet'!$B$2:$F$506,5,0)","v":195},0]
["INFINITO SC687 5 50X100ML BOT IN",{"$f":"VLOOKUP(A43,'[2]Product Master Sheet'!$B$2:$F$506,5,0)","v":197},0]
["JUMP WG80 160X(10X2GR) BAG IN",{"$f":"VLOOKUP(A44,'[2]Product Master Sheet'!$B$2:$F$506,5,0)","v":199},0]
["JUMP WG80 80X40GR BAG IN",{"$f":"VLOOKUP(A45,'[2]Product Master Sheet'!$B$2:$F$506,5,0)","v":202},0]
["LARVIN (T) WP75 20X250GR BAG IN",{"$f":"VLOOKUP(A46,'[2]Product Master Sheet'!$B$2:$F$506,5,0)","v":205},22]
["LARVIN (T) WP75 20X500GR BAG IN",{"$f":"VLOOKUP(A47,'[2]Product Master Sheet'!$B$2:$F$506,5,0)","v":206},0]
["LAUDIS SC630 10X57.5ML BOT IN",{"$f":"VLOOKUP(A48,'[2]Product Master Sheet'!$B$2:$F$506,5,0)","v":210},8]
["LAUDIS SC630 8X115ML BOT IN",{"$f":"VLOOKUP(A49,'[2]Product Master Sheet'!$B$2:$F$506,5,0)","v":212},-46]
["LESENTA WG80 100X40GR BAG IN",{"$f":"VLOOKUP(A50,'[2]Product Master Sheet'!$B$2:$F$506,5,0)","v":215},0]
["LUNA EXPERIENCE SC400 10X1L BOT IN",{"$f":"VLOOKUP(A51,'[2]Product Master Sheet'!$B$2:$F$506,5,0)","v":223},0]
["LUNA EXPERIENCE SC400 40X250ML BOT IN",{"$f":"VLOOKUP(A52,'[2]Product Master Sheet'!$B$2:$F$506,5,0)","v":225},15]
["LUNA EXPERIENCE SC400 50X100ML BOT IN",{"$f":"VLOOKUP(A53,'[2]Product Master Sheet'!$B$2:$F$506,5,0)","v":226},2]
["MELODY DUO WP66 8 10X400GR BAG IN",{"$f":"VLOOKUP(A54,'[2]Product Master Sheet'!$B$2:$F$506,5,0)","v":228},29]
["MELODY DUO WP66 8 10X800G BAG IN",{"$f":"VLOOKUP(A55,'[2]Product Master Sheet'!$B$2:$F$506,5,0)","v":230},34]
["MELODY DUO WP66 8 50X100GR BAG IN",{"$f":"VLOOKUP(A56,'[2]Product Master Sheet'!$B$2:$F$506,5,0)","v":233},0]
["MOVENTO ENERGY SC240 10X1L BOT IN",{"$f":"VLOOKUP(A57,'[2]Product Master Sheet'!$B$2:$F$506,5,0)","v":271},0]
["MOVENTO ENERGY SC240 50X100ML BOT IN",{"$f":"VLOOKUP(A58,'[2]Product Master Sheet'!$B$2:$F$506,5,0)","v":274},0]
["MOVENTO OD150 10X1L BOT IN",{"$f":"VLOOKUP(A59,'[2]Product Master Sheet'!$B$2:$F$506,5,0)","v":275},0]
["MOVENTO OD150 20X500ML BOT IN",{"$f":"VLOOKUP(A60,'[2]Product Master Sheet'!$B$2:$F$506,5,0)","v":276},0]
["MOVENTO OD150 40X250ML BOT IN",{"$f":"VLOOKUP(A61,'[2]Product Master Sheet'!$B$2:$F$506,5,0)","v":277},7]
["NATIVO WG75 100X50GR BAG IN",{"$f":"VLOOKUP(A62,'[2]Product Master Sheet'!$B$2:$F$506,5,0)","v":289},-27]
["NATIVO WG75 10X1KG BAG IN",{"$f":"VLOOKUP(A63,'[2]Product Master Sheet'!$B$2:$F$506,5,0)","v":290},0]
["NATIVO WG75 20X500GR BAG IN",{"$f":"VLOOKUP(A64,'[2]Product Master Sheet'!$B$2:$F$506,5,0)","v":292},0]
["NATIVO WG75 40X250GR BAG IN",{"$f":"VLOOKUP(A65,'[2]Product Master Sheet'!$B$2:$F$506,5,0)","v":293},21]
["NATIVO WG75 50X100GR BAG IN",{"$f":"VLOOKUP(A66,'[2]Product Master Sheet'!$B$2:$F$506,5,0)","v":294},35]
["OBERON (T) SC240 40X200ML BOT IN",{"$f":"VLOOKUP(A67,'[2]Product Master Sheet'!$B$2:$F$506,5,0)","v":299},0]
["OBERON (T) SC240 50X100ML BOT IN",{"$f":"VLOOKUP(A68,'[2]Product Master Sheet'!$B$2:$F$506,5,0)","v":300},0]
["PLANOFIX SL4 5 50X100ML BOT IN",{"$f":"VLOOKUP(A69,'[2]Product Master Sheet'!$B$2:$F$506,5,0)","v":307},13]
["PROFILER WG71 11 10X1KG BAG IN",{"$f":"VLOOKUP(A70,'[2]Product Master Sheet'!$B$2:$F$506,5,0)","v":310},2]
["PROFILER WG71 11 20X250GR BAG IN",{"$f":"VLOOKUP(A71,'[2]Product Master Sheet'!$B$2:$F$506,5,0)","v":311},19]
["REGENT (T) SC50 20X250ML BOT IN",{"$f":"VLOOKUP(A72,'[2]Product Master Sheet'!$B$2:$F$506,5,0)","v":325},1]
["REGENT (T) SC50 20X500ML BOT IN",{"$f":"VLOOKUP(A73,'[2]Product Master Sheet'!$B$2:$F$506,5,0)","v":326},2]
["REGENT GOLD SC200 50X100ML BOT IN",{"$f":"VLOOKUP(A74,'[2]Product Master Sheet'!$B$2:$F$506,5,0)","v":332},32]
["REGENT GR0 3 4X5KG BAG IN",{"$f":"VLOOKUP(A75,'[2]Product Master Sheet'!$B$2:$F$506,5,0)","v":336},0]
["REGENT ULTRA GR0 6 5X4KG BAG IN",{"$f":"VLOOKUP(A76,'[2]Product Master Sheet'!$B$2:$F$506,5,0)","v":339},0]
["SENCOR WP70 20X500GR BOX IN",{"$f":"VLOOKUP(A77,'[2]Product Master Sheet'!$B$2:$F$506,5,0)","v":350},0]
["SENCOR WP70 60X100GR BAG IN",{"$f":"VLOOKUP(A78,'[2]Product Master Sheet'!$B$2:$F$506,5,0)","v":353},4]
["SOLOMON OD300 10X1L BOT IN",{"$f":"VLOOKUP(A79,'[2]Product Master Sheet'!$B$2:$F$506,5,0)","v":365},0]
["SOLOMON OD300 20X500ML BOT IN",{"$f":"VLOOKUP(A80,'[2]Product Master Sheet'!$B$2:$F$506,5,0)","v":366},0]
["SOLOMON OD300 40X250ML BOT IN",{"$f":"VLOOKUP(A81,'[2]Product Master Sheet'!$B$2:$F$506,5,0)","v":368},20]
["SOLOMON OD300 50X100ML BOT IN",{"$f":"VLOOKUP(A82,'[2]Product Master Sheet'!$B$2:$F$506,5,0)","v":370},19]
["SUNRICE WG15 100X50GR BOT IN",{"$f":"VLOOKUP(A83,'[2]Product Master Sheet'!$B$2:$F$506,5,0)","v":374},0]
["VELUM PRIME SC400 20X500ML BOT IN",{"$f":"VLOOKUP(A84,'[2]Product Master Sheet'!$B$2:$F$506,5,0)","v":400},0]
["VELUM PRIME SC400 40X250ML BOT IN",{"$f":"VLOOKUP(A85,'[2]Product Master Sheet'!$B$2:$F$506,5,0)","v":401},0]
["WHIPSUPER (T) EC90 20X500ML BOT IN",{"$f":"VLOOKUP(A86,'[2]Product Master Sheet'!$B$2:$F$506,5,0)","v":404},1]
["WHIPSUPER (T) EC90 40X250ML BOT IN",{"$f":"VLOOKUP(A87,'[2]Product Master Sheet'!$B$2:$F$506,5,0)","v":405},-3]
["WHIPSUPER (T) EC90 50X100ML BOT IN",{"$f":"VLOOKUP(A88,'[2]Product Master Sheet'!$B$2:$F$506,5,0)","v":406},36]
["AMBITION 50X100ML BOT IN",{"$f":"VLOOKUP(A89,'[2]Product Master Sheet'!$B$2:$F$506,5,0)","v":923},0]
["C DK DKC9141 3.5KG",{"$f":"VLOOKUP(A90,'[2]Product Master Sheet'!$B$2:$F$506,5,0)","v":962},0]
["C MS ALLROUNDER 5KG IN",{"$f":"VLOOKUP(A91,'[2]Product Master Sheet'!$B$2:$F$506,5,0)","v":931},0]
["DECIS EC101-2 100X50ML BOT IN",{"$f":"VLOOKUP(A92,'[2]Product Master Sheet'!$B$2:$F$506,5,0)","v":927},0]
["DECIS EC101-2 50X100ML BOX IN",{"$f":"VLOOKUP(A93,'[2]Product Master Sheet'!$B$2:$F$506,5,0)","v":924},14]
["DECIS EC101-2 40X250ML BOT IN",{"$f":"VLOOKUP(A94,'[2]Product Master Sheet'!$B$2:$F$506,5,0)","v":925},34]
["BUONOS SC430 40X250ML BOT IN",{"$f":"VLOOKUP(A95,'[2]Product Master Sheet'!$B$2:$F$506,5,0)","v":1397},0]
["REGENT (T) SC50 10X1L BOT IN",{"$f":"VLOOKUP(A96,'[2]Product Master Sheet'!$B$2:$F$506,5,0)","v":324},3]
["ALIETTE WP80 20X250GR BAG IN",{"$f":"VLOOKUP(A97,'[2]Product Master Sheet'!$B$2:$F$506,5,0)","v":33},0]
["DISCOUNTINUE PRODUCT",{"$f":"VLOOKUP(A98,'[2]Product Master Sheet'!$B$2:$F$506,5,0)","v":993},0]
["LARVIN (T) WP75 40X100GR BAG IN",{"$f":"VLOOKUP(A99,'[2]Product Master Sheet'!$B$2:$F$506,5,0)","v":207},0]
["PLANOFIX SL4 5 20X500ML BOT IN",{"$f":"VLOOKUP(A100,'[2]Product Master Sheet'!$B$2:$F$506,5,0)","v":305},0]
["REGENT (T) SC50 50X100ML BOT IN",{"$f":"VLOOKUP(A101,'[2]Product Master Sheet'!$B$2:$F$506,5,0)","v":327},0]
["SECTIN WG60 10X1KG BAG IN",{"$f":"VLOOKUP(A102,'[2]Product Master Sheet'!$B$2:$F$506,5,0)","v":344},0]
["SECTIN WG60 20X600GR BAG IN",{"$f":"VLOOKUP(A103,'[2]Product Master Sheet'!$B$2:$F$506,5,0)","v":345},0]
["SPINTOR SC495 20X75ML BOT IN",{"$f":"VLOOKUP(A104,'[2]Product Master Sheet'!$B$2:$F$506,5,0)","v":373},5]

{"sheet":"Reco","index":7,"n_rows":110,"n_cols":29,"rows_kept":110,"cut":false,"hidden":false,"merged":[[0,1,0,9],[0,10,0,18],[0,19,0,27]]}
[null,"Zylem Report    01-Apr-2020 TO 28-Feb-2021",null,null,null,null,null,null,null,null,"Dealer Report -   01-Apr-2020 TO 28-Feb-2021",null,null,null,null,null,null,null,null,"Difference (+/-)"]
[]
["DEALER CODE","Opening Qty","Purchase Qty","Purchase Return Qty","Sales Qty","Sales Return Qty","Transfer Qty","Consignment Qty","Adjustment Qty","CLSG","Opening Qty","Purchase Qty","Purchase Return Qty","Sales Qty","Sales Return Qty","Transfer Qty","Consignment Qty","Adjustment Qty","CLSG","Opening Stock Qty","Purchase Qty","Purchase Return Qty","Sales Qty","Sales Return Qty","Transfer Qty","Consignment Qty","Adjustments Qty","CLSG","Remark"]
["ADMIRE (T) WG70 150X30GR BOT IN",58,450,0,446,0,0,0,0,62,58,450,0,446,0,0,0,0,62,0,0,0,0,0,0,0,0,0,"Ok"]
["ADMIRE (T) WG70 30X150GR BOT IN",14,0,0,19,2,0,0,0,-3,14,0,0,17,0,0,0,0,-3,0,0,0,2,2,0,0,0,0,"Ok"]
["ADMIRE (T) WG70 60X75GR BOT IN",1,180,0,159,0,0,0,0,22,1,180,0,159,0,0,0,0,22,0,0,0,0,0,0,0,0,0,"Ok"]
["ADMIRE WG70 125X(8X2GR) BAG IN",0,7800,0,6798,0,0,0,0,1002,0,7800,0,6798,0,0,0,0,1002,0,0,0,0,0,0,0,0,0,"Ok"]
["ADMIRE WG70 20X300GR BAG IN",12,160,0,145,0,0,0,0,27,12,160,0,145,0,0,0,0,27,0,0,0,0,0,0,0,0,0,"Ok"]
["ALIETTE WP80 10X1KG BAG IN",6,220,0,200,10,0,0,0,36,6,220,0,190,0,0,0,0,36,0,0,0,10,10,0,0,0,0,"Ok"]
["ALIETTE WP80 20X500GR BAG IN",-6,320,0,337,20,0,0,0,-3,-6,320,0,317,0,0,0,0,-3,0,0,0,20,20,0,0,0,0,"Ok"]
["AMBITION 10X1L BOT IN",14,100,0,117,2,0,0,0,-1,14,100,0,115,0,0,0,0,-1,0,0,0,2,2,0,0,0,0,"Ok"]
["AMBITION 20X500ML BOT IN",30,840,0,643,1,0,0,0,228,30,840,0,642,0,0,0,0,228,0,0,0,1,1,0,0,0,0,"Ok"]
["AMBITION 40X250ML BOT IN",25,1080,0,943,1,0,0,0,163,25,1080,0,942,0,0,0,0,163,0,0,0,1,1,0,0,0,0,"Ok"]
["ANTRACOL (T) WP70 10X1KG BAG IN",9,1150,0,1056,61,0,0,0,164,9,1150,0,995,0,0,0,0,164,0,0,0,61,61,0,0,0,0,"Ok"]
["ANTRACOL (T) WP70 20X500GR BAG IN",164,2400,0,2143,60,0,0,0,481,164,2400,0,2083,0,0,0,0,481,0,0,0,60,60,0,0,0,0,"Ok"]
["ANTRACOL (T) WP70 40X250GR BAG IN",67,1840,0,1847,40,0,0,0,100,67,1840,0,1807,0,0,0,0,100,0,0,0,40,40,0,0,0,0,"Ok"]
["BELT EXPERT SC480 50X100ML BOT IN",1,350,200,122,2,0,0,0,31,1,150,0,120,0,0,0,0,31,0,200,200,2,2,0,0,0,0,"Ok"]
["CONFIDOR (T) SL200 100X50ML BOT IN",0,100,0,77,0,0,0,0,23,0,100,0,77,0,0,0,0,23,0,0,0,0,0,0,0,0,0,"Ok"]
["CONFIDOR (T) SL200 10X1L BOT IN",0,50,0,35,0,0,0,0,15,0,50,0,35,0,0,0,0,15,0,0,0,0,0,0,0,0,0,"Ok"]
["CONFIDOR (T) SL200 20X250ML BOT IN",18,40,0,55,0,0,0,0,3,18,40,0,55,0,0,0,0,3,0,0,0,0,0,0,0,0,0,"Ok"]
["CONFIDOR (T) SL200 20X500ML BOT IN",0,100,0,55,4,0,0,0,49,0,100,0,51,0,0,0,0,49,0,0,0,4,4,0,0,0,0,"Ok"]
["CONFIDOR (T) SL200 50X100ML BOT IN",25,150,0,143,0,0,0,0,32,25,150,0,143,0,0,0,0,32,0,0,0,0,0,0,0,0,0,"Ok"]
["CONFIDOR SUPER (T) SC350 20X250ML BOT IN",-1,100,0,108,21,0,0,0,12,-1,100,0,87,0,0,0,0,12,0,0,0,21,21,0,0,0,0,"Ok"]
["CONFIDOR SUPER (T) SC350 20X500ML BOT IN",0,40,0,40,0,0,0,0,0,0,40,0,40,0,0,0,0,0,0,0,0,0,0,0,0,0,0,"Ok"]
["CONFIDOR SUPER (T) SC350 50X100ML BOT IN",-2,450,0,483,20,0,0,0,-15,-2,450,0,463,0,0,0,0,-15,0,0,0,20,20,0,0,0,0,"Ok"]
["CONFIDOR SUPER (T) SC350 50X50ML BOT IN",59,500,0,496,1,0,0,0,64,59,500,0,495,0,0,0,0,64,0,0,0,1,1,0,0,0,0,"Ok"]
["DECIS EC 28 10X1L BOT IN",0,50,0,50,0,0,0,0,0,0,50,0,50,0,0,0,0,0,0,0,0,0,0,0,0,0,0,"Ok"]
["ETHREL SL39 10X1L BOT IN",0,250,0,225,11,0,0,0,36,0,250,0,214,0,0,0,0,36,0,0,0,11,11,0,0,0,0,"Ok"]
["ETHREL SL39 20X500ML BOT IN",-1,200,0,221,10,0,0,0,-12,-1,200,0,211,0,0,0,0,-12,0,0,0,10,10,0,0,0,0,"Ok"]
["ETHREL SL39 50X100ML BOT IN",0,250,0,154,5,0,0,0,101,0,250,0,149,0,0,0,0,101,0,0,0,5,5,0,0,0,0,"Ok"]
["EVERGOL XTEND FS308 100X40ML BOT IN",0,1700,0,1670,12,0,0,0,42,0,1700,0,1658,0,0,0,0,42,0,0,0,12,12,0,0,0,0,"Ok"]
["FAME (T) SC480 20X100ML BOT IN",5,120,0,120,1,0,0,0,6,5,120,0,119,0,0,0,0,6,0,0,0,1,1,0,0,0,0,"Ok"]
["FAME (T) SC480 40X50ML BOT IN",18,320,0,275,1,0,0,0,64,18,320,0,274,0,0,0,0,64,0,0,0,1,1,0,0,0,0,"Ok"]
["FAME (T) SC480 8X250ML BOT IN",0,16,0,5,0,0,0,0,11,0,16,0,5,0,0,0,0,11,0,0,0,0,0,0,0,0,0,"Ok"]
["FENOS QUICK SC150 50X100ML BOT IN",0,550,0,521,0,0,0,0,29,0,550,0,521,0,0,0,0,29,0,0,0,0,0,0,0,0,0,"Ok"]
["FOLICUR (T) EC250 20X500ML BOT IN",4,80,0,78,0,0,0,0,6,4,80,0,78,0,0,0,0,6,0,0,0,0,0,0,0,0,0,"Ok"]
["FOLICUR (T) EC250 40X250ML BOT IN",-14,680,0,610,0,0,0,0,56,-14,680,0,610,0,0,0,0,56,0,0,0,0,0,0,0,0,0,"Ok"]
["FOLICUR (T) EC250 50X100ML BOT IN",11,1000,0,881,0,0,0,0,130,11,1000,0,881,0,0,0,0,130,0,0,0,0,0,0,0,0,0,"Ok"]
["FOOST WP50 20X250G BAG IN",5,40,0,35,0,0,0,0,10,5,40,0,35,0,0,0,0,10,0,0,0,0,0,0,0,0,0,"Ok"]
["FOOST WP50 24X500G BAG IN",-9,168,0,96,1,0,0,0,64,-9,168,0,95,0,0,0,0,64,0,0,0,1,1,0,0,0,0,"Ok"]
["GAUCHO FS600 100X50ML BOT IN",143,3300,0,2896,0,0,0,0,547,143,3300,0,2896,0,0,0,0,547,0,0,0,0,0,0,0,0,0,"Ok"]
["GAUCHO FS600 50X100ML BOT IN",8,1290,0,1055,0,0,0,0,243,8,1290,0,1055,0,0,0,0,243,0,0,0,0,0,0,0,0,0,"Ok"]
["GAUCHO FS600 5X(20X9)ML BOT IN",0,2200,0,2203,0,0,0,0,-3,0,2200,0,2203,0,0,0,0,-3,0,0,0,0,0,0,0,0,0,"Ok"]
["INFINITO SC687 5 10X1L BOT IN",0,80,0,41,4,0,0,0,43,0,80,0,37,0,0,0,0,43,0,0,0,4,4,0,0,0,0,"Ok"]
["INFINITO SC687 5 20X500ML BOT IN",0,360,0,304,0,0,0,0,56,0,360,0,304,0,0,0,0,56,0,0,0,0,0,0,0,0,0,"Ok"]
["INFINITO SC687 5 50X100ML BOT IN",0,300,0,264,1,0,0,0,37,0,300,0,263,0,0,0,0,37,0,0,0,1,1,0,0,0,0,"Ok"]
["JUMP WG80 160X(10X2GR) BAG IN",0,1600,0,196,0,0,0,0,1404,0,1600,0,196,0,0,0,0,1404,0,0,0,0,0,0,0,0,0,"Ok"]
["JUMP WG80 80X40GR BAG IN",0,80,0,83,0,0,0,0,-3,0,80,0,83,0,0,0,0,-3,0,0,0,0,0,0,0,0,0,"Ok"]
["LARVIN (T) WP75 20X250GR BAG IN",22,360,0,249,0,0,0,0,133,22,360,0,249,0,0,0,0,133,0,0,0,0,0,0,0,0,0,"Ok"]
["LARVIN (T) WP75 20X500GR BAG IN",0,100,0,37,0,0,0,0,63,0,100,0,37,0,0,0,0,63,0,0,0,0,0,0,0,0,0,"Ok"]
["LAUDIS SC630 10X57.5ML BOT IN",8,30,0,33,0,0,0,0,5,8,30,0,33,0,0,0,0,5,0,0,0,0,0,0,0,0,0,"Ok"]
["LAUDIS SC630 8X115ML BOT IN",-46,144,64,65,1,0,0,0,-30,-46,80,0,64,0,0,0,0,-30,0,64,64,1,1,0,0,0,0,"Ok"]
["LESENTA WG80 100X40GR BAG IN",0,600,0,449,0,0,0,0,151,0,600,0,449,0,0,0,0,151,0,0,0,0,0,0,0,0,0,"Ok"]
["LUNA EXPERIENCE SC400 10X1L BOT IN",0,120,0,87,10,0,0,0,43,0,120,0,77,0,0,0,0,43,0,0,0,10,10,0,0,0,0,"Ok"]
["LUNA EXPERIENCE SC400 40X250ML BOT IN",15,800,0,813,10,0,0,0,12,15,800,0,803,0,0,0,0,12,0,0,0,10,10,0,0,0,0,"Ok"]
["LUNA EXPERIENCE SC400 50X100ML BOT IN",2,250,0,206,2,0,0,0,48,2,250,0,204,0,0,0,0,48,0,0,0,2,2,0,0,0,0,"Ok"]
["MELODY DUO WP66 8 10X400GR BAG IN",29,590,0,565,61,0,0,0,115,29,590,0,504,0,0,0,0,115,0,0,0,61,61,0,0,0,0,"Ok"]
["MELODY DUO WP66 8 10X800G BAG IN",34,1150,0,819,70,0,0,0,435,34,1150,0,749,0,0,0,0,435,0,0,0,70,70,0,0,0,0,"Ok"]
["MELODY DUO WP66 8 50X100GR BAG IN",0,850,0,765,0,0,0,0,85,0,850,0,765,0,0,0,0,85,0,0,0,0,0,0,0,0,0,"Ok"]
["MOVENTO ENERGY SC240 10X1L BOT IN",0,90,0,108,20,0,0,0,2,0,90,0,88,0,0,0,0,2,0,0,0,20,20,0,0,0,0,"Ok"]
["MOVENTO ENERGY SC240 50X100ML BOT IN",0,50,0,21,0,0,0,0,29,0,50,0,21,0,0,0,0,29,0,0,0,0,0,0,0,0,0,"Ok"]
["MOVENTO OD150 10X1L BOT IN",0,20,0,21,0,0,0,0,-1,0,20,0,21,0,0,0,0,-1,0,0,0,0,0,0,0,0,0,"Ok"]
["MOVENTO OD150 20X500ML BOT IN",0,60,0,43,0,0,0,0,17,0,60,0,43,0,0,0,0,17,0,0,0,0,0,0,0,0,0,"Ok"]
["MOVENTO OD150 40X250ML BOT IN",7,600,0,504,1,0,0,0,104,7,600,0,503,0,0,0,0,104,0,0,0,1,1,0,0,0,0,"Ok"]
["NATIVO WG75 100X50GR BAG IN",-27,1300,0,1260,0,0,0,0,13,-27,1300,0,1260,0,0,0,0,13,0,0,0,0,0,0,0,0,0,"Ok"]
["NATIVO WG75 10X1KG BAG IN",0,10,0,10,0,0,0,0,0,0,10,0,10,0,0,0,0,0,0,0,0,0,0,0,0,0,0,"Ok"]
["NATIVO WG75 20X500GR BAG IN",0,40,0,40,0,0,0,0,0,0,40,0,40,0,0,0,0,0,0,0,0,0,0,0,0,0,0,"Ok"]
["NATIVO WG75 40X250GR BAG IN",21,280,0,221,10,0,0,0,90,21,280,0,211,0,0,0,0,90,0,0,0,10,10,0,0,0,0,"Ok"]
["NATIVO WG75 50X100GR BAG IN",35,1100,0,1061,20,0,0,0,94,35,1100,0,1041,0,0,0,0,94,0,0,0,20,20,0,0,0,0,"Ok"]
["OBERON (T) SC240 40X200ML BOT IN",0,280,0,213,0,0,0,0,67,0,280,0,213,0,0,0,0,67,0,0,0,0,0,0,0,0,0,"Ok"]
["OBERON (T) SC240 50X100ML BOT IN",0,50,0,27,0,0,0,0,23,0,50,0,27,0,0,0,0,23,0,0,0,0,0,0,0,0,0,"Ok"]
["PLANOFIX SL4 5 50X100ML BOT IN",13,400,0,327,0,0,0,0,86,13,400,0,327,0,0,0,0,86,0,0,0,0,0,0,0,0,0,"Ok"]
["PROFILER WG71 11 10X1KG BAG IN",2,150,70,79,0,0,0,0,3,2,80,0,79,0,0,0,0,3,0,70,70,0,0,0,0,0,0,"Ok"]
["PROFILER WG71 11 20X250GR BAG IN",19,0,0,18,0,0,0,0,1,19,0,0,18,0,0,0,0,1,0,0,0,0,0,0,0,0,0,"Ok"]
["REGENT (T) SC50 20X250ML BOT IN",1,400,0,336,0,0,0,0,65,1,400,0,336,0,0,0,0,65,0,0,0,0,0,0,0,0,0,"Ok"]
["REGENT (T) SC50 20X500ML BOT IN",2,340,0,321,40,0,0,0,61,2,340,0,281,0,0,0,0,61,0,0,0,40,40,0,0,0,0,"Ok"]
["REGENT GOLD SC200 50X100ML BOT IN",32,0,0,28,0,0,0,0,4,32,0,0,28,0,0,0,0,4,0,0,0,0,0,0,0,0,0,"Ok"]
["REGENT GR0 3 4X5KG BAG IN",0,480,0,416,0,0,0,0,64,0,480,0,416,0,0,0,0,64,0,0,0,0,0,0,0,0,0,"Ok"]
["REGENT ULTRA GR0 6 5X4KG BAG IN",0,75,0,61,0,0,0,0,14,0,75,0,61,0,0,0,0,14,0,0,0,0,0,0,0,0,0,"Ok"]
["SENCOR WP70 20X500GR BOX IN",0,40,0,40,0,0,0,0,0,0,40,0,40,0,0,0,0,0,0,0,0,0,0,0,0,0,0,"Ok"]
["SENCOR WP70 60X100GR BAG IN",4,900,0,781,0,0,0,0,123,4,900,0,781,0,0,0,0,123,0,0,0,0,0,0,0,0,0,"Ok"]
["SOLOMON OD300 10X1L BOT IN",0,100,0,121,20,0,0,0,-1,0,100,0,101,0,0,0,0,-1,0,0,0,20,20,0,0,0,0,"Ok"]
["SOLOMON OD300 20X500ML BOT IN",0,380,0,386,20,0,0,0,14,0,380,0,366,0,0,0,0,14,0,0,0,20,20,0,0,0,0,"Ok"]
["SOLOMON OD300 40X250ML BOT IN",20,1560,0,1475,46,0,0,0,151,20,1560,0,1429,0,0,0,0,151,0,0,0,46,46,0,0,0,0,"Ok"]
["SOLOMON OD300 50X100ML BOT IN",19,1650,0,1505,1,0,0,0,165,19,1650,0,1504,0,0,0,0,165,0,0,0,1,1,0,0,0,0,"Ok"]
["SPINTOR SC495 20X75ML BOT IN",5,0,0,0,0,0,0,0,5,5,0,0,0,0,0,0,0,5,0,0,0,0,0,0,0,0,0,"Ok"]
["SUNRICE WG15 100X50GR BOT IN",0,200,0,100,0,0,0,0,100,0,200,0,100,0,0,0,0,100,0,0,0,0,0,0,0,0,0,"Ok"]
["VELUM PRIME SC400 20X500ML BOT IN",0,80,0,76,4,0,0,0,8,0,80,0,72,0,0,0,0,8,0,0,0,4,4,0,0,0,0,"Ok"]
["VELUM PRIME SC400 40X250ML BOT IN",0,160,0,128,0,0,0,0,32,0,160,0,128,0,0,0,0,32,0,0,0,0,0,0,0,0,0,"Ok"]
["WHIPSUPER (T) EC90 20X500ML BOT IN",1,220,120,101,0,0,0,0,0,1,100,0,101,0,0,0,0,0,0,120,120,0,0,0,0,0,0,"Ok"]
["WHIPSUPER (T) EC90 40X250ML BOT IN",-3,520,0,504,0,0,0,0,13,-3,520,0,504,0,0,0,0,13,0,0,0,0,0,0,0,0,0,"Ok"]
["WHIPSUPER (T) EC90 50X100ML BOT IN",36,1050,0,1227,200,0,0,0,59,36,1050,0,1027,0,0,0,0,59,0,0,0,200,200,0,0,0,0,"Ok"]
["AMBITION 50X100ML BOT IN",0,500,0,383,0,0,0,0,117,0,500,0,383,0,0,0,0,117,0,0,0,0,0,0,0,0,0,"Ok"]
["C DK DKC9141 3.5KG",0,16,0,8,0,0,0,0,8,0,16,0,8,0,0,0,0,8,0,0,0,0,0,0,0,0,0,"Ok"]
["C MS ALLROUNDER 5KG IN",0,0,0,9,0,0,0,0,-9,0,0,0,9,0,0,0,0,-9,0,0,0,0,0,0,0,0,0,"Ok"]
["DECIS EC101-2 100X50ML BOT IN",0,300,0,200,0,0,0,0,100,0,300,0,200,0,0,0,0,100,0,0,0,0,0,0,0,0,0,"Ok"]
["DECIS EC101-2 50X100ML BOX IN",14,1400,0,1314,1,0,0,0,101,14,1400,0,1313,0,0,0,0,101,0,0,0,1,1,0,0,0,0,"Ok"]
["DECIS EC101-2 40X250ML BOT IN",34,520,0,519,0,0,0,0,35,34,520,0,519,0,0,0,0,35,0,0,0,0,0,0,0,0,0,"Ok"]
["BUONOS SC430 40X250ML BOT IN",0,320,0,298,0,0,0,0,22,0,320,0,298,0,0,0,0,22,0,0,0,0,0,0,0,0,0,"Ok"]
["REGENT (T) SC50 10X1L BOT IN",3,830,0,673,20,0,0,0,180,3,830,0,653,0,0,0,0,180,0,0,0,20,20,0,0,0,0,"Ok"]
["ALIETTE WP80 20X250GR BAG IN",0,0,0,0,0,0,0,0,0,0,0,0,0,0,0,0,0,0,0,0,0,0,0,0,0,0,0,"Ok"]
["Bayer",0,0,0,0,0,0,0,0,0,0,0,0,0,0,0,0,0,0,0,0,0,0,0,0,0,0,0,"Ok"]
["DISCOUNTINUE PRODUCT",0,0,0,0,0,0,0,0,0,0,6,0,6,0,0,0,0,0,0,-6,0,-6,0,0,0,0,0,"Ok"]
["LARVIN (T) WP75 40X100GR BAG IN",0,0,0,0,0,0,0,0,0,0,0,0,0,0,0,0,0,0,0,0,0,0,0,0,0,0,0,"Ok"]
["PLANOFIX SL4 5 20X500ML BOT IN",0,0,0,0,0,0,0,0,0,0,0,0,0,0,0,0,0,0,0,0,0,0,0,0,0,0,0,"Ok"]
["REGENT (T) SC50 50X100ML BOT IN",0,0,0,0,0,0,0,0,0,0,0,0,0,0,0,0,0,0,0,0,0,0,0,0,0,0,0,"Ok"]
["SECTIN WG60 10X1KG BAG IN",0,0,0,0,0,0,0,0,0,0,0,0,0,0,0,0,0,0,0,0,0,0,0,0,0,0,0,"Ok"]
["SECTIN WG60 20X600GR BAG IN",0,0,0,0,0,0,0,0,0,0,0,0,0,0,0,0,0,0,0,0,0,0,0,0,0,0,0,"Ok"]
["(blank)",0,0,0,0,0,0,0,0,0,0,0,0,0,0,0,0,0,0,0,0,0,0,0,0,0,0,0,"Ok"]
["Total",966,54519,454,47501,848,0,0,0,8378,966,54071,0,46659,0,0,0,0,8378,0,448,454,842,848,0,0,0,0]